{"text_format":"2","workbook":"xlsx","n_sheets":4,"sheets":["HANH NGHE KCB","DANG KY LAM VIEC","THUC HANH","NGHI VIEC 2022"],"not_rendered":{"charts":0,"images":0,"macros":0,"external_links":0,"defined_names":9,"comments":0,"pivot_tables":0},"unopened":[],"bounds":{"document_bytes":16777216,"sheet_cells":100000,"run_cost":"one","rows_first":2000,"rows_last":500,"rows_between":2000,"halvings":0,"cell_chars":16384,"cell_head_chars":4096},"cells_cut":0,"cells_raw":0,"read":"whole","date_system":"1900"}

{"sheet":"HANH NGHE KCB","index":0,"n_rows":358,"n_cols":10,"rows_kept":358,"cut":false,"hidden":false,"merged":[[0,0,0,4],[1,0,1,4],[2,0,2,8],[3,0,3,8],[4,0,4,8],[1,6,1,8]]}
["SỞ Y TẾ TP. CẦN THƠ",{"$nulls":5},"CỘNG HÒA XÃ HỘI CHỦ NGHĨA VIỆT NAM"]
["BỆNH VIỆN ĐA KHOA QUỐC TẾ S.I.S CẦN THƠ",{"$nulls":5},"Độc lập – Tự do – Hạnh phúc"]
["DANH SÁCH"]
["Đăng ký hành nghề tại cơ sở khám bệnh, chữa bệnh"]
["(Cập nhật đến ngày 30/12/2022)"]
[1,null,"Tên cơ sở khám bệnh, chữa bệnh: BỆNH VIỆN ĐA KHOA QUỐC TẾ S.I.S CẦN THƠ   "]
[2,null,"Địa chỉ: 397 Đường Nguyễn Văn Cừ, Phường An Bình, Quận Ninh Kiều, TP. Cần Thơ"]
[3,null,"Số điện thoại: 0292 3789 911 "]
[4,null,"Quy mô giường bệnh được phê duyệt: 100 giường. Phân hạng III    "]
[5,null,"Thời gian hoạt động của cơ sở khám bệnh, chữa bệnh: 24/7 (Từ thứ 2 đến chủ nhật)"]
[6,null,"Danh sách đăng ký người hành nghề khám bệnh, chữa bệnh: người có chứng chỉ hành nghề khám bệnh, chữa bệnh"]
[]
["STT","Mã NV","Họ và tên","Số chứng chỉ hành nghề đã được cấp","Phạm vi hoạt động chuyên môn","Thời gian đăng ký hành nghề tại cơ sở khám bệnh, chữa bệnh (ghi cụ thể thời gian làm việc)","Vị trí chuyên môn","Khoa","Ghi chú","lọc"]
[{"$f":"_xlfn.AGGREGATE(3,3,$C$14:C14)","v":1},"00070","Huỳnh Quốc Sĩ","002968/HAUG-CCHN","Khám bệnh, chữa bệnh chuyên khoa Nội","Toàn thời gian (Từ 7h00 -16h30) và theo lịch trực gác","Trưởng Khoa","Khoa Hồi sức Cấp cứu; Khoa Khám bệnh","4919/QĐ-S.I.S","BS Cơ hữu"]
[{"$f":"_xlfn.AGGREGATE(3,3,$C$14:C15)","v":2},"00202","Nguyễn Hữu Vịnh","029656/BYT-CCHN","Khám bệnh, chữa bệnh chuyên khoa Nội tổng hợp","Toàn thời gian (Từ 7h00 -16h30) và theo lịch trực gác","Phó Khoa","Khoa Hồi sức Cấp cứu; Khoa Khám bệnh",null,"BS Cơ hữu"]
[{"$f":"_xlfn.AGGREGATE(3,3,$C$14:C16)","v":3},"00314","Tô Thanh Ửng","004722/ĐT-CCHN","Khám bệnh, chữa bệnh nội khoa, không làm thủ thuật chuyên khoa","Toàn thời gian (Từ 7h00 -16h30) và theo lịch trực gác","Bác sĩ điều trị","Khoa Hồi sức Cấp cứu; Khoa Khám bệnh",null,"BS Cơ hữu"]
[{"$f":"_xlfn.AGGREGATE(3,3,$C$14:C17)","v":4},"00416","Huỳnh Quốc Toàn","043563/BYT-CCHN","Khám bệnh, chữa bệnh chuyên khoa nội","Toàn thời gian (Từ 7h00 -16h30) và theo lịch trực gác","Bác sĩ điều trị","Khoa Hồi sức Cấp cứu; Khoa Khám bệnh",null,"BS Cơ hữu"]
[{"$f":"_xlfn.AGGREGATE(3,3,$C$14:C18)","v":5},"00530","Phan Thị Hồng Lạc ","007401/CT-CCHN","Khám bệnh, chữa bệnh nội khoa","Toàn thời gian (Từ 7h00 -16h30) và theo lịch trực gác","Bác sĩ điều trị","Khoa Hồi sức Cấp cứu; Khoa Khám bệnh",null,"BS Cơ hữu"]
[{"$f":"_xlfn.AGGREGATE(3,3,$C$14:C19)","v":6},"00529","Lưu Đặng Diễm Trân","007402/CT-CCHN","Khám bệnh, chữa bệnh nội khoa","Toàn thời gian (Từ 7h00 -16h30) và theo lịch trực gác","Bác sĩ điều trị","Khoa Hồi sức Cấp cứu; Khoa Khám bệnh",null,"BS Cơ hữu"]
[{"$f":"_xlfn.AGGREGATE(3,3,$C$14:C20)","v":7},"00705","Giang Quốc Thịnh","050044/HCM-CCHN","Khám bệnh, chữa bệnh chuyên khoa Nội tổng hợp","Toàn thời gian (Từ 7h00 -16h30) và theo lịch trực gác","Bác sĩ điều trị","Khoa Hồi sức Cấp cứu; Khoa Khám bệnh",null,"BS Cơ hữu"]
[{"$f":"_xlfn.AGGREGATE(3,3,$C$14:C21)","v":8},"00752","Nguyễn Thanh Liêm","003227/HAUG-CCHN","Khám bệnh, chữa bệnh Nội khoa","Toàn thời gian (Từ 7h00 -16h30) và theo lịch trực gác","Bác sĩ điều trị","Khoa Hồi sức Cấp cứu; Khoa Khám bệnh",null,"BS Cơ hữu"]
[{"$f":"_xlfn.AGGREGATE(3,3,$C$14:C22)","v":9},"00819","Lê Tấn An","05126/ST-CCHN","Khám bệnh, chữa bệnh chuyên khoa Nội","Toàn thời gian (Từ 7h00 -16h30) và theo lịch trực gác","Bác sĩ điều trị","Khoa Hồi sức Cấp cứu; Khoa Khám bệnh",null,"BS Cơ hữu"]
[{"$f":"_xlfn.AGGREGATE(3,3,$C$14:C23)","v":10},"00832","Ngô Minh Trường","006904/CT-CCHN","Khám bệnh, chữa bệnh nội khoa","Toàn thời gian (Từ 7h00 -16h30) và theo lịch trực gác","Bác sĩ điều trị","Khoa Hồi sức Cấp cứu; Khoa Khám bệnh",null,"BS Cơ hữu"]
[{"$f":"_xlfn.AGGREGATE(3,3,$C$14:C24)","v":11},"00931","Nguyễn Thị Ngọc Anh","050071/HCM-CCHN","Khám bệnh, chữa bệnh chuyên khoa Nội tổng hợp","Toàn thời gian (Từ 7h00 -16h30) và theo lịch trực gác","Bác sĩ điều trị","Khoa Hồi sức Cấp cứu; Khoa Khám bệnh",null,"BS Cơ hữu"]
[{"$f":"_xlfn.AGGREGATE(3,3,$C$14:C25)","v":12},"00221","Tô Ngọc Hương","000079/CT-CCHN","Thực hiện các kỹ thuật điều dưỡng cơ bản","Toàn thời gian (Từ 7h00 -16h30) và theo lịch trực gác","Điều dưỡng trưởng","Hồi sức Cấp cứu",null,"ĐD"]
[{"$f":"_xlfn.AGGREGATE(3,3,$C$14:C26)","v":13},"00498","Trương Thị Diểm My ","007355/CT-CCHN","Thực hiện theo chức năng nhiệm vụ của điều dưỡng quy định theo Thông tư liên tịch số 26/2015/TTLT-BYT-BNV ngày 07/10/2015","Toàn thời gian (Từ 7h00 -16h30) và theo lịch trực gác","Điều dưỡng viên","Hồi sức Cấp cứu",null,"ĐD"]
[{"$f":"_xlfn.AGGREGATE(3,3,$C$14:C27)","v":14},"00317","Trương Gia Mỹ","007021/CT-CCHN","Thực hiện theo chức năng nhiệm vụ của điều dưỡng quy định theo Thông tư liên tịch số 26/2015/TTLT-BYT ngày 07/10/2015","Toàn thời gian (Từ 7h00 -16h30) và theo lịch trực gác","Điều dưỡng viên","Hồi sức Cấp cứu",null,"ĐD"]
[{"$f":"_xlfn.AGGREGATE(3,3,$C$14:C28)","v":15},"00656","Trần Văn Hòa","0003524/VL-CCHN","Thực hiện phạm vi hoạt động theo quy định tại Thông tư 26/2015/TTLT-BNV ngày 07/10/2015 quy định mã số, tiêu chuẩn chức danh nghề nghiệp điều dưỡng.","Toàn thời gian (Từ 7h00 -16h30) và theo lịch trực gác","Điều dưỡng viên","Hồi sức Cấp cứu",null,"ĐD"]
[{"$f":"_xlfn.AGGREGATE(3,3,$C$14:C29)","v":16},"00608","Trần Thị Tuyết Trinh","005065/CT-CCHN","Thực hiện theo chức năng nhiệm vụ của điều dưỡng quy định tại Thông tư liên tịch số 26/2015/TTLT-BYT ngày 07/10/2015","Toàn thời gian (Từ 7h00 -16h30) và theo lịch trực gác","Điều dưỡng viên","Hồi sức Cấp cứu",null,"ĐD"]
[{"$f":"_xlfn.AGGREGATE(3,3,$C$14:C30)","v":17},"00496","Trần Hoàng Khang","007281/CT-CCHN","Thực hiện theo chức năng nhiệm vụ của điều dưỡng quy định theo Thông tư liên tịch số 26/2015/TTLT-BYT-BNV ngày 07/10/2015","Toàn thời gian (Từ 7h00 -16h30) và theo lịch trực gác","Điều dưỡng viên","Hồi sức Cấp cứu",null,"ĐD"]
[{"$f":"_xlfn.AGGREGATE(3,3,$C$14:C31)","v":18},"00318","Tô Quý Ngọc","007001/CT-CCHN","Thực hiện theo chức năng nhiệm vụ của điều dưỡng quy định theo Thông tư liên tịch số 26/2015/TTLT-BYT ngày 07/10/2018","Toàn thời gian (Từ 7h00 -16h30) và theo lịch trực gác","Điều dưỡng viên","Hồi sức Cấp cứu",null,"ĐD"]
[{"$f":"_xlfn.AGGREGATE(3,3,$C$14:C32)","v":19},"00168","Nguyễn Vĩnh Khang","006955/CT-CCHN","Thực hiện theo chức năng nhiệm vụ của điều dưỡng quy định theo Thông tư liên tịch số 26/2015/TTLT-BYT ngày 07/10/2015","Toàn thời gian (Từ 7h00 -16h30) và theo lịch trực gác","Điều dưỡng viên","Hồi sức Cấp cứu",null,"ĐD"]
[{"$f":"_xlfn.AGGREGATE(3,3,$C$14:C33)","v":20},"00334","Nguyễn Văn Hiền","007063/CT-CCHN","Thực hiện theo chức năng nhiệm vụ của điều dưỡng quy định theo Thông tư liên tịch số 26/2015/TTLT-BYT ngày 07/10/2015","Toàn thời gian (Từ 7h00 -16h30) và theo lịch trực gác","Điều dưỡng viên","Hồi sức Cấp cứu",null,"ĐD"]
[{"$f":"_xlfn.AGGREGATE(3,3,$C$14:C34)","v":21},"00651","Nguyễn Văn Dũng","041851/HCM-CCHN","Thực hiện phạm vi hoạt động theo quy định tại Thông tư 26/2015/TTLT-BYT-BNV ngày 07/10/2015 quy định mã số, tiêu chuẩn chức danh nghề nghiệp điều dưỡng.","Toàn thời gian (Từ 7h00 -16h30) và theo lịch trực gác","Điều dưỡng viên","Hồi sức Cấp cứu",null,"ĐD"]
[{"$f":"_xlfn.AGGREGATE(3,3,$C$14:C35)","v":22},"00319","Nguyễn Thị Ngọc Nhi","006994/CT-CCHN","Thực hiện theo chức năng nhiệm vụ của điều dưỡng quy định theo Thông tư liên tịch số 26/2015/TTLT-BYT ngày 07/10/2015","Toàn thời gian (Từ 7h00 -16h30) và theo lịch trực gác","Điều dưỡng viên","Hồi sức Cấp cứu",null,"ĐD"]
[{"$f":"_xlfn.AGGREGATE(3,3,$C$14:C36)","v":23},"00073","Nguyễn Thị Ngọc Hà","004298/CT-CCHN","Thực hiện theo chức năng nhiệm vụ của điều dưỡng quy định tại Thông tư liên tịch số 26/2015/TTLT-BYT-BNV ngày 07/10/2015","Toàn thời gian (Từ 7h00 -16h30) và theo lịch trực gác","Điều dưỡng viên","Hồi sức Cấp cứu",null,"ĐD"]
[{"$f":"_xlfn.AGGREGATE(3,3,$C$14:C37)","v":24},"00374","Nguyễn Thị Kim Hai","002877/HAUG-CCHN","Thực hiện theo chức năng nhiệm vụ của Điều dưỡng quy định tại Thông tư liên tịch số 26/2015/TTLT-BYT-BNV ngày 07/10/2015","Toàn thời gian (Từ 7h00 -16h30) và theo lịch trực gác","Điều dưỡng viên","Hồi sức Cấp cứu",null,"ĐD"]
[{"$f":"_xlfn.AGGREGATE(3,3,$C$14:C38)","v":25},"00390","Nguyễn Thị Diễm Lệ","007227/CT-CCHN","Thực hiện theo chức năng nhiệm vụ của điều dưỡng quy định theo Thông tư liên tịch số 26/2015/TTLT-BYT ngày 07/10/2015","Toàn thời gian (Từ 7h00 -16h30) và theo lịch trực gác","Điều dưỡng viên","Hồi sức Cấp cứu",null,"ĐD"]
[{"$f":"_xlfn.AGGREGATE(3,3,$C$14:C39)","v":26},"00174","Nguyễn Hồng Xuân","005386/CT-CCHN","Thực hiện theo chức năng nhiệm vụ của điều dưỡng quy định theo Thông tư liên tịch số 26/2015/TTLT-BYT ngày 07/10/2015","Toàn thời gian (Từ 7h00 -16h30) và theo lịch trực gác","Điều dưỡng viên","Hồi sức Cấp cứu",null,"ĐD"]
[{"$f":"_xlfn.AGGREGATE(3,3,$C$14:C40)","v":27},"00364","Lê Thị Bé Năm","005509/CT-CCHN","Thực hiện theo chức năng nhiệm vụ của điều dưỡng quy định theo Thông tư liên tịch số 26/2015/TTLT-BYT ngày 07/10/2015","Toàn thời gian (Từ 7h00 -16h30) và theo lịch trực gác","Điều dưỡng viên","Hồi sức Cấp cứu",null,"ĐD"]
[{"$f":"_xlfn.AGGREGATE(3,3,$C$14:C41)","v":28},"00590","Lê Thanh Ngân","08228/ĐT-CCHN","Thực hiện theo Thông tư số 26/2015/TTLT-BYT-BNV ngày 07/10/2015 quy định mã số, tiêu chuẩn chức danh nghề nghiệp điều dưỡng","Toàn thời gian (Từ 7h00 -16h30) và theo lịch trực gác","Điều dưỡng viên","Hồi sức Cấp cứu",null,"ĐD"]
[{"$f":"_xlfn.AGGREGATE(3,3,$C$14:C42)","v":29},"00463","Huỳnh Sơn Thọ ","007523/CT-CCHN","Thực hiện theo chức năng nhiệm vụ của điều dưỡng quy định theo Thông tư liên tịch số 26/2015/TTLT-BYT-BNV ngày 07/10/2015","Toàn thời gian (Từ 7h00 -16h30) và theo lịch trực gác","Điều dưỡng viên","Hồi sức Cấp cứu",null,"ĐD"]
[{"$f":"_xlfn.AGGREGATE(3,3,$C$14:C43)","v":30},"00270","Đoàn Thị Tuyết Mai","0003495/VL-CCHN","Thực hiện phạm vi hoạt động chuyên môn theo quy định tại Thông tư liên tịch số 26/2015/TTLT-BYT-BNV ngày 07/10/2015 quy định mã số, tiêu chuẩn chức dnah nghề nghiệp điều dưỡng","Toàn thời gian (Từ 7h00 -16h30) và theo lịch trực gác","Điều dưỡng viên","Hồi sức Cấp cứu",null,"ĐD"]
[{"$f":"_xlfn.AGGREGATE(3,3,$C$14:C44)","v":31},"00497","Đỗ Minh Trí","007291/CT-CCHN","Thực hiện theo chức năng nhiệm vụ của điều dưỡng quy định theo Thông tư liên tịch số 26/2015/TTLT-BYT-BNV ngày 07/10/2015","Toàn thời gian (Từ 7h00 -16h30) và theo lịch trực gác","Điều dưỡng viên","Hồi sức Cấp cứu",null,"ĐD"]
[{"$f":"_xlfn.AGGREGATE(3,3,$C$14:C45)","v":32},"00308","Đặng Thị Cẩm Tiên","005010/CT-CCHN","Thực hiện theo chức năng nhiệm vụ của điều dưỡng quy định theo Thông tư liên tịch số 26/2015/TTLT-BYT ngày 07/10/2015","Toàn thời gian (Từ 7h00 -16h30) và theo lịch trực gác","Điều dưỡng viên","Hồi sức Cấp cứu",null,"ĐD"]
[{"$f":"_xlfn.AGGREGATE(3,3,$C$14:C46)","v":33},"00532","Bùi Thị Ngọc Phương","007666/CT-CCHN","Thực hiện theo chức năng nhiệm vụ của điều dưỡng quy định theo Thông tư liên tịch số 26/2015/TTLT-BYT-BNV ngày 07/10/2015","Toàn thời gian (Từ 7h00 -16h30) và theo lịch trực gác","Điều dưỡng viên","Hồi sức Cấp cứu",null,"ĐD"]
[{"$f":"_xlfn.AGGREGATE(3,3,$C$14:C47)","v":34},"00734","Nguyễn Văn Công","000501/CT-CCHN","Thực hiện các kỹ thuật Điều dưỡng cơ bản và một số kỹ thuật điều dưỡng chuyên khoa","Toàn thời gian (Từ 7h00 -16h30) và theo lịch trực gác","Điều dưỡng viên ","Hồi sức Cấp cứu",null,"ĐD"]
[{"$f":"_xlfn.AGGREGATE(3,3,$C$14:C48)","v":35},"HT00490","Nguyễn Thị Quỳnh Mai","004351/BYT-CCHN","Khám bệnh, chữa bệnh chuyên khoa Nội Tiêu hóa","Bán thời gian và theo lịch trực gác","BS hợp tác_ Bác sĩ phòng tiêu hóa","Khoa CĐHA",null,"BS Hợp tác"]
[{"$f":"_xlfn.AGGREGATE(3,3,$C$14:C49)","v":36},"HT00506","Nguyễn Anh Kiệt","0027920/BYT-CCHN","Khám bệnh, chữa bệnh chuyên khoa Nội tổng hợp","Bán thời gian và theo lịch trực gác","BS hợp tác_ Bác sĩ phòng tiêu hóa","Khoa CĐHA",null,"BS Hợp tác"]
[{"$f":"_xlfn.AGGREGATE(3,3,$C$14:C50)","v":37},"HT00492","Phan Văn Tiễn","0027919/BYT-CCHN","Khám bệnh, chữa bệnh chuyên khoa Nội tổng hợp","Bán thời gian và theo lịch trực gác","BS hợp tác_ Bác sĩ phòng tiêu hóa","Khoa CĐHA",null,"BS Hợp tác"]
[{"$f":"_xlfn.AGGREGATE(3,3,$C$14:C51)","v":38},"HT00491","Nguyễn Bảo Phước","04205/ST-CCHN","Khám bệnh, chữa bệnh đa khoa","Bán thời gian và theo lịch trực gác","BS hợp tác_ Bác sĩ phòng tiêu hóa","Khoa CĐHA",null,"BS Hợp tác"]
[{"$f":"_xlfn.AGGREGATE(3,3,$C$14:C52)","v":39},"HT00494","Huỳnh Thị Trúc Ly","030085/BYT-CCHN","Khám bệnh, chữa bệnh chuyên khoa Nội tổng hợp","Bán thời gian và theo lịch trực gác","BS hợp tác_ Bác sĩ phòng tiêu hóa","Khoa CĐHA",null,"BS Hợp tác"]
[{"$f":"_xlfn.AGGREGATE(3,3,$C$14:C53)","v":40},"HT00493","Nguyễn Thanh Dự","0026093/BYT-CCHN","Khám bệnh, chữa bệnh chuyên khoa Nội tổng hợp","Bán thời gian và theo lịch trực gác","BS hợp tác_ Bác sĩ phòng tiêu hóa","Khoa CĐHA",null,"BS Hợp tác"]
[{"$f":"_xlfn.AGGREGATE(3,3,$C$14:C54)","v":41},"HT00552","Lê Thị Ánh Như","120695/CCHN-BQP","Khám chữa bệnh Nội khoa, chuyên khoa Nội thần kinh","Bán thời gian và theo lịch trực gác","BS hợp tác_ Bác sĩ phòng tiêu hóa","Khoa CĐHA",null,"BS Hợp tác"]
[{"$f":"_xlfn.AGGREGATE(3,3,$C$14:C55)","v":42},"HT00514","Nguyễn Trọng Thái","038426/BYT-CCHN","Chuyên khoa Siêu âm","Bán thời gian và theo lịch trực gác","BS hợp tác","Khoa CĐHA",null,"BS Hợp tác"]
[{"$f":"_xlfn.AGGREGATE(3,3,$C$14:C56)","v":43},"HT00515","Nguyễn Vũ Đằng","004200/BYT-CCHN","Chuyên khoa Chẩn đoán hình ảnh","Bán thời gian và theo lịch trực gác","BS hợp tác","Khoa CĐHA",null,"BS Hợp tác"]
[{"$f":"_xlfn.AGGREGATE(3,3,$C$14:C57)","v":44},"00234","Lê Uyển Diễm","001259/BYT-CCHN","Khám bệnh, chữa bệnh chuyên khoa CĐHA","Toàn thời gian (Từ 7h00 -16h30) và theo lịch trực gác","Cố vấn chuyên môn","Khoa CĐHA",null,"BS Cơ hữu"]
[{"$f":"_xlfn.AGGREGATE(3,3,$C$14:C58)","v":45},"00245","Ngô Minh Tuấn","0016036/HCM-CCHN","Chuyên khoa Chẩn đoán hình ảnh (Siêu âm, <RI, CT Scanner, DSA, X-Quang)","Toàn thời gian (Từ 7h00 -16h30) và theo lịch trực gác","Trưởng khoa","Khoa CĐHA; Khoa PTGMHS",null,"BS Cơ hữu"]
[{"$f":"_xlfn.AGGREGATE(3,3,$C$14:C59)","v":46},"00236","Bùi Thị Bích","002690/CT-CCHN","Khám bệnh, chữa bệnh đa khoa - chuyên khoa chẩn đoán hình ảnh","Toàn thời gian (Từ 7h00 -16h30) và theo lịch trực gác","Phó khoa","Khoa CĐHA",null,"BS Cơ hữu"]
[{"$f":"_xlfn.AGGREGATE(3,3,$C$14:C60)","v":47},"00338","Võ Thanh Tùng","000353/KG-CCHN","Chuyên khoa chẩn đoán hình ảnh","Toàn thời gian (Từ 7h00 -16h30) và theo lịch trực gác","Bác sĩ CĐHA","Khoa CĐHA",null,"BS Cơ hữu"]
[{"$f":"_xlfn.AGGREGATE(3,3,$C$14:C61)","v":48},"00489","Trương Hồng Điều","0026068/BYT-CCHN","Chuyên khoa Chẩn đoán hình ảnh","Toàn thời gian (Từ 7h00 -16h30) và theo lịch trực gác","Bác sĩ CĐHA","Khoa CĐHA",null,"BS Cơ hữu"]
[{"$f":"_xlfn.AGGREGATE(3,3,$C$14:C62)","v":49},"00362","Trần Thị Hồng Liên","003477/CT-CCHN","Khám bệnh, chữa bệnh đa khoa - chẩn đoán hình ảnh","Toàn thời gian (Từ 7h00 -16h30) và theo lịch trực gác","Bác sĩ CĐHA","Khoa CĐHA",null,"BS Cơ hữu"]
[{"$f":"_xlfn.AGGREGATE(3,3,$C$14:C63)","v":50},"00391","Nguyễn Thị Nhan","006712/CT-CCHN","Chuyên khoa chẩn đoán hình ảnh","Toàn thời gian (Từ 7h00 -16h30) và theo lịch trực gác","Bác sĩ CĐHA","Khoa CĐHA",null,"BS Cơ hữu"]
[{"$f":"_xlfn.AGGREGATE(3,3,$C$14:C64)","v":51},"00533","Nguyễn Thị Hồng Thắm","006992/CT-CCHN","Chuyên khoa Siêu âm","Bán thời gian (Từ 7h00 -17h00) và theo lịch trực gác","Bác sĩ CĐHA","Khoa CĐHA",null,"BS Cơ hữu"]
[{"$f":"_xlfn.AGGREGATE(3,3,$C$14:C65)","v":52},"00889","Nguyễn Tiến Dũng","000303/ĐNO-CCHN","Chụp và chẩn đoán hình ảnh Xquang, siêu âm, City Scanner","Toàn thời gian (Từ 7h00 -16h30) và theo lịch trực gác","Bác sĩ CĐHA","Khoa CĐHA",null,"BS Cơ hữu"]
[{"$f":"_xlfn.AGGREGATE(3,3,$C$14:C66)","v":53},"00909","Nguyễn Thùy Dung","04825/ST-CCHN","Khám bệnh, chữa bệnh chuyên khoa Nội; Chuyên khoa chẩn đoán hình ảnh","Toàn thời gian (Từ 7h00 -16h30) và theo lịch trực gác","Bác sĩ CĐHA","Khoa CĐHA",null,"BS Cơ hữu"]
[{"$f":"_xlfn.AGGREGATE(3,3,$C$14:C67)","v":54},"00132","Trần Ngọc Diễm","002214/HAUG-CCHN","Thực hiện theo chức năng nhiệm vụ của Điều dưỡng quy định tại Thông tư liên tịch số 26/2015/TTLT-BYT-BNV ngày 07/10/2015","Toàn thời gian (Từ 7h00 -16h30) và theo lịch trực gác","Điều dưỡng trưởng","Khoa CĐHA",null,"ĐD"]
[{"$f":"_xlfn.AGGREGATE(3,3,$C$14:C68)","v":55},"00175","Tăng Thị Tú Hoa","0005877/AG-CCHN","Thực hiện theo chức năng nhiệm vụ của Điều dưỡng quy định tại Thông tư liên tịch số 26/2015/TTLT-BYT-BNV ngày 07/10/2015","Toàn thời gian (Từ 7h00 -16h30) và theo lịch trực gác","Điều dưỡng phó","Khoa CĐHA",null,"ĐD"]
[{"$f":"_xlfn.AGGREGATE(3,3,$C$14:C69)","v":56},"00164","Nguyễn Thị Chúc Linh ","005982/KG-CCHN","Tham gia sơ cứu ban đầu, khám bệnh, chữa bệnh thông thường theo quy định tại Thông tư liên tịch 10/2015/TTLT-BYT-BNV ngày 27/5/2015 của Bộ Y tế, Bộ Nội vụ quy định mã số, tiêu chuẩn chức danh nghề nghiệp y sĩ","Toàn thời gian (Từ 7h00 -16h30) và theo lịch trực gác","Điều dưỡng viên","Khoa CĐHA",null,"ĐD"]
[{"$f":"_xlfn.AGGREGATE(3,3,$C$14:C70)","v":57},"00228","Nguyễn Thanh Loan","001179/BTR-CCHN","Quy định tại Quyết định số 41/2005/QĐ-BNV ngày 22/4/2005 của Bộ trưởng Bộ Nội vụ về việc ban hành tiêu chuẩn nghiệp vụ các ngạch viên chức y tế điều dưỡng","Toàn thời gian (Từ 7h00 -16h30) và theo lịch trực gác","Điều dưỡng viên","Khoa CĐHA",null,"ĐD"]
[{"$f":"_xlfn.AGGREGATE(3,3,$C$14:C71)","v":58},"00535","Hồ Thị Diễm ","007507/CT-CCHN","Thực hiện theo chức năng nhiệm vụ của điều dưỡng quy định theo Thông tư liên tịch số 26/2015/TTLT-BYT-BNV ngày 07/10/2015","Toàn thời gian (Từ 7h00 -16h30) và theo lịch trực gác","Điều dưỡng viên","Khoa CĐHA",null,"ĐD"]
[{"$f":"_xlfn.AGGREGATE(3,3,$C$14:C72)","v":59},"00267","Hà Thị Bích Trâm","006953/CT-CCHN","Thực hiện theo chức năng nhiệm vụ của điều dưỡng quy định theo Thông tư liên tịch số 26/2015/TTLT-BYT ngày 07/10/2015","Toàn thời gian (Từ 7h00 -16h30) và theo lịch trực gác","Điều dưỡng nội soi","Khoa CĐHA",null,"ĐD"]
[{"$f":"_xlfn.AGGREGATE(3,3,$C$14:C73)","v":60},"00136","Đặng Hoàng Tuyến","005082/CT-CCHN","Chuyên khoa chẩn đoán hình ảnh","Toàn thời gian (Từ 7h00 -16h30) và theo lịch trực gác","KTV trưởng","Khoa CĐHA",null,"KTV"]
[{"$f":"_xlfn.AGGREGATE(3,3,$C$14:C74)","v":61},"00137","Tài Đào Trọng Hiếu","005304/BD-CCHN","Tham gia sơ cứu ban đầu, khám bệnh, chữa bệnh thông thường theo quy định tại Thông tư liên tịch 10/2015/TTLT-BYT-BNV ngày 27/5/2015 của Bộ Y tế, Bộ Nội vụ quy định mã số, tiêu chuẩn chức danh nghề nghiệp bác sĩ, bác sĩ y học dự phòng, y sĩ","Toàn thời gian (Từ 7h00 -16h30) và theo lịch trực gác","KTV phó","Khoa CĐHA",null,"KTV"]
[{"$f":"_xlfn.AGGREGATE(3,3,$C$14:C75)","v":62},"00726","Bùi Chí Thiện","001513/BD-CCHN","Kỹ thuật viên chẩn đoán hình ảnh","Toàn thời gian (Từ 7h00 -16h30) và theo lịch trực gác","Kỹ thuật viên","Khoa CĐHA",null,"KTV"]
[{"$f":"_xlfn.AGGREGATE(3,3,$C$14:C76)","v":63},"00253","Phan Thanh Danh","0003568/BD-CCHN","Kỹ thuật viên chẩn đoán hình ảnh","Toàn thời gian (Từ 7h00 -16h30) và theo lịch trực gác","Kỹ thuật viên","Khoa CĐHA",null,"KTV"]
[{"$f":"_xlfn.AGGREGATE(3,3,$C$14:C77)","v":64},"00536","Nguyễn Thị Hồng Anh","0002773/BL-CCHN","Thực hiện kỹ thuật chuyên môn về kỹ thuật hình ảnh y học","Toàn thời gian (Từ 7h00 -16h30) và theo lịch trực gác","Kỹ thuật viên","Khoa CĐHA",null,"KTV"]
[{"$f":"_xlfn.AGGREGATE(3,3,$C$14:C78)","v":65},"00182","Đinh Quang Thông","002011/CT-CCHN","Thực hiện các kỹ thuật thông thường hình ảnh y học","Toàn thời gian (Từ 7h00 -16h30) và theo lịch trực gác","Kỹ thuật viên","Khoa CĐHA",null,"KTV"]
[{"$f":"_xlfn.AGGREGATE(3,3,$C$14:C79)","v":66},"00645","Nguyễn Hữu Nghĩa","003919/CT-CCHN","Kỹ thuật viên hình ảnh y học","Toàn thời gian (Từ 7h00 -16h30) và theo lịch trực gác","Kỹ thuật viên","Khoa CĐHA",null,"KTV"]
[{"$f":"_xlfn.AGGREGATE(3,3,$C$14:C80)","v":67},"00381","Ngô Đình Văn","005617/CT-CCHN","Kỹ thuật viên hình ảnh y học","Toàn thời gian (Từ 7h00 -16h30) và theo lịch trực gác","Kỹ thuật viên","Khoa CĐHA",null,"KTV"]
[{"$f":"_xlfn.AGGREGATE(3,3,$C$14:C81)","v":68},"00439","Đào Duy Tân","006753/CT-CCHN","Tham gia sơ cứu ban đầu, khám bệnh, chữa bệnh thông thường theo quy định tại Thông tư liên tịch 10/2021/TTLT-BYT-BNV ngày 27/5/2015 đối với y sĩ","Toàn thời gian (Từ 7h00 -16h30) và theo lịch trực gác","Kỹ thuật viên","Khoa CĐHA",null,"KTV"]
[{"$f":"_xlfn.AGGREGATE(3,3,$C$14:C82)","v":69},"00846","Cao Hoàng Phúc","006723/CT-CCHN","Kỹ thuật hình ảnh y học","Toàn thời gian (Từ 7h00 -16h30) và theo lịch trực gác","Kỹ thuật viên","Khoa CĐHA",null,"KTV"]
[{"$f":"_xlfn.AGGREGATE(3,3,$C$14:C83)","v":70},"00499","Huỳnh Thị Thúy An","1042/CCHN-D-SYT-CT","Bán lẻ thuốc","Toàn thời gian (Từ 7h00 -16h30) và theo lịch trực gác","Thư ký y khoa - PK Nội soi","Khoa CĐHA",null,"TKYK"]
[{"$f":"_xlfn.AGGREGATE(3,3,$C$14:C84)","v":71},"00650","Hồ Thị Huỳnh Như","005975/CT-CCHN","Tham gia sơ cứu ban đầu, khám bệnh, chữa bệnh thông thường theo quy định tại Thông tư liên tịch 10/2021/TT-TTLT-BNV ngày 27/5/2015 đối với y sĩ","Toàn thời gian (Từ 7h00 -16h30) và theo lịch trực gác","Thư ký y khoa - MRI","Khoa CĐHA",null,"TKYK"]
[{"$f":"_xlfn.AGGREGATE(3,3,$C$14:C85)","v":72},"HT0583","Lê Hồng Phong","003572/ĐNA-CCHN","Khám bệnh, chữa bệnh chuyên khoa nội","Bán thời gian theo lịch trực gác ","Bác sĩ Hợp tác ","Khoa PTGMHS; Khoa Khám bệnh",null,"BS Hợp tác"]
[{"$f":"_xlfn.AGGREGATE(3,3,$C$14:C86)","v":73},"HT00534","Trang Mộng Hải Yên","004510/BYT-CCHN","Khám bệnh, chữa bệnh chuyên khoa Nội tổng hợp","Bán thời gian theo lịch trực gác ","Bác sĩ Hợp tác ","Khoa PTGMHS",null,"BS Hợp tác"]
[{"$f":"_xlfn.AGGREGATE(3,3,$C$14:C87)","v":74},"HT00536","Đỗ Nguyên Tín","001725/BYT-CCHN","Khám bệnh, chữa bệnh chuyên khoa Nhi","Bán thời gian theo lịch trực gác ","Bác sĩ Hợp tác ","Khoa PTGMHS",null,"BS Hợp tác"]
[{"$f":"_xlfn.AGGREGATE(3,3,$C$14:C88)","v":75},"00185","Nguyễn Lưu Giang","003460/BYT-CCHN","Khám bệnh, chữa bệnh chuyên khoa ngoại","Toàn thời gian (Từ 7h00 -16h30) và theo lịch trực gác","Trưởng khoa","Khoa PTGMHS; Khoa Khám bệnh",null,"BS Cơ hữu"]
[{"$f":"_xlfn.AGGREGATE(3,3,$C$14:C89)","v":76},"00492","Mai Văn Muống","007269/AG-CCHN","Khám bệnh, chữa bệnh Nội khoa","Toàn thời gian (Từ 7h00 -16h30) và theo lịch trực gác","Bác sĩ can thiệp","Khoa PTGMHS; Khoa Khám bệnh",null,"BS Cơ hữu"]
[{"$f":"_xlfn.AGGREGATE(3,3,$C$14:C90)","v":77},"00237","Nguyễn Đào Nhật Huy","0026660/BYT-CCHN","Khám bệnh, chữa bệnh chuyên khoa Nội tổng hợp","Toàn thời gian (Từ 7h00 -16h30) và theo lịch trực gác","Bác sĩ can thiệp","Khoa PTGMHS; Khoa Khám bệnh",null,"BS Cơ hữu"]
[{"$f":"_xlfn.AGGREGATE(3,3,$C$14:C91)","v":78},"00110","Nguyễn Thị Mỹ Tiên","000223/CT-CCHN","Thực hiện các kỹ thuật điều dưỡng cơ bản","Toàn thời gian (Từ 7h00 -16h30) và theo lịch trực gác","Điều dưỡng trưởng","Khoa PTGMHS",null,"ĐD"]
[{"$f":"_xlfn.AGGREGATE(3,3,$C$14:C92)","v":79},"00720","Võ Công Lượng","005305/CT-CCHN ","Thực hiện theo chức năng nhiệm vụ của điều dưỡng quy định theo Thông tư liên tịch số 26/2015/TTLT-BYT ngày 07/10/2015","Toàn thời gian (Từ 7h00 -16h30) và theo lịch trực gác","Điều dưỡng viên","Khoa PTGMHS",null,"ĐD"]
[{"$f":"_xlfn.AGGREGATE(3,3,$C$14:C93)","v":80},"00076","Trần Quang Vinh","004537/CT-CCHN","Thực hiện theo chức năng nhiệm vụ của điều dưỡng quy định theo Thông tư liên tịch số 26/2015/TTLT-BYT-BNV ngày 07/10/2015","Toàn thời gian (Từ 7h00 -16h30) và theo lịch trực gác","Điều dưỡng viên","Khoa PTGMHS",null,"ĐD"]
[{"$f":"_xlfn.AGGREGATE(3,3,$C$14:C94)","v":81},"00341","Phan Văn Minh","007140/CT-CCHN","Thực hiện theo chức năng nhiệm vụ của điều dưỡng quy định theo Thông tư liên tịch số 26/2015/TTLT-BYT và BNV ngày 07/10/2015","Toàn thời gian (Từ 7h00 -16h30) và theo lịch trực gác","Điều dưỡng viên","Khoa PTGMHS",null,"ĐD"]
[{"$f":"_xlfn.AGGREGATE(3,3,$C$14:C95)","v":82},"00040","Nguyễn Hải Đăng","006564/CT-CCHN","Thực hiện theo chức năng nhiệm vụ của điều dưỡng quy định theo Thông tư liên tịch số 26/2015/TTLT-BYT ngày 07/10/2015","Toàn thời gian (Từ 7h00 -16h30) và theo lịch trực gác","Điều dưỡng viên","Khoa PTGMHS",null,"ĐD"]
[{"$f":"_xlfn.AGGREGATE(3,3,$C$14:C96)","v":83},"00330","Lê Hoàng Tiến ","007216/CT-CCHN","Thực hiện theo chức năng nhiệm vụ của điều dưỡng quy định theo Thông tư liên tịch số 26/2015/TTLT-BYT và BNV ngày 07/10/2015","Toàn thời gian (Từ 7h00 -16h30) và theo lịch trực gác","Điều dưỡng viên","Khoa PTGMHS",null,"ĐD"]
[{"$f":"_xlfn.AGGREGATE(3,3,$C$14:C97)","v":84},"00189","Hồ Văn Lộc","006566/CT-CCHN","Thực hiện theo chức năng nhiệm vụ của điều dưỡng quy định theo Thông tư liên tịch số 26/2015/TTLT-BYT ngày 07/10/2015","Toàn thời gian (Từ 7h00 -16h30) và theo lịch trực gác","Điều dưỡng viên","Khoa PTGMHS",null,"ĐD"]
[{"$f":"_xlfn.AGGREGATE(3,3,$C$14:C98)","v":85},"00890","Huỳnh Thanh Bình","005089/CT-CCHN","Thực hiện theo chức năng nhiệm vụ của điều dưỡng quy định theo Thông tư liên tịch số 26/2015/TTLT-BYT ngày 07/10/2015","Toàn thời gian (Từ 7h00 -16h30) và theo lịch trực gác","Điều dưỡng viên","Khoa PTGMHS",null,"ĐD"]
[{"$f":"_xlfn.AGGREGATE(3,3,$C$14:C99)","v":86},"00138","Phan Văn Nghĩa","0023739/HCM-CCHN","Kỹ thuật viên X-Quang","Toàn thời gian (Từ 7h00 -16h30) và theo lịch trực gác","Kỹ thuật viên","Khoa PTGMHS",null,"KTV"]
[{"$f":"_xlfn.AGGREGATE(3,3,$C$14:C100)","v":87},"00380","Nguyễn Quốc Dũng","0002809/BTR-CCHN","Kỹ thuật hình ảnh y học","Toàn thời gian (Từ 7h00 -16h30) và theo lịch trực gác","Kỹ thuật viên","Khoa PTGMHS",null,"KTV"]
[{"$f":"_xlfn.AGGREGATE(3,3,$C$14:C101)","v":88},"00140","Lê Hoàng Mai","310/CCHN-D-SYT-CT","Bảo quản; buôn bán thuốc, nguyên liệu làm thuốc; bán lẻ thuốc; Dược lâm sàng","Toàn thời gian (Từ 7h00 -16h30) và theo lịch trực gác","Trưởng khoa ","Dược",null,"DS"]
[{"$f":"_xlfn.AGGREGATE(3,3,$C$14:C102)","v":89},"00289","Phùng Thị Kim So","059/HAUG-CCHND","Bán lẻ thuốc","Toàn thời gian (Từ 7h00 -16h30) và theo lịch trực gác","Phó khoa ","Dược",null,"DS"]
[{"$f":"_xlfn.AGGREGATE(3,3,$C$14:C103)","v":90},"00171","Nguyễn Lê Anh Thư","2385/CCHN-D-SYT-CT","Bán lẻ thuốc","Toàn thời gian (Từ 7h00 -16h30) và theo lịch trực gác","Ds Nội trú","Dược",null,"DS"]
[{"$f":"_xlfn.AGGREGATE(3,3,$C$14:C104)","v":91},"00212","Ngô Ngọc Tuyền ","1420/AG-CCHND","Nhà thuốc","Toàn thời gian (Từ 7h00 -16h30) và theo lịch trực gác","DS-QL kho chẵn thuốc","Dược",null,"DS"]
[{"$f":"_xlfn.AGGREGATE(3,3,$C$14:C105)","v":92},"00145","Lê Thị Nhật Linh","2396/CCHN-D-SYT-CT","Bán lẻ thuốc","Toàn thời gian (Từ 7h00 -16h30) và theo lịch trực gác","Ds_HC","Dược",null,"DS"]
[{"$f":"_xlfn.AGGREGATE(3,3,$C$14:C106)","v":93},"00144","Lê Thị Khánh Linh","2397/CCHN-D-SYT-CT","Bán lẻ thuốc","Toàn thời gian (Từ 7h00 -16h30) và theo lịch trực gác","DS-QL kho chẵn vật tư","Dược",null,"DS"]
[{"$f":"_xlfn.AGGREGATE(3,3,$C$14:C107)","v":94},"00438","Phạm Huỳnh Phương Thảo","1063/CCHN-D-SYT-CT","Bán lẻ thuốc","Toàn thời gian (Từ 7h00 -16h30) và theo lịch trực gác","Ds_HC","Dược",null,"DS"]
[{"$f":"_xlfn.AGGREGATE(3,3,$C$14:C108)","v":95},"00903","Lê Diễm Kiều","833/CT-CCHND","Nhà thuốc","Toàn thời gian (Từ 7h00 -16h30) và theo lịch trực gác","Ds_HC","Dược",null,"DS"]
[{"$f":"_xlfn.AGGREGATE(3,3,$C$14:C109)","v":96},"00396","Lê Ngọc Tấn","1065/CT-CCHND","Nhà thuốc","Toàn thời gian (Từ 7h00 -16h30) và theo lịch trực gác","Ds Nội trú","Dược",null,"DS"]
[{"$f":"_xlfn.AGGREGATE(3,3,$C$14:C110)","v":97},"00426","Đoàn Công Hậu","7309/HCM-CCHND","Cơ sở  buôn bán dược liệu, thuốc đông y, thuốc từ dược liệu\nCơ sở bán lẻ thuốc đông y, thuốc từ dược liệu, quầy thuốc\nĐại lý bán thuốc của doanh nghiệp, tủ thuốc trạm y tế\n","Toàn thời gian (Từ 7h00 -16h30) và theo lịch trực gác","Ds Nội trú","Dược",null,"DS"]
[{"$f":"_xlfn.AGGREGATE(3,3,$C$14:C111)","v":98},"00005","Nguyễn Thị Hồng Thanh","379/CCHN-D-SYT-CT","Bán lẻ thuốc","Toàn thời gian (Từ 7h00 -16h30) và theo lịch trực gác","Ds_ Nội trú","Dược",null,"DS"]
[{"$f":"_xlfn.AGGREGATE(3,3,$C$14:C112)","v":99},"00340","Nguyễn Hữu Yến Quyên","2860/TG-CCHND","Doanh nghiệp bán buôn thuốc; bán buôn vắc xin, sinh phẩm y tế; xuất khẩu, nhập khẩu thuốc; bảo quản thuốc, nhà thuốc","Toàn thời gian (Từ 7h00 -16h30) và theo lịch trực gác","Trưởng đơn vị Nhà thuốc","Dược",null,"DS"]
[{"$f":"_xlfn.AGGREGATE(3,3,$C$14:C113)","v":100},"00141","Lê Hoan Thụy ","181/HCM-CCHND","Cơ sở bán lẻ thuốc: Nhà thuốc","Toàn thời gian (Từ 7h00 -16h30) và theo lịch trực gác","Ds_ Ngoại trú BHYT","Dược",null,"DS"]
[{"$f":"_xlfn.AGGREGATE(3,3,$C$14:C114)","v":101},"00479","Lê Thị Bích Tuyền","397/CCHN-D-SYT-CT","Bán lẻ thuốc","Toàn thời gian (Từ 7h00 -16h30) và theo lịch trực gác","Ds_ Ngoại trú","Dược",null,"DS"]
[{"$f":"_xlfn.AGGREGATE(3,3,$C$14:C115)","v":102},"00557","Trần Thị Thu Thảo","2634/CCHN-D-SYT-CT","Bán lẻ thuốc","Toàn thời gian (Từ 7h00 -16h30) và theo lịch trực gác","Ds_ Ngoại trú","Dược",null,"DS"]
[{"$f":"_xlfn.AGGREGATE(3,3,$C$14:C116)","v":103},"00643","Trần Thị Bích Ngọc","55/CCHN-D-SYT-TV","Bán lẻ thuốc","Toàn thời gian (Từ 7h00 -16h30) và theo lịch trực gác","Ds_ Ngoại trú","Dược",null,"DS"]
[{"$f":"_xlfn.AGGREGATE(3,3,$C$14:C117)","v":104},"00150","Nguyễn Thị Trúc Linh","1877/CCHN-D-SYT-CT","Bán lẻ thuốc","Toàn thời gian (Từ 7h00 -16h30) và theo lịch trực gác","Ds_ Ngoại trú","Dược",null,"DS"]
[{"$f":"_xlfn.AGGREGATE(3,3,$C$14:C118)","v":105},"00520","Huỳnh Thị Mỹ Hậu","3219/CCHN-D-SYT-CT","Bán lẻ thuốc","Toàn thời gian (Từ 7h00 -16h30) và theo lịch trực gác","Ds_ Ngoại trú","Dược",null,"DS"]
[{"$f":"_xlfn.AGGREGATE(3,3,$C$14:C119)","v":106},"00802","Nguyễn Thị Yến Nhi","421/CCHN-D-SYT-HAUG","Bán lẻ thuốc","Toàn thời gian (Từ 7h00 -16h30) và theo lịch trực gác","Ds_ Ngoại trú","Dược",null,"DS"]
[{"$f":"_xlfn.AGGREGATE(3,3,$C$14:C120)","v":107},"00848","Võ Yến Khoa","8299/CCHN-D-SYT-HCM","Bán lẻ dược","Toàn thời gian (Từ 7h00 -16h30) và theo lịch trực gác","Ds cấp phát thuốc ngoại trú","Dược",null,"DS"]
[{"$f":"_xlfn.AGGREGATE(3,3,$C$14:C121)","v":108},"00899","Bùi Thị Quỳnh Như","2806/CCHN-D-SYT-CT","Bán lẻ thuốc","Toàn thời gian (Từ 7h00 -16h30) và theo lịch trực gác","Ds cấp phát thuốc ngoại trú","Dược",null,"DS"]
[{"$f":"_xlfn.AGGREGATE(3,3,$C$14:C122)","v":109},"00900","Trương Vĩnh Đức","2099/CCHN-D-SYT-CM","Mua và bán lẻ thuốc thuộc Danh mục thuốc thiết yếu và Danh mục thuốc không kê đơn, trừ vắc xin","Toàn thời gian (Từ 7h00 -16h30) và theo lịch trực gác","Ds cấp phát thuốc ngoại trú","Dược",null,"DS"]
[{"$f":"_xlfn.AGGREGATE(3,3,$C$14:C123)","v":110},"00803","Huỳnh Huy","421/CM-CCHND","Doanh nghiệp bán buôn thuốc; Nhà thuốc; Quầy thuốc; Đại lý thuốc","Toàn thời gian (Từ 7h00 -16h30) và theo lịch trực gác","Ds cấp phát thuốc ngoại trú","Dược",null,"DS"]
[{"$f":"_xlfn.AGGREGATE(3,3,$C$14:C124)","v":111},"HT00527","Nguyễn Trân Trân","0026564/BYT-CCHN","Khám bệnh, chữa bệnh chuyên khoa Nội","Bán thời gian và theo lịch trực gác","Bác sĩ hợp tác","Khám bệnh; Ngoại TH",null,"BS Hợp tác"]
[{"$f":"_xlfn.AGGREGATE(3,3,$C$14:C125)","v":112},"HT00507","Tống Hải Dương","002998/CT-CCHN","Khám bệnh, chữa bệnh chuyên khoa ngoại","Bán thời gian và theo lịch trực gác","Bác sĩ hợp tác","Khám bệnh; Ngoại TH",null,"BS Hợp tác"]
[{"$f":"_xlfn.AGGREGATE(3,3,$C$14:C126)","v":113},"HT00508","Huỳnh Trọng Tính","006771/CT-CCHN","Khám bệnh, chữa bệnh ngoại khoa","Bán thời gian và theo lịch trực gác","Bác sĩ hợp tác","Khám bệnh; Ngoại TH",null,"BS Hợp tác"]
[{"$f":"_xlfn.AGGREGATE(3,3,$C$14:C127)","v":114},"HT00509","Trần Minh Quân","007037/CT-CCHN","Khám bệnh, chữa bệnh ngoại ","Bán thời gian và theo lịch trực gác","Bác sĩ hợp tác","Khám bệnh; Ngoại TH",null,"BS Hợp tác"]
[{"$f":"_xlfn.AGGREGATE(3,3,$C$14:C128)","v":115},"HT00510","Trần Minh Điền","002369/HAUG-CCHN","Khám bệnh, chữa bệnh đa khoa","Bán thời gian và theo lịch trực gác","Bác sĩ hợp tác","Khám bệnh; Ngoại TH",null,"BS Hợp tác"]
[{"$f":"_xlfn.AGGREGATE(3,3,$C$14:C129)","v":116},"HT00511","Đoàn Anh Vũ","0026565/BYT-CCHN","Khám bệnh, chữa bệnh chuyên khoa ngoại","Bán thời gian và theo lịch trực gác","Bác sĩ hợp tác","Khám bệnh; Ngoại TH",null,"BS Hợp tác"]
[{"$f":"_xlfn.AGGREGATE(3,3,$C$14:C130)","v":117},"HT00512","Dương Tuấn Tú","006456/CT-CCHN","Khám bệnh, chữa bệnh ngoại khoa","Bán thời gian và theo lịch trực gác","Bác sĩ hợp tác","Khám bệnh; Ngoại TH",null,"BS Hợp tác"]
[{"$f":"_xlfn.AGGREGATE(3,3,$C$14:C131)","v":118},"HT00516","La Vĩnh Phúc","0026479/BYT-CCHN","Khám bệnh, chữa bệnh chuyên khoa Ngoại","Bán thời gian và theo lịch trực gác","Bác sĩ hợp tác","Khám bệnh; Ngoại TH",null,"BS Hợp tác"]
[{"$f":"_xlfn.AGGREGATE(3,3,$C$14:C132)","v":119},"HT00544","Võ Thị Ngọc Hân","003640/BYT-CCHN","Khám bệnh, chữa bệnh chuyên khoa Tai Mũi Họng","Bán thời gian và theo lịch trực gác","Hợp tác_Bác sĩ phòng khám","Khám bệnh; PTGMHS",null,"BS Hợp tác"]
[{"$f":"_xlfn.AGGREGATE(3,3,$C$14:C133)","v":120},"HT00549","Lê Thanh Nin","006022/ĐNAI-CCHN","Khám bệnh, chữa bệnh chuyên khoa Tai Mũi Họng","Toàn thời gian (Từ 7h00 -16h30) và theo lịch trực gác","Hợp tác_Bác sĩ phòng khám","Khám bệnh",null,"BS Cơ hữu"]
[{"$f":"_xlfn.AGGREGATE(3,3,$C$14:C134)","v":121},"00250","Nguyễn Thanh Liệt","005710/BYT-CCHN","Khám bệnh, chữa bệnh chuyên khoa Mắt","Bán thời gian (Từ 7h00 -17h30) và theo lịch trực gác","Hợp tác_Bác sĩ phòng khám","Khám bệnh",null,"BS Hợp tác"]
[{"$f":"_xlfn.AGGREGATE(3,3,$C$14:C135)","v":122},"00002","Phan Trịnh Minh Hiếu","001519/BYT-CCHN","Khám bệnh, chữa bệnh Sản phụ khoa","Toàn thời gian (Từ 7h00 -16h30) và theo lịch trực gác","Phó Giám đốc kiêm bác sĩ điều trị","Khám bệnh",null,"BS Cơ hữu"]
[{"$f":"_xlfn.AGGREGATE(3,3,$C$14:C136)","v":123},"00385","Vương Thị Nguyên Chi","003605/BYT-CCHN","Khám bệnh, chữa bệnh chuyên khoa Nội tổng hợp","Toàn thời gian (Từ 7h00 -16h30) và theo lịch trực gác","Trưởng khoa","Khám bệnh",null,"BS Cơ hữu"]
[{"$f":"_xlfn.AGGREGATE(3,3,$C$14:C137)","v":124},"00114","Trầm Thị Kim Sa","001370/CT-CCHN","Khám bệnh, chữa bệnh đa khoa","Toàn thời gian (Từ 7h00 -16h30) và theo lịch trực gác","Bác sĩ điều trị","Khám bệnh",null,"BS Cơ hữu"]
[{"$f":"_xlfn.AGGREGATE(3,3,$C$14:C138)","v":125},"00420","Thái Thị Xuân Phương","002686/CT-CCHN","Khám bệnh, chữa bệnh nội khoa - Bác sỹ gia đình","Toàn thời gian (Từ 7h00 -16h30) và theo lịch trực gác","Bác sĩ điều trị","Khám bệnh",null,"BS Cơ hữu"]
[{"$f":"_xlfn.AGGREGATE(3,3,$C$14:C139)","v":126},"00929","Ngô Kế Hoàng Anh","031909/BYT-CCHN","Khám, chữa bệnh chuyên khoa nội tổng hợp","Toàn thời gian (Từ 7h00 -16h30) và theo lịch trực gác","Bác sĩ điều trị","Khoa Khám bệnh; Khoa CĐHA",null,"BS Cơ hữu"]
[{"$f":"_xlfn.AGGREGATE(3,3,$C$14:C140)","v":127},"00059","Nguyễn Thị Thủy Tiên","042487/HCM-CCHN","Thực hiện phạm vi hoạt động theo quy định tại Thông tư số 26/2015/TTLT-BYT-BNV ngày 07/10/2015 quy định mã số, tiêu chuẩn chức danh nghề nghiệp điều dưỡng","Toàn thời gian (Từ 7h00 -16h30) và theo lịch trực gác","Điều dưỡng trưởng","Khám bệnh",null,"ĐD"]
[{"$f":"_xlfn.AGGREGATE(3,3,$C$14:C141)","v":128},"00067","Lê Thị Thắm","006578/CT-CCHN","Thực hiện theo chức năng nhiệm vụ của điều dưỡng quy định theo Thông tư liên tịch số 26/2015/TTLT-BYT ngày 07/10/2015","Toàn thời gian (Từ 7h00 -16h30) và theo lịch trực gác","Điều dưỡng phó ","Khám bệnh",null,"ĐD"]
[{"$f":"_xlfn.AGGREGATE(3,3,$C$14:C142)","v":129},"00655","Trần Thị Thùy Dương","0005857/AG-CCHN","Thực hiện theo chức năng nhiệm vụ của điều dưỡng quy định theo Thông tư liên tịch số 26/2015/TTLT-BYT-BNV ngày 07/10/2015","Toàn thời gian (Từ 7h00 -16h30) và theo lịch trực gác","Điều dưỡng viên ","Khám bệnh",null,"ĐD"]
[{"$f":"_xlfn.AGGREGATE(3,3,$C$14:C143)","v":130},"00368","Trần Thị Thu Y","007144/CT-CCHN","Thực hiện theo chức năng nhiệm vụ của điều dưỡng quy định theo Thông tư liên tịch số 26/2015/TTLT-BYT và BNV ngày 07/10/2015","Toàn thời gian (Từ 7h00 -16h30) và theo lịch trực gác","Điều dưỡng viên ","Khám bệnh",null,"ĐD"]
[{"$f":"_xlfn.AGGREGATE(3,3,$C$14:C144)","v":131},"00064","Trần Thị Diễm My","006575/CT-CCHN","Thực hiện theo chức năng nhiệm vụ của điều dưỡng quy định theo Thông tư liên tịch số 26/2015/TTLT-BYT ngày 07/10/2015","Toàn thời gian (Từ 7h00 -16h30) và theo lịch trực gác","Điều dưỡng viên","Khám bệnh",null,"ĐD"]
[{"$f":"_xlfn.AGGREGATE(3,3,$C$14:C145)","v":132},"00710","Trần Thị Bảo Thoa","0002599/ST-CCHN","Theo quy định tại Quyết định số 41/2005/QĐ-BNV ngày 22/4/2005 của Bộ trưởng Bộ Nội vụ về việc ban hành tiêu chuẩn nghiệp vụ các ngạch viên chức y tế điều dưỡng","Toàn thời gian (Từ 7h00 -16h30) và theo lịch trực gác","Điều dưỡng viên ","Khám bệnh",null,"ĐD"]
[{"$f":"_xlfn.AGGREGATE(3,3,$C$14:C146)","v":133},"00068","Ngô Thị Thúy Khang","006576/CT-CCHN","Thực hiện theo chức năng nhiệm vụ của điều dưỡng quy định theo Thông tư liên tịch số 26/2015/TTLT-BYT ngày 07/10/2015","Toàn thời gian (Từ 7h00 -16h30) và theo lịch trực gác","Điều dưỡng viên","Khám bệnh",null,"ĐD"]
[{"$f":"_xlfn.AGGREGATE(3,3,$C$14:C147)","v":134},"00335","Lê Thị Hương Giang","006333/CT-CCHN","Thực hiện theo chức năng nhiệm vụ của điều dưỡng quy định theo Thông tư liên tịch số 26/2015/TTLT-BYT ngày 07/10/2015","Toàn thời gian (Từ 7h00 -16h30) và theo lịch trực gác","Điều dưỡng viên","Khám bệnh",null,"ĐD"]
[{"$f":"_xlfn.AGGREGATE(3,3,$C$14:C148)","v":135},"00423","Huỳnh Thị Huỳnh Mai","004852/LA-CCHN","Thực hiện theo Thông tư liên tịch số 26/2015/TTLT-BYT-BNV ngày 07/10/2015 của Bộ Y tế, Bội Nội vụ quy định mã số, tiêu chuẩn chức danh nghề nghiệp điều dưỡng","Toàn thời gian (Từ 7h00 -16h30) và theo lịch trực gác","Điều dưỡng viên ","Khám bệnh",null,"ĐD"]
[{"$f":"_xlfn.AGGREGATE(3,3,$C$14:C149)","v":136},"00365","Bạch Thị Hồng Phượng","007147/CT-CCHN","Thực hiện theo chức năng nhiệm vụ của điều dưỡng quy định theo Thông tư liên tịch số 26/2015/TTLT-BYT và BNV ngày 07/10/2015","Toàn thời gian (Từ 7h00 -16h30) và theo lịch trực gác","Điều dưỡng viên ","Khám bệnh",null,"ĐD"]
[{"$f":"_xlfn.AGGREGATE(3,3,$C$14:C150)","v":137},"00728","Trần Thị Ngọc My","QY120064/CCHN-BQP","Thực hiện nhiệm vụ chuyên môn Điều dưỡng","Toàn thời gian (Từ 7h00 -16h30) và theo lịch trực gác","Điều dưỡng viên ","Khám bệnh",null,"ĐD"]
[{"$f":"_xlfn.AGGREGATE(3,3,$C$14:C151)","v":138},"00905","Lý Tiểu Lệ","004749/CM-CCHN","Thực hiện phạm vi chuyên môn theo quy định tại Thông tư 26/2015/TTLT-BYT-BNV ngày 07/10/2015","Toàn thời gian (Từ 7h00 -16h30) và theo lịch trực gác","Điều dưỡng viên","Khám bệnh",null,"ĐD"]
[{"$f":"_xlfn.AGGREGATE(3,3,$C$14:C152)","v":139},"00579","Vũ Hoàng Trung","004363/BYT-CCHN","Chuyên khoa X Quang","Toàn thời gian (Từ 7h00 -16h30) và theo lịch trực gác","Trưởng khoa","Khoa KSNK; Khoa CĐHA",null,"Bs cơ hữu"]
[{"$f":"_xlfn.AGGREGATE(3,3,$C$14:C153)","v":140},"00585","Nguyễn Thị Mỹ Loan","000502/CT-CCHN","Thực hiện các kỹ thuật điều dưỡng cơ bản","Toàn thời gian (Từ 7h00 -16h30) và theo lịch trực gác","Điều dưỡng viên - Dụng cụ","Khoa KSNK",null,"ĐD"]
[{"$f":"_xlfn.AGGREGATE(3,3,$C$14:C154)","v":141},"HT00541","Trần Duy Vũ","036994/BYT-CCHN","Khám bệnh, chữa bệnh chuyên khoa Ngoại","Bán thời gian và theo lịch trực gác ","Bác sĩ hợp tác","Khoa Ngoại Tổng hợp",null,"BS Hợp tác"]
[{"$f":"_xlfn.AGGREGATE(3,3,$C$14:C155)","v":142},"HT00543","La Văn Phú","000444/CT-CCHN","Khám bệnh, chữa bệnh chuyên khoa Ngoại","Bán thời gian và theo lịch trực gác ","Bác sĩ hợp tác","Khoa Ngoại Tổng hợp",null,"BS Hợp tác"]
[{"$f":"_xlfn.AGGREGATE(3,3,$C$14:C156)","v":143},"HT00540","Nguyễn Duy Linh","00026480/BYT-CCHN","Khám bệnh, chữa bệnh chuyên khoa Ngoại","Bán thời gian và theo lịch trực gác ","Hợp tác – BS trực thường trú ngoại thần kinh ","Khoa Ngoại Tổng hợp",null,"BS Hợp tác"]
[{"$f":"_xlfn.AGGREGATE(3,3,$C$14:C157)","v":144},"00441","Nguyễn Đông Quân","004385/BYT-CCHN","Khám bệnh, chữa bệnh chuyên khoa ngoại thần kinh","Bán thời gian và theo lịch trực gác ","Hợp tác – BS Ngoại thần kinh_trực thường trú ","Khoa Ngoại Tổng hợp",null,"BS Hợp tác"]
[{"$f":"_xlfn.AGGREGATE(3,3,$C$14:C158)","v":145},"00001","Trần Chí Cường","001257/BYT-CCHN","Khám bệnh, chữa bệnh chuyên khoa Ngoại Thần kinh","Toàn thời gian (Từ 7h00 -16h30) và theo lịch trực gác","Giám đốc kiêm trưởng khoa","Khoa Ngoại tổng hợp; Khoa PTGMHS; Khám bệnh","4819/QĐ-S.I.S","BS Cơ hữu"]
[{"$f":"_xlfn.AGGREGATE(3,3,$C$14:C159)","v":146},"00113","Phương Hồng Thọ","000098/CT-CCHN","Khám, chữa bệnh Đa khoa","Toàn thời gian (Từ 7h00 -16h30) và theo lịch trực gác","Phó khoa","Khoa Ngoại Tổng hợp; Khoa Khám bệnh","4919A/QĐ-S.I.S; 4919E/QĐ-S.I.S;","BS Cơ hữu"]
[{"$f":"_xlfn.AGGREGATE(3,3,$C$14:C160)","v":147},"00357","Nguyễn Kim Phụng","005665/CT-CCHN","Khám bệnh, chữa bệnh chuyên khoa Nội","Toàn thời gian (Từ 7h00 -16h30) và theo lịch trực gác","Phó khoa","Khoa Ngoại Tổng hợp; Khoa Khám bệnh",null,"BS Cơ hữu"]
[{"$f":"_xlfn.AGGREGATE(3,3,$C$14:C161)","v":148},"00458","Phan Thị Thu","000379/LA-CCHN","Khám bệnh, chữa bệnh Nội khoa","Toàn thời gian (Từ 7h00 -16h30) và theo lịch trực gác","Bác sĩ điều trị","Khoa Ngoại Tổng hợp; Khoa Khám bệnh",null,"BS Cơ hữu"]
[{"$f":"_xlfn.AGGREGATE(3,3,$C$14:C162)","v":149},"00470","Nguyễn Lâm Giang","0004328/VL-CCHN","Khám bệnh, chữa bệnh chuyên khoa Nội ","Toàn thời gian (Từ 7h00 -16h30) và theo lịch trực gác","Bác sĩ điều trị","Khoa Ngoại Tổng hợp; Khoa Khám bệnh",null,"BS Cơ hữu"]
[{"$f":"_xlfn.AGGREGATE(3,3,$C$14:C163)","v":150},"00358","Lê Minh Thắng","007148/CT-CCHN","Khám bệnh, chữa bệnh chuyên khoa ngoại","Toàn thời gian (Từ 7h00 -16h30) và theo lịch trực gác","Bác sĩ điều trị","Khoa Ngoại Tổng hợp; Khoa Khám bệnh; Khoa PTGMHS","12521B/QĐ-S.I.S;12222A/QĐ-S.I.S","BS Cơ hữu"]
[{"$f":"_xlfn.AGGREGATE(3,3,$C$14:C164)","v":151},"00402","Dương Hoàng Linh","006369/KG-CCHN","Khám bệnh, chữa bệnh đa khoa","Toàn thời gian (Từ 7h00 -16h30) và theo lịch trực gác","Bác sĩ điều trị","Khoa Ngoại Tổng hợp; Khoa Khám bệnh; Khoa PTGMHS","12521D/QĐ-S.I.S;12222B/QĐ-S.I.S","BS Cơ hữu"]
[{"$f":"_xlfn.AGGREGATE(3,3,$C$14:C165)","v":152},"00838","Trần Đắc Đức","007053/CT-CCHN","Khám bệnh, chữa bệnh nội khoa","Toàn thời gian (Từ 7h00 -16h30) và theo lịch trực gác","Bác sĩ điều trị","Khoa Ngoại Tổng hợp; Khoa Khám bệnh",null,"BS Cơ hữu"]
[{"$f":"_xlfn.AGGREGATE(3,3,$C$14:C166)","v":153},"00847","Nguyễn Anh Mỹ","046062/BYT-CCHN","Khám bệnh, chữa bệnh chuyên khoa Nội","Toàn thời gian (Từ 7h00 -16h30) và theo lịch trực gác","Bác sĩ điều trị","Khoa Ngoại Tổng hợp; Khoa Khám bệnh",null,"BS Cơ hữu"]
[{"$f":"_xlfn.AGGREGATE(3,3,$C$14:C167)","v":154},"00930","Đặng Thị Như Mai","07870/AG-CCHN","Khám bệnh, chữa bệnh đa khoa","Toàn thời gian (Từ 7h00 -16h30) và theo lịch trực gác","Bác sĩ điều trị","Khoa Ngoại Tổng hợp; Khoa Khám bệnh",null,"BS Cơ hữu"]
[{"$f":"_xlfn.AGGREGATE(3,3,$C$14:C168)","v":155},"00935","Trần Hoàng Ân","004641/CT-CCHN","Khám bệnh, chữa bệnh nội khoa","Toàn thời gian (Từ 7h00 -16h30) và theo lịch trực gác","Bác sĩ điều trị","Khoa Ngoại Tổng hợp; Khoa Khám bệnh",null,"BS Cơ hữu"]
[{"$f":"_xlfn.AGGREGATE(3,3,$C$14:C169)","v":156},"00094","Nguyễn Thị Thúy Quyên","000686/CT-CCHN","Thực hiện các kỹ thuật điều dưỡng cơ bản","Toàn thời gian (Từ 7h00 -16h30) và theo lịch trực gác","Điều dưỡng trưởng","Khoa Ngoại Tổng hợp",null,"ĐD"]
[{"$f":"_xlfn.AGGREGATE(3,3,$C$14:C170)","v":157},"00539","Huỳnh Nguyễn Nguyên Hảo","007346/CT-CCHN","Thực hiện theo chức năng nhiệm vụ của điều dưỡng quy định theo Thông tư liên tịch số 26/2015/TTLT-BYT-BNV ngày 07/10/2015","Toàn thời gian (Từ 7h00 -16h30) và theo lịch trực gác","Điều dưỡng viên","Khoa Ngoại Tổng hợp",null,"ĐD"]
[{"$f":"_xlfn.AGGREGATE(3,3,$C$14:C171)","v":158},"00568","Trần Phương Vy","007682/CT-CCHN","Thực hiện theo chức năng nhiệm vụ của điều dưỡng quy định theo Thông tư liên tịch số 26/2015/TTLT-BYT-BNV ngày 07/10/2015","Toàn thời gian (Từ 7h00 -16h30) và theo lịch trực gác","Điều dưỡng viên","Khoa Ngoại Tổng hợp",null,"ĐD"]
[{"$f":"_xlfn.AGGREGATE(3,3,$C$14:C172)","v":159},"00389","Nguyễn Thị Mỹ Duyên ","004274/CT-CCHN","Thực hiện theo chức năng nhiệm vụ của điều dưỡng quy định tại Thông tư liên tịch số 26/2015/TTLT-BYT-BNV ngày 07/10/2015","Toàn thời gian (Từ 7h00 -16h30) và theo lịch trực gác","Điều dưỡng viên","Khoa Ngoại Tổng hợp",null,"ĐD"]
[{"$f":"_xlfn.AGGREGATE(3,3,$C$14:C173)","v":160},"00165","Nguyễn Thành Trung","006377/CT-CCHN","Thực hiện theo chức năng nhiệm vụ của điều dưỡng quy định theo Thông tư liên tịch số 26/2015/TTLT-BYT ngày 07/10/2015","Toàn thời gian (Từ 7h00 -16h30) và theo lịch trực gác","Điều dưỡng viên","Khoa Ngoại Tổng hợp",null,"ĐD"]
[{"$f":"_xlfn.AGGREGATE(3,3,$C$14:C174)","v":161},"00129","Nguyễn Thanh Hiểu","000800/CT-CCHN","Thực hiện các kỹ thuật điều dưỡng cơ bản","Toàn thời gian (Từ 7h00 -16h30) và theo lịch trực gác","Điều dưỡng viên","Khoa Ngoại Tổng hợp",null,"ĐD"]
[{"$f":"_xlfn.AGGREGATE(3,3,$C$14:C175)","v":162},"00411","Ngô Kim Điền","007209/CT-CCHN","Thực hiện theo chức năng nhiệm vụ của điều dưỡng quy định theo Thông tư liên tịch số 26/2015/TTLT-BYT và BNV ngày 07/10/2015","Toàn thời gian (Từ 7h00 -16h30) và theo lịch trực gác","Điều dưỡng viên","Khoa Ngoại Tổng hợp",null,"ĐD"]
[{"$f":"_xlfn.AGGREGATE(3,3,$C$14:C176)","v":163},"00356","Huỳnh Nhi","002359/HAUG-CCHN","Thực hiện theo chức năng nhiệm vụ của Y sĩ quy định tại Thông tư liên tịch số 10/2015/TTLT-BYT-BNV ngày 27/05/2015","Toàn thời gian (Từ 7h00 -16h30) và theo lịch trực gác","Điều dưỡng viên","Khoa Ngoại Tổng hợp",null,"ĐD"]
[{"$f":"_xlfn.AGGREGATE(3,3,$C$14:C177)","v":164},"00569","Huỳnh Hoàng Kim Cương","007681/CT-CCHN","Thực hiện theo chức năng nhiệm vụ của điều dưỡng quy định theo Thông tư liên tịch số 26/2015/TTLT-BYT-BNV ngày 07/10/2015","Toàn thời gian (Từ 7h00 -16h30) và theo lịch trực gác","Điều dưỡng viên","Khoa Ngoại Tổng hợp",null,"ĐD"]
[{"$f":"_xlfn.AGGREGATE(3,3,$C$14:C178)","v":165},"00888","Nguyễn Thị Tho","006440/CT-CCHN","Thực hiện theo chức năng nhiệm vụ của điều dưỡng quy định theo Thông tư liên tịch số 26/2015/TTLT-BYT ngày 07/10/2015","Toàn thời gian (Từ 7h00 -16h30) và theo lịch trực gác","Điều dưỡng viên","Khoa Ngoại Tổng hợp",null,"ĐD"]
[{"$f":"_xlfn.AGGREGATE(3,3,$C$14:C179)","v":166},"00901","Đào Kim Thi","005217/CT-CCHN","Thực hiện theo chức năng nhiệm vụ của điều dưỡng quy định theo Thông tư liên tịch số 26/2015/TTLT-BYT ngày 07/10/2015","Toàn thời gian (Từ 7h00 -16h30) và theo lịch trực gác","Điều dưỡng viên","Khoa Ngoại Tổng hợp",null,"ĐD"]
[{"$f":"_xlfn.AGGREGATE(3,3,$C$14:C180)","v":167},"00904","Lâm Thị Diệu Linh","005803/CT-CCHN","Thực hiện theo chức năng nhiệm vụ của điều dưỡng quy định theo Thông tư liên tịch số 26/2015/TTLT-BYT ngày 07/10/2015","Toàn thời gian (Từ 7h00 -16h30) và theo lịch trực gác","Điều dưỡng viên","Khoa Ngoại Tổng hợp",null,"ĐD"]
[{"$f":"_xlfn.AGGREGATE(3,3,$C$14:C181)","v":168},"HT00551","Đặng Văn Sô Đa","0002970/ST-CCHN","Khám bệnh, chữa bệnh chuyên khoa Ngoại","Bán thời gian (T21300-1700;T31300-1700;T41300-1700;T51300-1700;T61300-1700; T70700-1700;CN0700-1700)  và theo lịch trực gác","Bác sĩ hợp tác","Khoa Ngoại Tổng hợp; Khoa Khám bệnh; Khoa PTGMHS","13422B/QĐ-S.I.S;13422C/QĐ-S.I.S","BS Hợp tác"]
[{"$f":"_xlfn.AGGREGATE(3,3,$C$14:C182)","v":169},"00123","Nguyễn Anh Trung","001590/CT-CCHN","Khám bệnh, chữa bệnh chuyên khoa Ngoại chấn thương","Toàn thời gian (Từ 7h00 -16h30) và theo lịch trực gác","Phó khoa","Khoa Ngoại Tổng hợp; Khoa Khám bệnh; Khoa PTGMHS","4919F/QĐ-S.I.S;11219A/QĐ-S.I.S","BS Cơ hữu"]
[{"$f":"_xlfn.AGGREGATE(3,3,$C$14:C183)","v":170},"00275","Nguyễn Quang Hưng","0026102/BYT-CCHN","Khám bệnh, chữa bệnh chuyên khoa Ngoại","Toàn thời gian (Từ 7h00 -16h30) và theo lịch trực gác","Bác sĩ điều trị","Khoa Ngoại Tổng hợp; Khoa Khám bệnh; Khoa PTGMHS","14420A/QĐ-S.I.S","BS Cơ hữu"]
[{"$f":"_xlfn.AGGREGATE(3,3,$C$14:C184)","v":171},"00527","Tôn Nữ Thị Điểm","007555/CT-CCHN","Khám bệnh, chữa bệnh ngoại khoa","Toàn thời gian (Từ 7h00 -16h30) và theo lịch trực gác","Bác sĩ điều trị","Khoa Ngoại Tổng hợp; Khoa Khám bệnh; Khoa PTGMHS",null,"BS Cơ hữu"]
[{"$f":"_xlfn.AGGREGATE(3,3,$C$14:C185)","v":172},"00599","Nguyễn Trung Tính","007425/CT-CCHN","Khám bệnh, chữa bệnh chuyên khoa ngoại","Toàn thời gian (Từ 7h00 -16h30) và theo lịch trực gác","Bác sĩ điều trị","Khoa Ngoại Tổng hợp; Khoa Khám bệnh; Khoa PTGMHS",null,"BS Cơ hữu"]
[{"$f":"_xlfn.AGGREGATE(3,3,$C$14:C186)","v":173},"00567","Trần Văn Lảm","007679/CT-CCHN","Khám bệnh, chữa bệnh ngoại khoa","Toàn thời gian (Từ 7h00 -16h30) và theo lịch trực gác","Bác sĩ điều trị","Khoa Ngoại Tổng hợp; Khoa Khám bệnh; Khoa PTGMHS",null,"BS Cơ hữu"]
[{"$f":"_xlfn.AGGREGATE(3,3,$C$14:C187)","v":174},"00776","Nguyễn Minh Đức","052157/HCM-CCHN","Khám bệnh, chữa bệnh chuyên khoa Ngoại","Toàn thời gian (Từ 7h00 -16h30) và theo lịch trực gác","Bác sĩ điều trị","Khoa Ngoại Tổng hợp; Khoa Khám bệnh; Khoa PTGMHS",null,"BS Cơ hữu"]
[{"$f":"_xlfn.AGGREGATE(3,3,$C$14:C188)","v":175},"00808","Nguyễn Trần Duy","004745/CM-CCHN","Khám bệnh, chữa bệnh chuyên khoa ngoại","Toàn thời gian (Từ 7h00 -16h30) và theo lịch trực gác","Bác sĩ điều trị","Khoa Ngoại Tổng hợp; Khoa Khám bệnh; Khoa PTGMHS",null,"BS Cơ hữu"]
[{"$f":"_xlfn.AGGREGATE(3,3,$C$14:C189)","v":176},"00825","Huỳnh Anh","003099/HAUG-CCHN","Khám bệnh, chữa bệnh ngoại khoa","Toàn thời gian (Từ 7h00 -16h30) và theo lịch trực gác","Bác sĩ điều trị","Khoa Ngoại Tổng hợp; Khoa Khám bệnh; Khoa PTGMHS",null,"BS Cơ hữu"]
[{"$f":"_xlfn.AGGREGATE(3,3,$C$14:C190)","v":177},"00894","Nguyễn Nhựt Thái","000232/CT-CCHN","Khám bệnh, chữa bệnh chuyên khoa Ngoại thần kinh","Toàn thời gian (Từ 7h00 -16h30) và theo lịch trực gác","Phó khoa","Khoa Ngoại Tổng hợp; Khoa Khám bệnh; Khoa PTGMHS","13622C/QĐ-S.I.S;13622D /QĐ-S.I.S","BS Cơ hữu"]
[{"$f":"_xlfn.AGGREGATE(3,3,$C$14:C191)","v":178},"00902","Tô Minh Quân","028725/BYT-CCHN","Khám bênh, chữa bệnh chuyên khoa Ngoại","Toàn thời gian (Từ 7h00 -16h30) và theo lịch trực gác","Bác sĩ điều trị","Khoa Ngoại Tổng hợp; Khoa Khám bệnh; Khoa PTGMHS","13522B/QĐ-S.I.S;13522C/QĐ-S.I.S","BS Cơ hữu"]
[{"$f":"_xlfn.AGGREGATE(3,3,$C$14:C192)","v":179},"00125","Trần Việt Khanh","0017197/BYT-CCHN","Thực hiện theo Quyết định số 41/2005/QĐ-BNV ngày 22/4/2005","Toàn thời gian (Từ 7h00 -16h30) và theo lịch trực gác","Điều dưỡng trưởng","Khoa Ngoại Tổng hợp",null,"ĐD"]
[{"$f":"_xlfn.AGGREGATE(3,3,$C$14:C193)","v":180},"00117","Trần Minh Kha","006369/CT-CCHN","Thực hiện theo chức năng nhiệm vụ của điều dưỡng quy định theo Thông tư liên tịch số 26/2015/TTLT-BYT ngày 07/10/2015","Toàn thời gian (Từ 7h00 -16h30) và theo lịch trực gác","Điều dưỡng viên","Khoa Ngoại Tổng hợp",null,"ĐD"]
[{"$f":"_xlfn.AGGREGATE(3,3,$C$14:C194)","v":181},"00333","Tăng Thị Kim Hạnh","003091/HAUG-CCHN","Thực hiện theo chức năng nhiệm vụ của y sĩ quy định tại Thông tư liên tịch số 10/2015/TTLT-BYT-BNV ngày 27/5/2015","Toàn thời gian (Từ 7h00 -16h30) và theo lịch trực gác","Điều dưỡng viên","Khoa Ngoại Tổng hợp",null,"ĐD"]
[{"$f":"_xlfn.AGGREGATE(3,3,$C$14:C195)","v":182},"00128","Phan Văn Lý","006286/CT-CCHN","Thực hiện theo chức năng nhiệm vụ của điều dưỡng quy định theo Thông tư liên tịch số 26/2015/TTLT-BYT ngày 07/10/2015","Toàn thời gian (Từ 7h00 -16h30) và theo lịch trực gác","Điều dưỡng viên","Khoa Ngoại Tổng hợp",null,"ĐD"]
[{"$f":"_xlfn.AGGREGATE(3,3,$C$14:C196)","v":183},"00408","Nguyễn Thị Tường Vân","007264/CT-CCHN","Thực hiện theo chức năng nhiệm vụ của điều dưỡng quy định theo Thông tư liên tịch số 26/2015/TTLT-BYT-BNV ngày 07/10/2015","Toàn thời gian (Từ 7h00 -16h30) và theo lịch trực gác","Điều dưỡng viên","Khoa Ngoại Tổng hợp",null,"ĐD"]
[{"$f":"_xlfn.AGGREGATE(3,3,$C$14:C197)","v":184},"00130","Nguyễn Thị Kim Ngân","6448/ĐT-CCHN","Thực hiện sơ cứu, khám bệnh, chữa bệnh thông thường theo quy định tại Thông tư 10/2015/TTLT-BYT-BNV ngày 27/5/2015 Quy định mã số tiêu chuẩn chức danh nghề nghiệp bác sĩ, bác sĩ Y học dự phòng, Y sĩ.","Toàn thời gian (Từ 7h00 -16h30) và theo lịch trực gác","Điều dưỡng viên","Khoa Ngoại Tổng hợp",null,"ĐD"]
[{"$f":"_xlfn.AGGREGATE(3,3,$C$14:C198)","v":185},"00709","Nguyễn Lê Ngọc Thắm","003236/HAUG-CCHN","Thực hiện phạm vi hoạt động chuyên môn điều dưỡng quy định tại Thông tư số 26/2015/TTLT-BYT-BNV ngày 07/10/2015 của Bộ Y tế và Bộ Nội vụ","Toàn thời gian (Từ 7h00 -16h30) và theo lịch trực gác","Điều dưỡng viên","Khoa Ngoại Tổng hợp",null,"ĐD"]
[{"$f":"_xlfn.AGGREGATE(3,3,$C$14:C199)","v":186},"00410","Lê Thị Kim Cương","007257/CT-CCHN","Thực hiện theo chức năng nhiệm vụ của điều dưỡng quy định theo Thông tư liên tịch số 26/2015/TTLT-BYT-BNV ngày 07/10/2015","Toàn thời gian (Từ 7h00 -16h30) và theo lịch trực gác","Điều dưỡng viên","Khoa Ngoại Tổng hợp",null,"ĐD"]
[{"$f":"_xlfn.AGGREGATE(3,3,$C$14:C200)","v":187},"00268","Dương Thị Ngọc Lài","002884/HAUG-CCHN","Thực hiện theo chức năng nhiệm vụ của điều dưỡng quy định theo Thông tư liên tịch số 26/2015/TTLT-BYT-BNV ngày 07/10/2017","Toàn thời gian (Từ 7h00 -16h30) và theo lịch trực gác","Điều dưỡng viên","Khoa Ngoại Tổng hợp",null,"ĐD"]
[{"$f":"_xlfn.AGGREGATE(3,3,$C$14:C201)","v":188},"00409","Danh Thị Thúy","007344/CT-CCHN","Thực hiện theo chức năng nhiệm vụ của điều dưỡng quy định theo Thông tư liên tịch số 26/2015/TTLT-BYT-BNV ngày 07/10/2015","Toàn thời gian (Từ 7h00 -16h30) và theo lịch trực gác","Điều dưỡng viên","Khoa Ngoại Tổng hợp",null,"ĐD"]
[{"$f":"_xlfn.AGGREGATE(3,3,$C$14:C202)","v":189},"00869","Bùi Bình Phương Trinh","006798/CT-CCHN","Thực hiện theo chức năng nhiệm vụ của điều dưỡng quy định theo Thông tư liên tịch số 26/2015/TTLT-BYT ngày 07/10/2015","Toàn thời gian (Từ 7h00 -16h30) và theo lịch trực gác","Điều dưỡng viên","Khoa Ngoại Tổng hợp",null,"ĐD"]
[{"$f":"_xlfn.AGGREGATE(3,3,$C$14:C203)","v":190},"00916","Nguyễn Hoàng Huy","5515/ĐT-CCHN","Thực hiện sơ cứu, khám bệnh, chữa bệnh thông thường theo quy định tại Thông tư 10/2015/TTLT-BYT-BNV ngày 27/5/2015 Quy định mã số, tiêu chuẩn chức danh nghề nghiệp Bác sĩ, Bác sĩ Y học dự phòng, Y sĩ","Toàn thời gian (Từ 7h00 -16h30) và theo lịch trực gác","Điều dưỡng viên","Khoa Ngoại Tổng hợp",null,"ĐD"]
[{"$f":"_xlfn.AGGREGATE(3,3,$C$14:C204)","v":191},"00126","Trần Thị Thúy Vân","001641/HAUG-CCHN","Thực hiện quyết định số 41/2005/QĐ-BNV ngày 22/4/2015 của Bộ trưởng Bộ Nội vụ về việc ban hành tiêu chuẩn nghiệp vụ các ngạch viên chức y tế điều dưỡng","Toàn thời gian (Từ 7h00 -16h30) và theo lịch trực gác","Điều dưỡng viên","Khoa Ngoại tổng hợp",null,"ĐD"]
[{"$f":"_xlfn.AGGREGATE(3,3,$C$14:C205)","v":192},"00478","Trần Thị Tuyết Nhung","005248/CT-CCHN","Khám bệnh, chữa bệnh Nội Khoa","Bán thời gian (Từ 7h00 -17h00) và theo lịch trực gác","Bác sĩ điều trị","Khoa Nội Tổng hợp; Khoa Khám bệnh","7921A/QĐ-S.I.S","BS Hợp tác"]
[{"$f":"_xlfn.AGGREGATE(3,3,$C$14:C206)","v":193},"00194","Nguyễn Mạnh Cường","003192/BD-CCHN","Khám bệnh, chữa bệnh đa khoa hệ Nội - Nhi","Toàn thời gian (Từ 7h00 -16h30) và theo lịch trực gác","Trưởng Khoa","Khoa Nội Tổng hợp; Khoa Khám bệnh; Khoa PTGMHS","49190/QĐ-S.I.S;4919D/QĐ-S.I.S;5519/QĐ-S.I.S;13121B/QĐ-S.I.S","BS Cơ hữu"]
[{"$f":"_xlfn.AGGREGATE(3,3,$C$14:C207)","v":194},"00055","Trần Ái Thanh","003618/BYT-CCHN","Khám bệnh, chữa bệnh chuyên khoa Nội tim mạch, Nội tiết, Khớp.","Toàn thời gian (Từ 7h00 -16h30) và theo lịch trực gác","Phó Khoa","Khoa Nội Tổng hợp; Khoa Khám bệnh; Khoa CĐHA","4919B/QĐ-S.I.S","BS Cơ hữu"]
[{"$f":"_xlfn.AGGREGATE(3,3,$C$14:C208)","v":195},"00376","Trần Phi Long","023580/HCM-CCHN","Khám bệnh chữa bệnh chuyên khoa Nội tổng hợp","Toàn thời gian (Từ 7h00 -16h30) và theo lịch trực gác","Bác sĩ điều trị","Khoa Nội Tổng hợp; Khoa Khám bệnh","10520A/QĐ-S.I.S","BS Cơ hữu"]
[{"$f":"_xlfn.AGGREGATE(3,3,$C$14:C209)","v":196},"00518","Nguyễn Thái Phương","0029095/HCM-CCHN","Khám bệnh chữa bệnh Chuyên khoa Nội tiết","Toàn thời gian (Từ 7h00 -16h30) và theo lịch trực gác","Bác sĩ điều trị","Khoa Nội Tổng hợp; Khoa Khám bệnh",null,"BS Cơ hữu"]
[{"$f":"_xlfn.AGGREGATE(3,3,$C$14:C210)","v":197},"00344","Nguyễn Minh Nguyệt","000608/CT-CCHN","Khám, chữa bệnh đa khoa","Toàn thời gian (Từ 7h00 -16h30) và theo lịch trực gác","Bác sĩ điều trị","Khoa Nội Tổng hợp; Khoa Khám bệnh","4919H/QĐ-S.I.S","BS Cơ hữu"]
[{"$f":"_xlfn.AGGREGATE(3,3,$C$14:C211)","v":198},"00427","Danh Thị Thoa","0032307/HCM-CCHN","Khám bệnh chữa bệnh chuyên khoa Nội Tổng hợp","Toàn thời gian (Từ 7h00 -16h30) và theo lịch trực gác","Bác sĩ điều trị","Khoa Nội Tổng hợp; Khoa Khám bệnh","15720B/QĐ-S.I.S","BS Cơ hữu"]
[{"$f":"_xlfn.AGGREGATE(3,3,$C$14:C212)","v":199},"00306","Nguyễn Hải Nguyên","028894/BYT-CCHN","Khám bệnh, chữa bệnh chuyên khoa Nội Tổng hợp","Toàn thời gian (Từ 7h00 -16h30) và theo lịch trực gác","Bác sĩ điều trị","Khoa Nội Tổng hợp; Khoa Khám bệnh","2721C/QĐ-S.I.S","BS Cơ hữu"]
[{"$f":"_xlfn.AGGREGATE(3,3,$C$14:C213)","v":200},"00490","Phạm Thị Thảo Trang","006845/CT-CCHN","Khám bệnh, chữa bệnh chuyên khoa Nội","Toàn thời gian (Từ 7h00 -16h30) và theo lịch trực gác","Bác sĩ điều trị","Khoa Nội Tổng hợp; Khoa Khám bệnh",null,"BS Cơ hữu"]
[{"$f":"_xlfn.AGGREGATE(3,3,$C$14:C214)","v":201},"00526","Trần Thị Thanh Thà ","007394/CT-CCHN","Khám bệnh, chữa bệnh nội khoa","Toàn thời gian (Từ 7h00 -16h30) và theo lịch trực gác","Bác sĩ điều trị","Khoa Nội Tổng hợp; Khoa Khám bệnh",null,"BS Cơ hữu"]
[{"$f":"_xlfn.AGGREGATE(3,3,$C$14:C215)","v":202},"00797","Nguyễn Thị Phương Anh","003347/HAUG-CCHN","Khám bệnh, chữa bệnh Nội khoa","Toàn thời gian (Từ 7h00 -16h30) và theo lịch trực gác","Bác sĩ điều trị","Khoa Nội Tổng hợp; Khoa Khám bệnh",null,"BS Cơ hữu"]
[{"$f":"_xlfn.AGGREGATE(3,3,$C$14:C216)","v":203},"00822","Mạch Chí Quyền","005349/CT-CCHN","Khám bệnh, chữa bệnh Nội khoa","Toàn thời gian (Từ 7h00 -16h30) và theo lịch trực gác","Bác sĩ điều trị","Khoa Nội Tổng hợp; Khoa Khám bệnh; Khoa CĐHA","5922/QĐ-S.I.S","BS Cơ hữu"]
[{"$f":"_xlfn.AGGREGATE(3,3,$C$14:C217)","v":204},"00933","Tăng Xuân Bách","007174/CT-CCHN","Khám bệnh, chữa bệnh Nội khoa","Toàn thời gian (Từ 7h00 -16h30) và theo lịch trực gác","Bác sĩ điều trị","Khoa Nội Tổng hợp; Khoa Khám bệnh",null,"BS Cơ hữu"]
[{"$f":"_xlfn.AGGREGATE(3,3,$C$14:C218)","v":205},"00934","Tiết Văn Linh","001234/BTR-CCHN","Khám bệnh, chữa bệnh nội khoa không làm thủ thuật chuyên khoa","Toàn thời gian (Từ 7h00 -16h30) và theo lịch trực gác","Bác sĩ điều trị","Khoa Nội Tổng hợp; Khoa Khám bệnh",null,"BS Cơ hữu"]
[{"$f":"_xlfn.AGGREGATE(3,3,$C$14:C219)","v":206},"00105","Nguyễn Thị Ngọc Thạnh","001995/CT-CCHN","Thực hiện các kỹ thuật điều dưỡng cơ bản","Toàn thời gian (Từ 7h00 -16h30) và theo lịch trực gác","Điều dưỡng trưởng","Nội Tổng hợp",null,"ĐD"]
[{"$f":"_xlfn.AGGREGATE(3,3,$C$14:C220)","v":207},"00294","Lương Thị Thơm","000761/CT-CCHN","Thực hiện các kỹ thuật điều dưỡng cơ bản","Toàn thời gian (Từ 7h00 -16h30) và theo lịch trực gác","Điều dưỡng phó","Nội Tổng hợp",null,"ĐD"]
[{"$f":"_xlfn.AGGREGATE(3,3,$C$14:C221)","v":208},"00301","Võ Phạm Kim Ngân","007003/CT-CCHN","Thực hiện theo chức danh nhiệm vụ điều dưỡng quy định theo Thông tư liên tịch số 26/2015/TTLT-BYT ngày 07/10/2015","Toàn thời gian (Từ 7h00 -16h30) và theo lịch trực gác","Điều dưỡng viên","Nội Tổng hợp",null,"ĐD"]
[{"$f":"_xlfn.AGGREGATE(3,3,$C$14:C222)","v":209},"00107","Trần Văn Đầy","004832/CT-CCHN","Thực hiện theo chức danh nhiệm vụ điều dưỡng quy định theo Thông tư liên tịch số 26/2015/TTLT-BYT ngày 07/10/2015","Toàn thời gian (Từ 7h00 -16h30) và theo lịch trực gác","Điều dưỡng viên ","Nội Tổng hợp",null,"ĐD"]
[{"$f":"_xlfn.AGGREGATE(3,3,$C$14:C223)","v":210},"00521","Trần Thị Trúc Đào","007556/CT-CCHN","Thực hiện theo chức năng nhiệm vụ của điều dưỡng quy định theo Thông tư liên tịch số 26/2015/TTLT-BYT-BNV ngày 07/10/2015","Toàn thời gian (Từ 7h00 -16h30) và theo lịch trực gác","Điều dưỡng viên","Nội Tổng hợp",null,"ĐD"]
[{"$f":"_xlfn.AGGREGATE(3,3,$C$14:C224)","v":211},"00405","Trần Thị Thớ","008283/AG-CCHN","Thực hiện theo Thông tư số 26/2015/TTLTBYT-BNV ngày 07/10/2015 quy định mã số, tiêu chuẩn chức danh nghề nghiệp điều dưỡng","Toàn thời gian (Từ 7h00 -16h30) và theo lịch trực gác","Điều dưỡng viên","Nội Tổng hợp",null,"ĐD"]
[{"$f":"_xlfn.AGGREGATE(3,3,$C$14:C225)","v":212},"00111","Phạm Thị Quỳnh Như","006323/CT-CCHN","Thực hiện theo chức danh nhiệm vụ điều dưỡng quy định theo Thông tư liên tịch số 26/2015/TTLT-BYT ngày 07/10/2015","Toàn thời gian (Từ 7h00 -16h30) và theo lịch trực gác","Điều dưỡng viên","Nội Tổng hợp",null,"ĐD"]
[{"$f":"_xlfn.AGGREGATE(3,3,$C$14:C226)","v":213},"00109","Nguyễn Thị Bích Tuyền","004972/CT-CCHN","Thực hiện theo chức danh nhiệm vụ điều dưỡng quy định theo Thông tư liên tịch số 26/2015/TTLT-BYT ngày 07/10/2015","Toàn thời gian (Từ 7h00 -16h30) và theo lịch trực gác","Điều dưỡng viên","Nội Tổng hợp",null,"ĐD"]
[{"$f":"_xlfn.AGGREGATE(3,3,$C$14:C227)","v":214},"00157","Nguyễn Hồng Yến","006580/CT-CCHN","Thực hiện theo chức danh nhiệm vụ điều dưỡng quy định theo Thông tư liên tịch số 26/2015/TTLT-BYT ngày 07/10/2015","Toàn thời gian (Từ 7h00 -16h30) và theo lịch trực gác","Điều dưỡng viên","Nội Tổng hợp",null,"ĐD"]
[{"$f":"_xlfn.AGGREGATE(3,3,$C$14:C228)","v":215},"00406","Lê Thị Ánh Nhi","001095/BD-CCHN","Thực hiện các kỹ thuật điều dưỡng cơ bản","Toàn thời gian (Từ 7h00 -16h30) và theo lịch trực gác","Điều dưỡng viên","Nội Tổng hợp",null,"ĐD"]
[{"$f":"_xlfn.AGGREGATE(3,3,$C$14:C229)","v":216},"00473","Huỳnh Thị Minh Châu","0002933/BL-CCHN","Thực hiện theo chức năng nhiệm vụ của điều dưỡng quy định tại Thông tư liên tịch số 26/2015/TTLT-BYT-BNV ngày 07/10/2015 của Bộ Y tế, Bội Nội vụ","Toàn thời gian (Từ 7h00 -16h30) và theo lịch trực gác","Điều dưỡng viên","Nội Tổng hợp",null,"ĐD"]
[{"$f":"_xlfn.AGGREGATE(3,3,$C$14:C230)","v":217},"00606","Huỳnh Thị Kiều","006593/CT-CCHN","Thực hiện theo chức năng nhiệm vụ của điều dưỡng quy định  Thông tư liên tịch số: 26/2015/TTLT-BYT ngày 07/10/2015","Toàn thời gian (Từ 7h00 -16h30) và theo lịch trực gác","Điều dưỡng viên","Nội Tổng hợp",null,"ĐD"]
[{"$f":"_xlfn.AGGREGATE(3,3,$C$14:C231)","v":218},"00407","Hồ Thị Ngọc Hương","007263/CT-CCHN","Thực hiện theo chức năng nhiệm vụ của điều dưỡng quy định theo Thông tư liên tịch số 26/2015/TTLT-BYT-BNV ngày 07/10/2015","Toàn thời gian (Từ 7h00 -16h30) và theo lịch trực gác","Điều dưỡng viên","Nội Tổng hợp",null,"ĐD"]
[{"$f":"_xlfn.AGGREGATE(3,3,$C$14:C232)","v":219},"00108","Đỗ Thị Kim Ngọc","006322/CT-CCHN","Thực hiện theo chức danh nhiệm vụ điều dưỡng quy định theo Thông tư liên tịch số 26/2015/TTLT-BYT ngày 07/10/2015","Toàn thời gian (Từ 7h00 -16h30) và theo lịch trực gác","Điều dưỡng viên","Nội Tổng hợp",null,"ĐD"]
[{"$f":"_xlfn.AGGREGATE(3,3,$C$14:C233)","v":220},"00106","Cao Trần Thảo Vy","0004116/VL-CCHN","Thực hiện phạm vi hoạt động chyên môn theo quy định tại Thông tư 26/2015/TTLTBYT-BNV ngày 07/10/2015 quy định mã số, tiêu chuẩn chức danh nghề nghiệp điều dưỡng","Toàn thời gian (Từ 7h00 -16h30) và theo lịch trực gác","Điều dưỡng viên","Nội Tổng hợp",null,"ĐD"]
[{"$f":"_xlfn.AGGREGATE(3,3,$C$14:C234)","v":221},"HT00528","Hà Tấn Đức","0023084/BYT-CCHN","Khám bệnh, chữa bệnh chuyên khoa Nội tổng hợp","Bán thời gian theo lịch trực gác","Hợp tác – bác sĩ trực ICU","Khoa PTGMHS",null,"BS Hợp tác"]
[{"$f":"_xlfn.AGGREGATE(3,3,$C$14:C235)","v":222},"00456","Nguyễn Hữu Bút","003826/CT-CCHN","Khám bệnh, chữa bệnh đa khoa","Bán thời gian theo lịch trực gác","Hợp tác – bác sĩ trực ICU","Khoa PTGMHS",null,"BS Hợp tác"]
[{"$f":"_xlfn.AGGREGATE(3,3,$C$14:C236)","v":223},"HT00530","Đỗ Nhựt Quang","035462/BYT-CCHN","Khám bệnh, chữa bệnh chuyên khoa nội tổng hợp (không làm thủ thuật các chuyên khoa)","Bán thời gian theo lịch trực gác","Hợp tác_bác sĩ trực ICU","Khoa PTGMHS",null,"BS Hợp tác"]
[{"$f":"_xlfn.AGGREGATE(3,3,$C$14:C237)","v":224},"00355","Tô Khánh Thi","0004449/ĐT-CCHN","Khám bệnh, chữa bệnh ngoại khoa hoặc khám bệnh, chữa bệnh chuyên khoa ung thư","Toàn thời gian (Từ 7h00 -16h30) và theo lịch trực gác","Bác sĩ điều trị","Khoa PTGMHS",null,"BS Cơ hữu"]
[{"$f":"_xlfn.AGGREGATE(3,3,$C$14:C238)","v":225},"00874","Lưu Thị Phương","0007482/BYT-CCHN","Khám bệnh, chữa bệnh chuyên khoa Nội tổng hợp","Toàn thời gian (Từ 7h00 -16h30) và theo lịch trực gác","Trưởng khoa","Khoa PTGMHS; Khoa Khám bệnh",null,"BS Cơ hữu"]
[{"$f":"_xlfn.AGGREGATE(3,3,$C$14:C239)","v":226},"00198","Tô Văn Tân ","001453/VL-CCHN","Khám bệnh, chữa bệnh chuyên khoa Nội","Toàn thời gian (Từ 7h00 -16h30) và theo lịch trực gác","Phó khoa ","Khoa PTGMHS; Khoa Khám bệnh",null,"BS Cơ hữu"]
[{"$f":"_xlfn.AGGREGATE(3,3,$C$14:C240)","v":227},"00081","Lâm Thành Luân","006262/CT-CCHN","Khám bệnh, chữa bệnh Nội Khoa","Toàn thời gian (Từ 7h00 -16h30) và theo lịch trực gác","Bác sĩ điều trị","Khoa PTGMHS; Khoa Khám bệnh",null,"BS Cơ hữu"]
[{"$f":"_xlfn.AGGREGATE(3,3,$C$14:C241)","v":228},"00491","Trang Tấn Sang","003229/HAUG-CCHN","Khám bệnh, chữa bệnh Nội Khoa","Toàn thời gian (Từ 7h00 -16h30) và theo lịch trực gác","Bác sĩ điều trị","Khoa PTGMHS; Khoa Khám bệnh",null,"BS Cơ hữu"]
[{"$f":"_xlfn.AGGREGATE(3,3,$C$14:C242)","v":229},"00384","Lưu Trúc Phương","002923/CT-CCHN","Khám bệnh, chữa bệnh Đa khoa","Toàn thời gian (Từ 7h00 -16h30) và theo lịch trực gác","Bác sĩ điều trị","Khoa PTGMHS; Khoa Khám bệnh",null,"BS Cơ hữu"]
[{"$f":"_xlfn.AGGREGATE(3,3,$C$14:C243)","v":230},"00525","Nguyễn Thị Diệu Hằng","007406/CT-CCHN","Khám bệnh, chữa bệnh nội khoa","Toàn thời gian (Từ 7h00 -16h30) và theo lịch trực gác","Bác sĩ điều trị","Khoa PTGMHS; Khoa Khám bệnh",null,"BS Cơ hữu"]
[{"$f":"_xlfn.AGGREGATE(3,3,$C$14:C244)","v":231},"00524","Cao Thùy Dịu","007404/CT-CCHN","Khám bệnh, chữa bệnh nội khoa","Toàn thời gian (Từ 7h00 -16h30) và theo lịch trực gác","Bác sĩ điều trị","Khoa PTGMHS; Khoa Khám bệnh",null,"BS Cơ hữu"]
[{"$f":"_xlfn.AGGREGATE(3,3,$C$14:C245)","v":232},"00823","Nguyễn Hoài Ân","0026078/BYT-CCHN","Khám bệnh, chữa bệnh chuyên khoa Nội tổng hợp","Toàn thời gian (Từ 7h00 -16h30) và theo lịch trực gác","Bác sĩ điều trị","Khoa PTGMHS; Khoa Khám bệnh",null,"BS Cơ hữu"]
[{"$f":"_xlfn.AGGREGATE(3,3,$C$14:C246)","v":233},"00824","Trần Quốc Thái","004923/CT-CCHN","Khám bệnh, chữa bệnh Nội khoa","Toàn thời gian (Từ 7h00 -16h30) và theo lịch trực gác","Bác sĩ điều trị","Khoa PTGMHS; Khoa Khám bệnh",null,"BS Cơ hữu"]
[{"$f":"_xlfn.AGGREGATE(3,3,$C$14:C247)","v":234},"00093","Lâm Huyền Trang ","000585/CT-CCHN","Thực hiện các kỹ thuật điều dưỡng cơ bản","Toàn thời gian (Từ 7h00 -16h30) và theo lịch trực gác","Điều dưỡng phó ","Khoa PTGMHS",null,"ĐD"]
[{"$f":"_xlfn.AGGREGATE(3,3,$C$14:C248)","v":235},"00116","Võ Thị Diễm Hương","0001714/CT-CCHN","Thực hiện các kỹ thuật điều dưỡng cơ bản","Toàn thời gian (Từ 7h00 -16h30) và theo lịch trực gác","Điều dưỡng viên","Khoa PTGMHS",null,"ĐD"]
[{"$f":"_xlfn.AGGREGATE(3,3,$C$14:C249)","v":236},"00324","Võ Phạm Thanh Tuyền","007013/CT-CCHN","Thực hiện theo chức năng nhiệm vụ của điều dưỡng quy định theo thông tư liên tịch số 26/2015/TTLT-BYT này 07/10/2021","Toàn thời gian (Từ 7h00 -16h30) và theo lịch trực gác","Điều dưỡng viên","Khoa PTGMHS",null,"ĐD"]
[{"$f":"_xlfn.AGGREGATE(3,3,$C$14:C250)","v":237},"00421","Trương Hồng Hạnh","005742/CT-CCHN","Thực hiện theo chức năng nhiệm vụ của điều dưỡng quy định theo Thông tư liên tịch số 26/2015/TTLT-BYT ngày 07/10/2015","Toàn thời gian (Từ 7h00 -16h30) và theo lịch trực gác","Điều dưỡng viên","Khoa PTGMHS",null,"ĐD"]
[{"$f":"_xlfn.AGGREGATE(3,3,$C$14:C251)","v":238},"00543","Trần Thị Mỹ Linh ","007393/CT-CCHN","Thực hiện theo chức năng nhiệm vụ của điều dưỡng quy định theo Thông tư liên tịch số 26/2015/TTLT-BYT-BNV ngày 07/10/2015","Toàn thời gian (Từ 7h00 -16h30) và theo lịch trực gác","Điều dưỡng viên","Khoa PTGMHS",null,"ĐD"]
[{"$f":"_xlfn.AGGREGATE(3,3,$C$14:C252)","v":239},"00169","Sơn Minh Thế","006579/CT-CCHN","Thực hiện theo chức năng nhiệm vụ của điều dưỡng quy định theo Thông tư liên tịch số 26/2015/TTLT-BYT ngày 07/10/2015","Toàn thời gian (Từ 7h00 -16h30) và theo lịch trực gác","Điều dưỡng viên","Khoa PTGMHS",null,"ĐD"]
[{"$f":"_xlfn.AGGREGATE(3,3,$C$14:C253)","v":240},"00342","Phạm Thị Thùy Dương","007193/CT-CCHN","Thực hiện theo chức năng nhiệm vụ của điều dưỡng quy định theo Thông tư liên tịch số 26/2015/TTLT-BYT và BNV ngày 07/10/2015","Toàn thời gian (Từ 7h00 -16h30) và theo lịch trực gác","Điều dưỡng viên","Khoa PTGMHS",null,"ĐD"]
[{"$f":"_xlfn.AGGREGATE(3,3,$C$14:C254)","v":241},"00098","Phạm Thị Phong Phú","006305/CT-CCHN","Thực hiện theo chức năng nhiệm vụ của điều dưỡng quy định theo Thông tư liên tịch số 26/2015/TTLT-BYT ngày 07/10/2015","Toàn thời gian (Từ 7h00 -16h30) và theo lịch trực gác","Điều dưỡng viên","Khoa PTGMHS",null,"ĐD"]
[{"$f":"_xlfn.AGGREGATE(3,3,$C$14:C255)","v":242},"00092","Nguyễn Thị Thùy Trang","000359/CT-CCHN","Thực hiện các kỹ thuật điều dưỡng cơ bản","Toàn thời gian (Từ 7h00 -16h30) và theo lịch trực gác","Điều dưỡng viên","Khoa PTGMHS",null,"ĐD"]
[{"$f":"_xlfn.AGGREGATE(3,3,$C$14:C256)","v":243},"00474","Nguyễn Thị Thùy Trang","007454/CT-CCHN","Thực hiện theo chức năng nhiệm vụ của điều dưỡng quy định theo Thông tư liên tịch số 26/2015/TTLT-BYT-BNV ngày 07/10/2015","Toàn thời gian (Từ 7h00 -16h30) và theo lịch trực gác","Điều dưỡng viên","Khoa PTGMHS",null,"ĐD"]
[{"$f":"_xlfn.AGGREGATE(3,3,$C$14:C257)","v":244},"00540","Nguyễn Thị Thúy Duy","007508/CT-CCHN","Thực hiện theo chức năng nhiệm vụ của điều dưỡng quy định theo Thông tư liên tịch số 26/2015/TTLT-BYT-BNV ngày 07/10/2015","Toàn thời gian (Từ 7h00 -16h30) và theo lịch trực gác","Điều dưỡng viên","Khoa PTGMHS",null,"ĐD"]
[{"$f":"_xlfn.AGGREGATE(3,3,$C$14:C258)","v":245},"00066","Nguyễn Thị Thu Hà","006327/CT-CCHN","Thực hiện theo chức năng nhiệm vụ của điều dưỡng quy định theo Thông tư liên tịch số 26/2015/TTLT-BYT ngày 07/10/2015","Toàn thời gian (Từ 7h00 -16h30) và theo lịch trực gác","Điều dưỡng viên","Khoa PTGMHS",null,"ĐD"]
[{"$f":"_xlfn.AGGREGATE(3,3,$C$14:C259)","v":246},"00538","Nguyễn Thị Kim Ngân","007345/CT-CCHN","Thực hiện theo chức năng nhiệm vụ của điều dưỡng quy định theo Thông tư liên tịch số 26/2015/TTLT-BYT-BNV ngày 07/10/2015","Toàn thời gian (Từ 7h00 -16h30) và theo lịch trực gác","Điều dưỡng viên","Khoa PTGMHS",null,"ĐD"]
[{"$f":"_xlfn.AGGREGATE(3,3,$C$14:C260)","v":247},"00541","Nguyễn Thị Hoài Thuận","007467/CT-CCHN","Thực hiện theo chức năng nhiệm vụ của điều dưỡng quy định theo Thông tư liên tịch số 26/2015/TTLT-BYT-BNV ngày 07/10/2015","Toàn thời gian (Từ 7h00 -16h30) và theo lịch trực gác","Điều dưỡng viên","Khoa PTGMHS",null,"ĐD"]
[{"$f":"_xlfn.AGGREGATE(3,3,$C$14:C261)","v":248},"00394","Nguyễn Thị Giàu ","007328/CT-CCHN","Thực hiện theo chức năng nhiệm vụ của điều dưỡng quy định theo Thông tư liên tịch số 26/2015/TTLT-BYT-BNV ngày 07/10/2015","Toàn thời gian (Từ 7h00 -16h30) và theo lịch trực gác","Điều dưỡng viên","Khoa PTGMHS",null,"ĐD"]
[{"$f":"_xlfn.AGGREGATE(3,3,$C$14:C262)","v":249},"00506","Nguyễn Thị Cẩm Tiên","007327/CT-CCHN","Thực hiện theo chức năng nhiệm vụ của điều dưỡng quy định theo Thông tư liên tịch số 26/2015/TTLT-BYT-BNV ngày 07/10/2015","Toàn thời gian (Từ 7h00 -16h30) và theo lịch trực gác","Điều dưỡng viên","Khoa PTGMHS",null,"ĐD"]
[{"$f":"_xlfn.AGGREGATE(3,3,$C$14:C263)","v":250},"00505","Nguyễn Thanh Trúc","007378/CT-CCHN","Thực hiện theo chức năng nhiệm vụ của điều dưỡng quy định theo Thông tư liên tịch số 26/2015/TTLT-BYT-BNV ngày 07/10/2015","Toàn thời gian (Từ 7h00 -16h30) và theo lịch trực gác","Điều dưỡng viên","Khoa PTGMHS",null,"ĐD"]
[{"$f":"_xlfn.AGGREGATE(3,3,$C$14:C264)","v":251},"00325","Nguyễn Hoài Phương","007015/CT-CCHN","Thực hiện theo chức năng nhiệm vụ của điều dưỡng quy định theo Thông tư liên tịch số 26/2015/TTLT-BYT ngày 07/10/2015","Toàn thời gian (Từ 7h00 -16h30) và theo lịch trực gác","Điều dưỡng viên","Khoa PTGMHS",null,"ĐD"]
[{"$f":"_xlfn.AGGREGATE(3,3,$C$14:C265)","v":252},"00503","Huỳnh Thị Kiều Oanh","3655/ĐT-CCHN","Thực hiện phạm vi hoạt động chuyên môn theo quy định tại Thông tư số 26/2015/TTLT-BYT-BNV ngày 07/10/2015 Quy định mã số, tiêu chuẩn chức danh nghề nghiệp Điều dưỡng, Hộ sinh, Kỹ thuật y","Toàn thời gian (Từ 7h00 -16h30) và theo lịch trực gác","Điều dưỡng viên","Khoa PTGMHS",null,"ĐD"]
[{"$f":"_xlfn.AGGREGATE(3,3,$C$14:C266)","v":253},"00737","Huỳnh Thị Huyền Trân","007428/CT-CCHN","Thực hiện theo chức năng nhiệm vụ của điều dưỡng quy định theo Thông tư liên tịch số 26/2015/TTLT-BYT-BNV ngày 07/10/2015","Toàn thời gian (Từ 7h00 -16h30) và theo lịch trực gác","Điều dưỡng viên","Khoa PTGMHS",null,"ĐD"]
[{"$f":"_xlfn.AGGREGATE(3,3,$C$14:C267)","v":254},"00544","Huỳnh Thị Diệu Ái","007449/KG-CCHN","Thực hiện theo chức năng nhiệm vụ của điều dưỡng quy định tại Thông tư liên tịch số 26/2015/TTLTBYT-BNV ngày 07/10/2015 của Bộ Y tế, Bộ Nội vụ quy định mã số, tiêu chuẩn chức danh nghề nghiệp điều dưỡng, hộ sinh, kỹ thuật y","Toàn thời gian (Từ 7h00 -16h30) và theo lịch trực gác","Điều dưỡng viên","Khoa PTGMHS",null,"ĐD"]
[{"$f":"_xlfn.AGGREGATE(3,3,$C$14:C268)","v":255},"00566","Huỳnh Ngọc Linh","007482/CT-CCHN","Thực hiện theo chức năng nhiệm vụ của điều dưỡng quy định theo Thông tư liên tịch số 26/2015/TTLT-BYT-BNV ngày 07/10/2015","Toàn thời gian (Từ 7h00 -16h30) và theo lịch trực gác","Điều dưỡng viên","Khoa PTGMHS",null,"ĐD"]
[{"$f":"_xlfn.AGGREGATE(3,3,$C$14:C269)","v":256},"00504","Hồ Thị Huỳnh Mai","007453/CT-CCHN","Thực hiện theo chức năng nhiệm vụ của điều dưỡng quy định theo Thông tư liên tịch số 26/2015/TTLT-BYT-BNV ngày 07/10/2015","Toàn thời gian (Từ 7h00 -16h30) và theo lịch trực gác","Điều dưỡng viên","Khoa PTGMHS",null,"ĐD"]
[{"$f":"_xlfn.AGGREGATE(3,3,$C$14:C270)","v":257},"00647","Đỗ Yến Nhi","009006/AG-CCHN","Thực hiện theo theo Thông tư liên tịch số 26/2015/TTLTBYT-BNV ngày 07/10/2015 quy định mã số, tiêu chuẩn chức danh nghề nghiệp điều dưỡng","Toàn thời gian (Từ 7h00 -16h30) và theo lịch trực gác","Điều dưỡng viên","Khoa PTGMHS",null,"ĐD"]
[{"$f":"_xlfn.AGGREGATE(3,3,$C$14:C271)","v":258},"00580","Nguyễn Văn Thẳng","004415/BYT-CCHN","Khám bệnh, chữa bệnh chuyên khoa Nội tổng hợp, gây mê hồi sức","Toàn thời gian (Từ 7h00 -16h30) và theo lịch trực gác","Phó khoa","Khoa PTGMHS; Khoa Khám bệnh; Khoa CĐHA",null,"BS Cơ hữu"]
[{"$f":"_xlfn.AGGREGATE(3,3,$C$14:C272)","v":259},"00242","Nguyễn Hiếu Nghĩa ","000144/CT-CCHN","Khám, bệnh chữa bệnh Đa khoa; Khám bệnh, chữa bệnh chuyên khoa gây mê hồi sức","Toàn thời gian (Từ 7h00 -16h30) và theo lịch trực gác","Bác sĩ điều trị","Khoa PTGMHS; Khoa Khám bệnh; Khoa CĐHA",null,"BS Cơ hữu"]
[{"$f":"_xlfn.AGGREGATE(3,3,$C$14:C273)","v":260},"00080","Nguyễn Thị Hạnh","000155/CT-CCHN","Khám, bệnh chữa bệnh Đa khoa; chuyên khoa gây mê hồi sức","Toàn thời gian (Từ 7h00 -16h30) và theo lịch trực gác","Bác sĩ điều trị","Khoa PTGMHS; Khoa Khám bệnh; Khoa CĐHA",null,"BS Cơ hữu"]
[{"$f":"_xlfn.AGGREGATE(3,3,$C$14:C274)","v":261},"00701","Nguyễn Hoàng Thi","0006321/BTR-CCHN","Khám bệnh, chữa bệnh Nội khoa","Toàn thời gian (Từ 7h00 -16h30) và theo lịch trực gác","Bác sĩ điều trị","Khoa PTGMHS; Khoa Khám bệnh; Khoa CĐHA","4922/QĐ-S.I.S","BS Cơ hữu"]
[{"$f":"_xlfn.AGGREGATE(3,3,$C$14:C275)","v":262},"00091","Lê Quang Khải","000701/CT-CCHN","Thực hiện các kỹ thuật điều dưỡng cơ bản","Toàn thời gian (Từ 7h00 -16h30) và theo lịch trực gác","Điều dưỡng trưởng","Khoa PTGMHS",null,"ĐD"]
[{"$f":"_xlfn.AGGREGATE(3,3,$C$14:C276)","v":263},"00932","Mã Diệu Thư","003691/CM-CCHN","Thực hiện Phạm vi hoạt động chuyên môn theo quy định tại Thông tư số 26/2015/TTLT-BYT-BNV ngày 07/10/2015","Toàn thời gian (Từ 7h00 -16h30) và theo lịch trực gác","Điều dưỡng viên","Khoa PTGMHS",null,"ĐD"]
[{"$f":"_xlfn.AGGREGATE(3,3,$C$14:C277)","v":264},"00336","Đỗ Hồng Trang","003042/HAUG-CCHN","Thực hiện theo chức năng nhiệm vụ của Y sĩ quy định tại Thông tư liên tịch số 10/2015/TTLT-BYT-BNV ngày 27/05/2015","Toàn thời gian (Từ 7h00 -16h30) và theo lịch trực gác","Tổ trưởng DCPM","Khoa PTGMHS",null,"ĐD"]
[{"$f":"_xlfn.AGGREGATE(3,3,$C$14:C278)","v":265},"00548","Lâm Quang Vỉnh","QY120012/CCHN-BQP","Thực hiện nhiệm vụ chuyên môn điều dưỡng ","Toàn thời gian (Từ 7h00 -16h30) và theo lịch trực gác","Điều dưỡng DCPM","Khoa PTGMHS",null,"ĐD"]
[{"$f":"_xlfn.AGGREGATE(3,3,$C$14:C279)","v":266},"00127","Huỳnh Thúy Diễm","004493/CT-CCHN","Thực hiện theo chức năng nhiệm vụ của điều dưỡng quy định theo Thông tư liên tịch số 26/2015/TTLT-BYT-BNV ngày 07/10/2015","Toàn thời gian (Từ 7h00 -16h30) và theo lịch trực gác","Điều dưỡng DCPM","Khoa PTGMHS",null,"ĐD"]
[{"$f":"_xlfn.AGGREGATE(3,3,$C$14:C280)","v":267},"00635","Huỳnh Thị Mỹ Xuyên","0001845/TG-CCHN","Quy định tại Quyết định số 41/2005/QĐ-BNV ngày 22/4/2005 của Bộ trưởng Bộ Nội vụ về việc ban hành tiêu chuẩn nghiệp vụ các ngạch viên chức y tế điều dưỡng","Toàn thời gian (Từ 7h00 -16h30) và theo lịch trực gác","Điều dưỡng DCPM","Khoa PTGMHS",null,"ĐD"]
[{"$f":"_xlfn.AGGREGATE(3,3,$C$14:C281)","v":268},"00099","Nguyễn Thạch Hải","005134/KG-CCHN","Thực hiện theo chức năng nhiệm vụ của Điều dưỡng quy định tại Thông tư liên tịch số 26/2015/TTLTBYT-BNV ngày 07/10/2015 của Bộ Y tế, Bộ Nội vụ quy định mã số, tiêu chuẩn chức danh nghề nghiệp điều dưỡng","Toàn thời gian (Từ 7h00 -16h30) và theo lịch trực gác","Điều dưỡng DCPM","Khoa PTGMHS",null,"ĐD"]
[{"$f":"_xlfn.AGGREGATE(3,3,$C$14:C282)","v":269},"00623","Võ Ngọc Mẫn","121095/CCHN-BQP","Thực hiện nhiệm vụ chuyên môn Điều dưỡng","Toàn thời gian (Từ 7h00 -16h30) và theo lịch trực gác","Điều dưỡng DCPM","Khoa PTGMHS",null,"KTV"]
[{"$f":"_xlfn.AGGREGATE(3,3,$C$14:C283)","v":270},"00187","Đặng Thị Thanh Xuân","0027238/BYT-CCHN","Chuyên khoa gây mê hồi sức","Toàn thời gian (Từ 7h00 -16h30) và theo lịch trực gác","Tổ trưởng KTV GMHS","Khoa PTGMHS; Khoa CĐHA",null,"KTV"]
[{"$f":"_xlfn.AGGREGATE(3,3,$C$14:C284)","v":271},"00721","Đinh Văn Đợi","004906/CT-CCHN","Thực hiện theo chức năng nhiệm vụ của điều dưỡng gây mê hồi sức quy định theo thông tư liên tịch số 26/2015/TTLT-BYT ngày 7/10/2015","Toàn thời gian (Từ 7h00 -16h30) và theo lịch trực gác","KTV GMHS","Khoa PTGMHS; Khoa CĐHA",null,"KTV"]
[{"$f":"_xlfn.AGGREGATE(3,3,$C$14:C285)","v":272},"00457","Diệp Thủy Hà","04415/ST-CCHN","Thực hiện phạm vi hoạt động chuyên môn theo quy định tại Thông tư liên tịch số 26/2015/TTLT-BYT-BNV ngày 07/10/2015 của Bộ Y tế - Bộ Nội vụ","Toàn thời gian (Từ 7h00 -16h30) và theo lịch trực gác","KTV GMHS","Khoa PTGMHS; Khoa CĐHA",null,"KTV"]
[{"$f":"_xlfn.AGGREGATE(3,3,$C$14:C286)","v":273},"00156","Diệp Thị Phương Thảo","006370/CT-CCHN","Thực hiện theo chức năng nhiệm vụ của điều dưỡng quy định theo Thông tư liên tịch số 26/2015/TTLT-BYT ngày 07/10/2015","Toàn thời gian (Từ 7h00 -16h30) và theo lịch trực gác","KTV GMHS","Khoa PTGMHS; Khoa CĐHA",null,"KTV"]
[{"$f":"_xlfn.AGGREGATE(3,3,$C$14:C287)","v":274},"00166","Dương Văn Tiểng","001327/CT-CCHN","Thực hiện các kỹ thuật điều dưỡng cơ bản, thực hiện kỹ thuật gây mê hồi sức","Toàn thời gian (Từ 7h00 -16h30) và theo lịch trực gác","KTV GMHS","Khoa PTGMHS; Khoa CĐHA",null,"KTV"]
[{"$f":"_xlfn.AGGREGATE(3,3,$C$14:C288)","v":275},"00437","Lê Thanh Hải","001208/CT-CCHN","Thực hiện các kỹ thuật Điều dưỡng cơ bản","Toàn thời gian (Từ 7h00 -16h30) và theo lịch trực gác","KTV GMHS","Khoa PTGMHS; Khoa CĐHA",null,"KTV"]
[{"$f":"_xlfn.AGGREGATE(3,3,$C$14:C289)","v":276},"00102","Lưu Trần Trung Hiếu ","006378/CT-CCHN","Thực hiện theo chức năng nhiệm vụ của điều dưỡng gây mê hồi sức quy định theo thông tư liên tịch số 26/2015/TTLT-BYT ngày 7/10/2015","Toàn thời gian (Từ 7h00 -16h30) và theo lịch trực gác","KTV GMHS","Khoa PTGMHS; Khoa CĐHA",null,"KTV"]
[{"$f":"_xlfn.AGGREGATE(3,3,$C$14:C290)","v":277},"00400","Trương Hoàng Tú","QY120010/CCHN-BQP","Thực hiện nhiệm vụ chuyên môn điều dưỡng gây mê hồi sức","Toàn thời gian (Từ 7h00 -16h30) và theo lịch trực gác","KTV GMHS","Khoa PTGMHS; Khoa CĐHA",null,"KTV"]
[{"$f":"_xlfn.AGGREGATE(3,3,$C$14:C291)","v":278},"00101","Phạm Cao Đỉnh","004355/CT-CCHN","Thực hiện theo chức năng nhiệm vụ của điều dưỡng quy định tại Thông tư số 26/2015/TTLT-BYT-BNV ngày 07/10/2015","Toàn thời gian (Từ 7h00 -16h30) và theo lịch trực gác","KTV GMHS","Khoa PTGMHS; Khoa CĐHA",null,"KTV"]
[{"$f":"_xlfn.AGGREGATE(3,3,$C$14:C292)","v":279},"00502","Thạch Thị Xuân Đào","007529/CT-CCHN","Thực hiện theo chức năng nhiệm vụ của điều dưỡng quy định theo Thông tư liên tịch số 26/2015/TTLT-BYT-BNV ngày 07/10/2015","Toàn thời gian (Từ 7h00 -16h30) và theo lịch trực gác","KTV GMHS","Khoa PTGMHS; Khoa CĐHA",null,"KTV"]
[{"$f":"_xlfn.AGGREGATE(3,3,$C$14:C293)","v":280},"00304","Lâm Hữu Nghĩa","007004/CT-CCHN","Khám bệnh, chữa bệnh Nội khoa","Bán thời gian và theo lịch trực gác","Bác sĩ hợp tác","Khoa Thần kinh Đột quỵ; Khoa Khám bệnh",null,"BS hợp tác"]
[{"$f":"_xlfn.AGGREGATE(3,3,$C$14:C294)","v":281},"00419","Phan Văn Bằng","002456/HAUG-CCHN","Khám bệnh, chữa bệnh Đa khoa","Bán thời gian và theo lịch trực gác","Bác sĩ hợp tác","Khoa Thần kinh Đột quỵ; Khoa Khám bệnh",null,"BS hợp tác"]
[{"$f":"_xlfn.AGGREGATE(3,3,$C$14:C295)","v":282},"00256","Châu Thị Thúy Liễu","000963/TV-CCHN","Khám bệnh, chữa bệnh chuyên khoa Nội thần kinh","Toàn thời gian (Từ 7h00 -16h30) và theo lịch trực gác","Trưởng Khoa","Khoa Thần kinh Đột quỵ; Khoa Khám bệnh",null,"BS Cơ hữu"]
[{"$f":"_xlfn.AGGREGATE(3,3,$C$14:C296)","v":283},"00313","Trương Phạm Vĩnh Lễ","000377/HAUG-CCHN","Chuyên khoa Nội; Khám bệnh, chữa bệnh tâm thần và thần kinh; Siêu âm tổng quát","Toàn thời gian (Từ 7h00 -16h30) và theo lịch trực gác","Phó khoa","Khoa Thần kinh Đột quỵ; Khoa Khám bệnh",null,"BS Cơ hữu"]
[{"$f":"_xlfn.AGGREGATE(3,3,$C$14:C297)","v":284},"00724","Trương Hoàng Bảo Yến","030213/BYT-CCHN","Khám bệnh, chữa bệnh chuyên khoa Nội tổng hợp, Nội thần kinh","Toàn thời gian (Từ 7h00 -16h30) và theo lịch trực gác","Bác sĩ điều trị","Khoa Thần kinh Đột quỵ; Khoa Khám bệnh",null,"BS Cơ hữu"]
[{"$f":"_xlfn.AGGREGATE(3,3,$C$14:C298)","v":285},"00372","Trần Tiến Thành","005270/CT-CCHN","Khám bệnh, chữa bệnh Nội khoa","Toàn thời gian (Từ 7h00 -16h30) và theo lịch trực gác","Bác sĩ điều trị","Khoa Thần kinh Đột quỵ; Khoa Khám bệnh",null,"BS Cơ hữu"]
[{"$f":"_xlfn.AGGREGATE(3,3,$C$14:C299)","v":286},"00233","Trần Minh Luận","0026985/BYT-CCHN","Khám bệnh, chữa bệnh chuyên khoa Nội tổng hợp","Toàn thời gian (Từ 7h00 -16h30) và theo lịch trực gác","Bác sĩ điều trị","Khoa Thần kinh Đột quỵ; Khoa Khám bệnh",null,"BS Cơ hữu"]
[{"$f":"_xlfn.AGGREGATE(3,3,$C$14:C300)","v":287},"00522","Nguyễn Minh Đăng","007356/CT-CCHN","Khám bệnh, chữa bệnh nội khoa","Toàn thời gian (Từ 7h00 -16h30) và theo lịch trực gác","Bác sĩ điều trị","Khoa Thần kinh Đột quỵ; Khoa Khám bệnh",null,"BS Cơ hữu"]
[{"$f":"_xlfn.AGGREGATE(3,3,$C$14:C301)","v":288},"00528","Nguyễn Đức Cảnh","007403/CT-CCHN","Khám bệnh, chữa bệnh nội khoa","Toàn thời gian (Từ 7h00 -16h30) và theo lịch trực gác","Bác sĩ điều trị","Khoa Thần kinh Đột quỵ; Khoa Khám bệnh",null,"BS Cơ hữu"]
[{"$f":"_xlfn.AGGREGATE(3,3,$C$14:C302)","v":289},"00875","Tạ Mỹ Ngọc","0026097/BYT-CCHN","Khám bệnh, chữa bệnh chuyên khoa Nội thần kinh","Toàn thời gian (Từ 7h00 -16h30) và theo lịch trực gác","Bác sĩ điều trị","Khoa Thần kinh Đột quỵ; Khoa Khám bệnh",null,"BS Cơ hữu"]
[{"$f":"_xlfn.AGGREGATE(3,3,$C$14:C303)","v":290},"00072","Nguyễn Thị Thiên Trang","004116/BYT-CCHN","Thực hiện theo quyết định 41/2005/QĐ-BNV ngày 22/4/2005","Toàn thời gian (Từ 7h00 -16h30) và theo lịch trực gác","Điều dưỡng trưởng ","Khoa Thần kinh Đột quỵ",null,"ĐD"]
[{"$f":"_xlfn.AGGREGATE(3,3,$C$14:C304)","v":291},"00115","Trương Thị Ngọc Linh","000605/CT-CCHN","Thực hiện các kỹ thuật điều dưỡng cơ bản","Toàn thời gian (Từ 7h00 -16h30) và theo lịch trực gác","Điều dưỡng phó","Khoa Thần kinh Đột quỵ",null,"ĐD"]
[{"$f":"_xlfn.AGGREGATE(3,3,$C$14:C305)","v":292},"00118","Võ Phạm Kim Tuyền ","006329/CT-CCHN","Thực hiện theo chức năng nhiệm vụ của điều dưỡng quy định theo Thông tư liên tịch số 26/2015/TTLT-BYT ngày 07/10/2015","Toàn thời gian (Từ 7h00 -16h30) và theo lịch trực gác","Điều dưỡng viên","Khoa Thần kinh Đột quỵ",null,"ĐD"]
[{"$f":"_xlfn.AGGREGATE(3,3,$C$14:C306)","v":293},"00404","Nguyễn Trần Minh Châu","007145/CT-CCHN","Thực hiện theo chức năng nhiệm vụ của điều dưỡng quy định theo Thông tư liên tịch số 26/2015/TTLT-BYT và BNV ngày 07/10/2015","Toàn thời gian (Từ 7h00 -16h30) và theo lịch trực gác","Điều dưỡng viên","Khoa Thần kinh Đột quỵ",null,"ĐD"]
[{"$f":"_xlfn.AGGREGATE(3,3,$C$14:C307)","v":294},"00322","Nguyễn Thị Mỹ Tiên","006995/CT-CCHN","Thực hiện theo chức năng nhiệm vụ của điều dưỡng quy định theo Thông tư liên tịch số 26/2015/TTLT-BYT ngày 07/10/2015","Toàn thời gian (Từ 7h00 -16h30) và theo lịch trực gác","Điều dưỡng viên","Khoa Thần kinh Đột quỵ",null,"ĐD"]
[{"$f":"_xlfn.AGGREGATE(3,3,$C$14:C308)","v":295},"00299","Nguyễn Thị Diệu Linh","08109/AG-CCHN","Thực hiện theo Thông tư số 26/2015/TTLTBYT-BNV ngày 07/10/2015 quy định mã số, tiêu chuẩn chức danh nghề nghiệp điều dưỡng","Toàn thời gian (Từ 7h00 -16h30) và theo lịch trực gác","Điều dưỡng viên","Khoa Thần kinh Đột quỵ",null,"ĐD"]
[{"$f":"_xlfn.AGGREGATE(3,3,$C$14:C309)","v":296},"00654","Nguyễn Thị Điệp","003140/HAUG-CCHN","Thực hiện theo chức năng nhiệm vụ của Điều dưỡng quy định tại Thông tư liên tịch số 26/2015/TTLT-BYT-BNV ngày 07/10/2015","Toàn thời gian (Từ 7h00 -16h30) và theo lịch trực gác","Điều dưỡng viên","Khoa Thần kinh Đột quỵ",null,"ĐD"]
[{"$f":"_xlfn.AGGREGATE(3,3,$C$14:C310)","v":297},"00562","Nguyễn Ngọc Hân","007377/CT-CCHN","Thực hiện theo chức năng nhiệm vụ của điều dưỡng quy định theo Thông tư liên tịch số 26/2015/TTLT-BYT-BNV ngày 07/10/2015","Toàn thời gian (Từ 7h00 -16h30) và theo lịch trực gác","Điều dưỡng viên","Khoa Thần kinh Đột quỵ",null,"ĐD"]
[{"$f":"_xlfn.AGGREGATE(3,3,$C$14:C311)","v":298},"00511","Mai Thị Hồng","007266/CT-CCHN","Thực hiện theo chức năng nhiệm vụ của điều dưỡng quy định theo Thông tư liên tịch số 26/2015/TTLT-BYT-BNV ngày 07/10/2015","Toàn thời gian (Từ 7h00 -16h30) và theo lịch trực gác","Điều dưỡng viên","Khoa Thần kinh Đột quỵ",null,"ĐD"]
[{"$f":"_xlfn.AGGREGATE(3,3,$C$14:C312)","v":299},"00329","Thạch Thị Thu Thảo","007016/CT-CCHN","Thực hiện theo chức năng nhiệm vụ của điều dưỡng quy định theo Thông tư liên tịch số 26/2015/TTLT-BYT ngày 07/10/2015","Toàn thời gian (Từ 7h00 -16h30) và theo lịch trực gác","Điều dưỡng viên","Khoa Thần kinh Đột quỵ",null,"ĐD"]
[{"$f":"_xlfn.AGGREGATE(3,3,$C$14:C313)","v":300},"00178","Lê Thị Ngọc Huyền","006565/CT-CCHN","Thực hiện theo chức năng nhiệm vụ của điều dưỡng quy định theo Thông tư liên tịch số 26/2015/TTLT-BYT ngày 07/10/2015","Toàn thời gian (Từ 7h00 -16h30) và theo lịch trực gác","Điều dưỡng viên","Khoa Thần kinh Đột quỵ",null,"ĐD"]
[{"$f":"_xlfn.AGGREGATE(3,3,$C$14:C314)","v":301},"00403","Lê Thị Diễm Huỳnh","007146/CT-CCHN","Thực hiện theo chức năng nhiệm vụ của điều dưỡng quy định theo Thông tư liên tịch số 26/2015/TTLT-BYT và BNV ngày 07/10/2015","Toàn thời gian (Từ 7h00 -16h30) và theo lịch trực gác","Điều dưỡng viên","Khoa Thần kinh Đột quỵ",null,"ĐD"]
[{"$f":"_xlfn.AGGREGATE(3,3,$C$14:C315)","v":302},"00184","Huỳnh Thị Thúy Loan","000345/CT-CCHN","Thực hiện các kỹ thuật điều dưỡng cơ bản","Toàn thời gian (Từ 7h00 -16h30) và theo lịch trực gác","Điều dưỡng viên","Khoa Thần kinh Đột quỵ",null,"ĐD"]
[{"$f":"_xlfn.AGGREGATE(3,3,$C$14:C316)","v":303},"00510","Huỳnh Quốc Tuấn","007267/CT-CCHN","Thực hiện theo chức năng nhiệm vụ của điều dưỡng quy định theo Thông tư liên tịch số 26/2015/TTLT-BYT-BNV ngày 07/10/2015","Toàn thời gian (Từ 7h00 -16h30) và theo lịch trực gác","Điều dưỡng viên","Khoa Thần kinh Đột quỵ",null,"ĐD"]
[{"$f":"_xlfn.AGGREGATE(3,3,$C$14:C317)","v":304},"00226","Hồ Thị Thảo Nhi","007010/CT-CCHN","Thực hiện theo chức năng nhiệm vụ của điều dưỡng quy định theo Thông tư liên tịch số 26/2015/TTLT-BYT ngày 07/10/2015","Toàn thời gian (Từ 7h00 -16h30) và theo lịch trực gác","Điều dưỡng viên","Khoa Thần kinh Đột quỵ",null,"ĐD"]
[{"$f":"_xlfn.AGGREGATE(3,3,$C$14:C318)","v":305},"00321","Đỗ Thúy Huỳnh","007011/CT-CCHN","Thực hiện theo chức năng nhiệm vụ của điều dưỡng quy định theo Thông tư liên tịch số 26/2015/TTLT-BYT ngày 07/10/2015","Toàn thời gian (Từ 7h00 -16h30) và theo lịch trực gác","Điều dưỡng viên","Khoa Thần kinh Đột quỵ",null,"ĐD"]
[{"$f":"_xlfn.AGGREGATE(3,3,$C$14:C319)","v":306},"00512","Cao Thị Bích Ngọc ","002493/CT-CCHN","Thực hiện các kỹ thuật điều dưỡng cơ bản","Toàn thời gian (Từ 7h00 -16h30) và theo lịch trực gác","Điều dưỡng viên","Khoa Thần kinh Đột quỵ",null,"ĐD"]
[{"$f":"_xlfn.AGGREGATE(3,3,$C$14:C320)","v":307},"00214","Bùi Thị Hồng Nhung","004300/CT-CCHN","Thực hiện theo chức năng nhiệm vụ của điều dưỡng quy định theo Thông tư liên tịch số 26/2015/TTLT-BYT-BNV ngày 07/10/2015","Toàn thời gian (Từ 7h00 -16h30) và theo lịch trực gác","Điều dưỡng viên","Khoa Thần kinh Đột quỵ",null,"ĐD"]
[{"$f":"_xlfn.AGGREGATE(3,3,$C$14:C321)","v":308},"00352","Trương Nguyễn Yến Nhi","007142/CT-CCHN","Thực hiện theo chức năng nhiệm vụ của điều dưỡng quy định theo Thông tư liên tịch số 26/2015/TTLT-BYT và BNV ngày 07/10/2015","Toàn thời gian (Từ 7h00 -16h30) và theo lịch trực gác","Điều dưỡng viên","Khoa Thần kinh Đột quỵ",null,"ĐD"]
[{"$f":"_xlfn.AGGREGATE(3,3,$C$14:C322)","v":309},"00337","Dương Chí Toàn","002732/HAUG-CCHN","Thực hiện theo chức năng nhiệm vụ của y sĩ quy định tại Thông tư liên tịch số 10/2015/TTLT-BYT-BNV ngày 27/5/2015","Toàn thời gian (Từ 7h00 -16h30) và theo lịch trực gác","Điều dưỡng viên","Khoa Thần kinh Đột quỵ",null,"ĐD"]
[{"$f":"_xlfn.AGGREGATE(3,3,$C$14:C323)","v":310},"00452","Huỳnh Tấn Vũ","003210/BYT-CCHN","Khám bệnh, chữa bệnh bằng y học cổ truyền","Bán thời gian (Thứ bảy hàng tuần)","Hợp tác_ BS Vật lý trị liệu, PHCN","Khoa VLTL-PHCN",null,"BS Hợp tác"]
[{"$f":"_xlfn.AGGREGATE(3,3,$C$14:C324)","v":311},"00370","Lê Xuân Phượng","0007485/BYT-CCHN","Khám bệnh, chữa bệnh chuyên khoa Nội tổng hợp, vật lý trị liệu, phục hồi chức năng","Toàn thời gian (sáng Từ 7h00 -11h30) và theo lịch phân công","Trưởng Khoa","Khoa VLTL-PHCN; Khoa PTGMHS; Khoa NTH; Khoa NTH; Khoa TKĐQ",null,"BS Cơ hữu"]
[{"$f":"_xlfn.AGGREGATE(3,3,$C$14:C325)","v":312},"00302","Nguyễn Hữu Thơ","0003359/VL-CCHN","Khám bệnh, chữa bệnh bằng Y học cổ truyền","Toàn thời gian (Từ 7h00 -16h30) và theo lịch trực gác","Bác sĩ điều trị","Khoa VLTL-PHCN; Khoa PTGMHS; Khoa NTH; Khoa NTH; Khoa TKĐQ",null,"BS Cơ hữu"]
[{"$f":"_xlfn.AGGREGATE(3,3,$C$14:C326)","v":313},"00719","Trương Đan Kha","009354/AG-CCHN","Khám bệnh, chữa bệnh chuyên khoa Vật lý trị liệu, Phục hồi chức năng","Toàn thời gian (Từ 7h00 -16h30) và theo lịch trực gác","Bác sĩ điều trị","Khoa VLTL-PHCN; Khoa PTGMHS; Khoa NTH; Khoa NTH; Khoa TKĐQ",null,"BS Cơ hữu"]
[{"$f":"_xlfn.AGGREGATE(3,3,$C$14:C327)","v":314},"00377","Hồ Ngọc Diễm","000218/ĐT-CCHN","Thực hiện kỹ thuật chuyên môn về vật lý trị liệu - PHCN","Toàn thời gian (Từ 7h00 -16h30) và theo lịch trực gác","KTV Trưởng ","Khoa VLTL-PHCN",null,"KTV"]
[{"$f":"_xlfn.AGGREGATE(3,3,$C$14:C328)","v":315},"00121","Phạm Minh Quân","006975/CT-CCHN","Kỹ thuật viên Vật lý trị liệu, phục hồi chức năng","Toàn thời gian (Từ 7h00 -16h30) và theo lịch trực gác","Kỹ thuật viên","Khoa VLTL-PHCN",null,"KTV"]
[{"$f":"_xlfn.AGGREGATE(3,3,$C$14:C329)","v":316},"00386","Phan Ngọc Yến","007509/CT-CCHN","Kỹ thuật viên Vật lý trị liệu - Phục hồi chức năng","Toàn thời gian (Từ 7h00 -16h30) và theo lịch trực gác","Kỹ thuật viên","Khoa VLTL-PHCN",null,"KTV"]
[{"$f":"_xlfn.AGGREGATE(3,3,$C$14:C330)","v":317},"00563","Đoàn Thanh Ngưn","07937/ĐT-CCHN","Kỹ thuật viên Vật lý trị liệu - Phục hồi chức năng","Toàn thời gian (Từ 7h00 -16h30) và theo lịch trực gác","Kỹ thuật viên","Khoa VLTL-PHCN",null,"KTV"]
[{"$f":"_xlfn.AGGREGATE(3,3,$C$14:C331)","v":318},"00794","Nguyễn Thị Huyền Trân","003310/HAUG-CCHN","Kỹ thuật viên Vật lý trị liệu - Phục hồi chức năng","Toàn thời gian (Từ 7h00 -16h30) và theo lịch trực gác","Kỹ thuật viên","Khoa VLTL-PHCN",null,"KTV"]
[{"$f":"_xlfn.AGGREGATE(3,3,$C$14:C332)","v":319},"00378","Nguyễn Duy Linh","006045/CT-CCHN","Kỹ thuật viên Vật lý trị liệu, phục hồi chức năng","Toàn thời gian (Từ 7h00 -16h30) và theo lịch trực gác","Kỹ thuật viên","Khoa VLTL-PHCN",null,"KTV"]
[{"$f":"_xlfn.AGGREGATE(3,3,$C$14:C333)","v":320},"00264","Trần Văn Hoài","002914/HAUG-CCHN","Kỹ thuật viên Vật lý trị liệu - Phục hồi chức năng","Toàn thời gian (Từ 7h00 -16h30) và theo lịch trực gác","Kỹ thuật viên","Khoa VLTL-PHCN",null,"KTV"]
[{"$f":"_xlfn.AGGREGATE(3,3,$C$14:C334)","v":321},"00122","Nguyễn Thị Kim Phụng","006971/CT-CCHN","Kỹ thuật viên Vật lý trị liệu, phục hồi chức năng","Toàn thời gian (Từ 7h00 -16h30) và theo lịch trực gác","Kỹ thuật viên","Khoa VLTL-PHCN",null,"KTV"]
[{"$f":"_xlfn.AGGREGATE(3,3,$C$14:C335)","v":322},"00587","Dương Thúy Hằng","001548/HAUG-CCHN","Kỹ thuật viên Vật lý trị liệu - Phục hồi chức năng","Toàn thời gian (Từ 7h00 -16h30) và theo lịch trực gác","Kỹ thuật viên","Khoa VLTL-PHCN",null,"KTV"]
[{"$f":"_xlfn.AGGREGATE(3,3,$C$14:C336)","v":323},"00796","Trần Minh Nguyệt","047696/HCM-CCHN","Kỹ thuật viên Vật lý trị liệu - Phục hồi chức năng","Toàn thời gian (Từ 7h00 -16h30) và theo lịch trực gác","Kỹ thuật viên","Khoa VLTL-PHCN",null,"KTV"]
[{"$f":"_xlfn.AGGREGATE(3,3,$C$14:C337)","v":324},"00564","Thái Minh Thanh","041748/BYT-CCHN","Thực hiện theo Thông tư số 26/2015/TTLT-BYT-BNV ngày 07/10/2015 quy định mã số, tiêu chuẩn chức danh nghề nghiệp điều dưỡng, hộ sinh, kỹ thuật y","Toàn thời gian (Từ 7h00 -16h30) và theo lịch trực gác","Điều dưỡng viên","Khoa VLTL-PHCN",null,"ĐD"]
[{"$f":"_xlfn.AGGREGATE(3,3,$C$14:C338)","v":325},"00074","Nguyễn Thanh Hồng","004310/CT-CCHN","Thực hiện theo chức năng nhiệm vụ của điều dưỡng quy định tại Thông tư liên tịch số 26/2015/TTLT-BYT-BNV ngày 07/10/2015","Toàn thời gian (Từ 7h00 -16h30) và theo lịch trực gác","Điều dưỡng viên","Khoa VLTL-PHCN",null,"ĐD"]
[{"$f":"_xlfn.AGGREGATE(3,3,$C$14:C339)","v":326},"00755","Trần Công Minh","000349/CT-CCHN","Chuyên khoa Xét nghiệm","Toàn thời gian (Từ 7h00 -16h30) và theo lịch trực gác","Trưởng khoa","Khoa Xét nghiệm",null,"KTV"]
[{"$f":"_xlfn.AGGREGATE(3,3,$C$14:C340)","v":327},"00043","Trần Thị Diễm Trang","004992/CT-CCHN","Chuyên khoa Xét nghiệm","Toàn thời gian (Từ 7h00 -16h30) và theo lịch trực gác","KTV Trưởng","Khoa Xét nghiệm",null,"KTV"]
[{"$f":"_xlfn.AGGREGATE(3,3,$C$14:C341)","v":328},"00714","Trương Thị Phương Thi","005450/CT-CCHN","Kỹ thuật viên xét nghiệm","Toàn thời gian (Từ 7h00 -16h30) và theo lịch trực gác","Kỹ thuật viên","Khoa Xét nghiệm",null,"KTV"]
[{"$f":"_xlfn.AGGREGATE(3,3,$C$14:C342)","v":329},"00594","Trần Thị Thu Sương","007659/CT-CCHN","Chuyên khoa Xét nghiệm","Toàn thời gian (Từ 7h00 -16h30) và theo lịch trực gác","Kỹ thuật viên","Khoa Xét nghiệm",null,"KTV"]
[{"$f":"_xlfn.AGGREGATE(3,3,$C$14:C343)","v":330},"00399","Trần Hoàng Trắng","005352/CT-CCHN","Kỹ thuật viên xét nghiệm","Toàn thời gian (Từ 7h00 -16h30) và theo lịch trực gác","Kỹ thuật viên","Khoa Xét nghiệm",null,"KTV"]
[{"$f":"_xlfn.AGGREGATE(3,3,$C$14:C344)","v":331},"00046","Thạch Huỳnh Quốc Huy","004239/CT-CCHN","Kỹ thuật viên xét nghiệm","Toàn thời gian (Từ 7h00 -16h30) và theo lịch trực gác","Kỹ thuật viên","Khoa Xét nghiệm",null,"KTV"]
[{"$f":"_xlfn.AGGREGATE(3,3,$C$14:C345)","v":332},"00401","Phạm Thị Tuyết Nhi","007220/CT-CCHN","Chuyên khoa Xét nghiệm","Toàn thời gian (Từ 7h00 -16h30) và theo lịch trực gác","Kỹ thuật viên","Khoa Xét nghiệm",null,"KTV"]
[{"$f":"_xlfn.AGGREGATE(3,3,$C$14:C346)","v":333},"00592","Nguyễn Phước Toàn","007657/CT-CCHN","Chuyên khoa Xét nghiệm","Toàn thời gian (Từ 7h00 -16h30) và theo lịch trực gác","Kỹ thuật viên","Khoa Xét nghiệm",null,"KTV"]
[{"$f":"_xlfn.AGGREGATE(3,3,$C$14:C347)","v":334},"00045","Lê Phát Đạt","001974/CT-CCHN","Kỹ thuật viên xét nghiệm","Toàn thời gian (Từ 7h00 -16h30) và theo lịch trực gác","Kỹ thuật viên","Khoa Xét nghiệm",null,"KTV"]
[{"$f":"_xlfn.AGGREGATE(3,3,$C$14:C348)","v":335},"00560","Lê Ngọc Tiếng","005244/CT-CCHN","Chuyên khoa Xét nghiệm","Toàn thời gian (Từ 7h00 -16h30) và theo lịch trực gác","Kỹ thuật viên","Khoa Xét nghiệm",null,"KTV"]
[{"$f":"_xlfn.AGGREGATE(3,3,$C$14:C349)","v":336},"00424","Đoàn Phù Tường Vy","003369/TV-CCHN","Kỹ thuật viên xét nghiệm","Toàn thời gian (Từ 7h00 -16h30) và theo lịch trực gác","Kỹ thuật viên","Khoa Xét nghiệm",null,"KTV"]
[{"$f":"_xlfn.AGGREGATE(3,3,$C$14:C350)","v":337},"00047","Nguyễn Văn Thà","006306/CT-CCHN","Kỹ thuật viên xét nghiệm","Toàn thời gian (Từ 7h00 -16h30) và theo lịch trực gác","Kỹ thuật viên","Khoa Xét nghiệm",null,"KTV"]
[{"$f":"_xlfn.AGGREGATE(3,3,$C$14:C351)","v":338},"00914","Lý Huỳnh Gia Hảo","0003397/BL-CCHN","Chuyên khoa Xét nghiệm","Toàn thời gian (Từ 7h00 -16h30) và theo lịch trực gác","Kỹ thuật viên","Khoa Xét nghiệm",null,"KTV"]
[null,null,"Tổng danh sách người có chứng chỉ hành nghề khám bệnh, chữa bệnh: 338"]
[null,null,"Tổng có 124 Bác sĩ (Cơ hữu: 90 và hợp tác: 34)"]
[null,null,"Điều dưỡng (+GMHS): 143"]
[null,null,"KTV: 46"]
[null,null,"Dược sĩ: 23"]
[null,null,"TKYK: 02"]
[{"$nulls":6},"PHÓ GIÁM ĐỐC"]

{"sheet":"DANG KY LAM VIEC","index":1,"n_rows":137,"n_cols":6,"rows_kept":137,"cut":false,"hidden":false,"merged":[[136,4,136,5]]}
["7.",null," Danh sách đăng ký người làm việc: đối tượng làm việc không thuộc diện cấp chứng chỉ hành nghề khám bệnh, chữa bệnh"]
[]
["TT","Mã NV","Họ và Tên","Văn bằng chuyên môn","Thời gian đăng ký làm việc tại cơ sở khám bệnh, chữa bệnh (ghi cụ thể thời gian làm việc)","Vị trí làm việc"]
[{"$f":"_xlfn.AGGREGATE(3,3,$C$4:C4)","v":1},"00464","Nguyễn Văn Trung","Thạc sĩ quản lý bệnh viện","Toàn thời gian (Từ 7h00 -16h30) và theo lịch trực gác","Trưởng phòng QLCL"]
[{"$f":"_xlfn.AGGREGATE(3,3,$C$4:C5)","v":2},"00809","Nguyễn Kiều Anh","Cử nhân quản lý bệnh viện","Toàn thời gian (Từ 7h00 -16h30) và theo lịch trực gác","Nhân viên QLCL"]
[{"$f":"_xlfn.AGGREGATE(3,3,$C$4:C6)","v":3},"00843","Lê Hồng Phương","Cử nhân Dược Sĩ","Toàn thời gian (Từ 7h00 -16h30) và theo lịch trực gác","Nhân viên QLCL"]
[{"$f":"_xlfn.AGGREGATE(3,3,$C$4:C7)","v":4},"00279","Tạ Thị Minh Châu","Sư phạm Vật lý","Toàn thời gian (Từ 7h00 -16h30) và theo lịch trực gác","Nhân viên Kế hoạch tổng hợp_thư ký"]
[{"$f":"_xlfn.AGGREGATE(3,3,$C$4:C8)","v":5},"00192","Võ Thị Kim Ngân","Cử nhân y tế công cộng","Toàn thời gian (Từ 7h00 -16h30) và theo lịch trực gác","Nhân viên Kế hoạch tổng hợp_lưu trữ"]
[{"$f":"_xlfn.AGGREGATE(3,3,$C$4:C9)","v":6},"00388","Phan Hồng Nga","Trung cấp Dược","Toàn thời gian (Từ 7h00 -16h30) và theo lịch trực gác","Nhân viên Kế hoạch tổng hợp_BHYT"]
[{"$f":"_xlfn.AGGREGATE(3,3,$C$4:C10)","v":7},"00559","Mai Trung Kiên","Kỹ sư CNTT","Toàn thời gian (Từ 7h00 -16h30) và theo lịch trực gác","Nhân viên Kế hoạch tổng hợp"]
[{"$f":"_xlfn.AGGREGATE(3,3,$C$4:C11)","v":8},"00418","Nguyễn Lê Y Trang","Cử nhân y tế công cộng","Toàn thời gian (Từ 7h00 -16h30) và theo lịch trực gác","Nhân viên Kế hoạch tổng hợp_NCKH"]
[{"$f":"_xlfn.AGGREGATE(3,3,$C$4:C12)","v":9},"00575","Nguyễn Ngọc Diệp","Thạc sĩ Luật","Toàn thời gian (Từ 7h00 -16h30) và theo lịch trực gác","Tp.Hành chính Nhân sự"]
[{"$f":"_xlfn.AGGREGATE(3,3,$C$4:C13)","v":10},"00581","Nguyễn Nhiệm Vụ","Cử nhân Luật/văn học","Toàn thời gian (Từ 7h00 -16h30) và theo lịch trực gác","Trợ lý Hành chính Nhân sự"]
[{"$f":"_xlfn.AGGREGATE(3,3,$C$4:C14)","v":11},"00821","Nguyễn Thị Trúc Giang","Cử nhân Du lịch","Toàn thời gian (Từ 7h00 -16h30) và theo lịch trực gác","Nhân viên Nhân sự"]
[{"$f":"_xlfn.AGGREGATE(3,3,$C$4:C15)","v":12},"00865","Ngô Thanh Huy","Cử nhân Toán ứng dụng","Toàn thời gian (Từ 7h00 -16h30) và theo lịch trực gác","Nhân viên Nhân sự"]
[{"$f":"_xlfn.AGGREGATE(3,3,$C$4:C16)","v":13},"00919","Phan Thị Điền Anh","Cử nhân Quản trị kinh doanh","Toàn thời gian (Từ 7h00 -16h30) và theo lịch trực gác","Trưởng BP Nhân sự"]
[{"$f":"_xlfn.AGGREGATE(3,3,$C$4:C17)","v":14},"00584","Phạm Thị Yến Nhi","Cử nhân Tài chính Ngân hàng","Toàn thời gian (Từ 7h00 -16h30) và theo lịch trực gác","Thư ký BGĐ"]
[{"$f":"_xlfn.AGGREGATE(3,3,$C$4:C18)","v":15},"00151","Phạm Tiêu Giao","Cử nhân kế toán","Toàn thời gian (Từ 7h00 -16h30) và theo lịch trực gác","Nhân viên Hành chính (văn thư)- Kho"]
[{"$f":"_xlfn.AGGREGATE(3,3,$C$4:C19)","v":16},"00032","Lê Mạnh Long","Cử nhân quản trị kinh doanh","Toàn thời gian (Từ 7h00 -16h30) và theo lịch trực gác","Nhân viên Hành chính-VTTTB-quản lý kho-tài xế "]
[{"$f":"_xlfn.AGGREGATE(3,3,$C$4:C20)","v":17},"00027","Bùi Hữu Sáng","Cử nhân Luật,Cử nhân ngôn ngữ Pháp","Toàn thời gian (Từ 7h00 -16h30) và theo lịch trực gác","Nhân viên Hành chính-Thư ký Ban giám đốc"]
[{"$f":"_xlfn.AGGREGATE(3,3,$C$4:C21)","v":18},"00398","Huỳnh Anh Khoa","Cử nhân QT DV Du lịch và lữ hành","Toàn thời gian (Từ 7h00 -16h30) và theo lịch trực gác","Nhân viên Giám sát (cảnh quan-vệ sinh)"]
[{"$f":"_xlfn.AGGREGATE(3,3,$C$4:C22)","v":19},"00922","Võ Thị Hồng Trân","Cử nhân Tài chính doanh nghiệp","Toàn thời gian (Từ 7h00 -16h30) và theo lịch trực gác","Nhân viên Giám sát "]
[{"$f":"_xlfn.AGGREGATE(3,3,$C$4:C23)","v":20},"00069","Trần Thị Phụng",null,"Toàn thời gian (Từ 7h00 -16h30) và theo lịch trực gác","Nhân viên Giám sát (cảnh quan-vệ sinh)"]
[{"$f":"_xlfn.AGGREGATE(3,3,$C$4:C24)","v":21},"00224","Trương Ngọc Dương","Giấy phép lái xe hạng D","Toàn thời gian (Từ 7h00 -16h30) và theo lịch trực gác","Nhân viên lái xe"]
[{"$f":"_xlfn.AGGREGATE(3,3,$C$4:C25)","v":22},"00298","Đinh Bảo Châu","Giấy phép lái xe hạng E","Toàn thời gian (Từ 7h00 -16h30) và theo lịch trực gác","Nhân viên lái xe"]
[{"$f":"_xlfn.AGGREGATE(3,3,$C$4:C26)","v":23},"00311","Huỳnh Quốc Sủng","Giấy phép lái xe hạng D","Toàn thời gian (Từ 7h00 -16h30) và theo lịch trực gác","Nhân viên lái xe"]
[{"$f":"_xlfn.AGGREGATE(3,3,$C$4:C27)","v":24},"00583","Võ Hoàng Anh","Giấy phép lái xe hạng D","Toàn thời gian (Từ 7h00 -16h30) và theo lịch trực gác","Nhân viên lái xe"]
[{"$f":"_xlfn.AGGREGATE(3,3,$C$4:C28)","v":25},"00154","Nguyễn Đức Thịnh","Cử nhân Toán ứng dụng","Toàn thời gian (Từ 7h00 -16h30) và theo lịch trực gác","NV truyền thông"]
[{"$f":"_xlfn.AGGREGATE(3,3,$C$4:C29)","v":26},"00431","Hồ Á Tiên","Cử nhân Ngôn ngữ Anh","Toàn thời gian (Từ 7h00 -16h30) và theo lịch trực gác","NV truyền thông"]
[{"$f":"_xlfn.AGGREGATE(3,3,$C$4:C30)","v":27},"00351","Hồ Kim Cương","Cử nhân Nhân học","Toàn thời gian (Từ 7h00 -16h30) và theo lịch trực gác","NV truyền thông"]
[{"$f":"_xlfn.AGGREGATE(3,3,$C$4:C31)","v":28},"00282","Trần Thị Thúy Hằng","Cử nhân Tài chính ngân hàng, Cử nhân Ngôn ngữ anh","Toàn thời gian (Từ 7h00 -16h30) và theo lịch trực gác","NV truyền thông"]
[{"$f":"_xlfn.AGGREGATE(3,3,$C$4:C32)","v":29},"00749","Trương Huỳnh Minh Thư","Cử nhân Marketing","Toàn thời gian (Từ 7h00 -16h30) và theo lịch trực gác","Sale- MKT"]
[{"$f":"_xlfn.AGGREGATE(3,3,$C$4:C33)","v":30},"00795","Nguyễn Đức Tín","Cử nhân Quản trị kinh doanh","Toàn thời gian (Từ 7h00 -16h30) và theo lịch trực gác","Sale- MKT"]
[{"$f":"_xlfn.AGGREGATE(3,3,$C$4:C34)","v":31},"00280","Trần Mỹ Trang","Cử nhân luật","Toàn thời gian (Từ 7h00 -16h30) và theo lịch trực gác","Nhân viên Callcenter"]
[{"$f":"_xlfn.AGGREGATE(3,3,$C$4:C35)","v":32},"00414","Nguyễn Thị Ngọc Phương","Cao Đẳng (NN Anh)","Toàn thời gian (Từ 7h00 -16h30) và theo lịch trực gác","Trưởng nhóm Chăm sóc khách hàng"]
[{"$f":"_xlfn.AGGREGATE(3,3,$C$4:C36)","v":33},"00417","Võ Tống Nhật Quân","Cử nhân Ngôn ngữ Anh","Toàn thời gian (Từ 7h00 -16h30) và theo lịch trực gác","Nhân viên Callcenter"]
[{"$f":"_xlfn.AGGREGATE(3,3,$C$4:C37)","v":34},"00571","Phạm Thị Kiểu","Cử nhân TCNH","Toàn thời gian (Từ 7h00 -16h30) và theo lịch trực gác","Nhân viên Callcenter"]
[{"$f":"_xlfn.AGGREGATE(3,3,$C$4:C38)","v":35},"00570","Hà Thị Thùy Trang","Cử nhân QT DVDL&LH","Toàn thời gian (Từ 7h00 -16h30) và theo lịch trực gác","Nhân viên Callcenter"]
[{"$f":"_xlfn.AGGREGATE(3,3,$C$4:C39)","v":36},"00572","Trịnh Nguyễn Ngọc Hằng","Cử nhân QTKD","Toàn thời gian (Từ 7h00 -16h30) và theo lịch trực gác","Nhân viên Callcenter"]
[{"$f":"_xlfn.AGGREGATE(3,3,$C$4:C40)","v":37},"00281","Nguyễn Thị Trúc Nương","Cử nhân Quan hệ công chúng","Toàn thời gian (Từ 7h00 -16h30) và theo lịch trực gác","Nhân viên Callcenter"]
[{"$f":"_xlfn.AGGREGATE(3,3,$C$4:C41)","v":38},"00573","Nguyễn Ngọc Em","Cử nhân Ngôn Ngữ Anh","Toàn thời gian (Từ 7h00 -16h30) và theo lịch trực gác","Nhân viên Callcenter"]
[{"$f":"_xlfn.AGGREGATE(3,3,$C$4:C42)","v":39},"00471","Lê Trương Cẩm Như","Cử nhân Hóa Học","Toàn thời gian (Từ 7h00 -16h30) và theo lịch trực gác","Nhân viên Callcenter"]
[{"$f":"_xlfn.AGGREGATE(3,3,$C$4:C43)","v":40},"00472","Ngô Thị Phương Hồng","Cử nhân QTKD","Toàn thời gian (Từ 7h00 -16h30) và theo lịch trực gác","Nhân viên Callcenter"]
[{"$f":"_xlfn.AGGREGATE(3,3,$C$4:C44)","v":41},"00834","Nguyễn Hồng Diễm","Cử nhân Quản lý kinh doanh","Toàn thời gian (Từ 7h00 -16h30) và theo lịch trực gác","Nhân viên Callcenter"]
[{"$f":"_xlfn.AGGREGATE(3,3,$C$4:C45)","v":42},"00895","Trần Vũ Hiệp","Cử nhân Ngôn ngữ Anh","Toàn thời gian (Từ 7h00 -16h30) và theo lịch trực gác","Nhân viên Callcenter"]
[{"$f":"_xlfn.AGGREGATE(3,3,$C$4:C46)","v":43},"00731","Ngô Ngọc Giào","Trung cấp Bưu chính viễn thông","Toàn thời gian (Từ 7h00 -16h30) và theo lịch trực gác","Trưởng nhóm CSKH"]
[{"$f":"_xlfn.AGGREGATE(3,3,$C$4:C47)","v":44},"00615","Võ Thị Thanh Thảo","Cao đẳng Dược học","Toàn thời gian (Từ 7h00 -16h30) và theo lịch trực gác","Nhân viên CSKH"]
[{"$f":"_xlfn.AGGREGATE(3,3,$C$4:C48)","v":45},"00618","Võ Bình Thư","Cử nhân Khoa học môi trường","Toàn thời gian (Từ 7h00 -16h30) và theo lịch trực gác","Nhân viên CSKH"]
[{"$f":"_xlfn.AGGREGATE(3,3,$C$4:C49)","v":46},"00430","Nguyễn Thị Tuyết Nhi","Cử nhân Tiếng anh","Toàn thời gian (Từ 7h00 -16h30) và theo lịch trực gác","Nhân viên CSKH"]
[{"$f":"_xlfn.AGGREGATE(3,3,$C$4:C50)","v":47},"00614","Nguyễn Ngọc Trang Đài","Trung cấp Sư phạm tiểu học","Toàn thời gian (Từ 7h00 -16h30) và theo lịch trực gác","Nhân viên CSKH"]
[{"$f":"_xlfn.AGGREGATE(3,3,$C$4:C51)","v":48},"00300","Nguyễn Ngọc Thúy","THPT","Toàn thời gian (Từ 7h00 -16h30) và theo lịch trực gác","Nhân viên CSKH"]
[{"$f":"_xlfn.AGGREGATE(3,3,$C$4:C52)","v":49},"00617","Lê Thị Oanh Nhi","Sư phạm tiếng pháp","Toàn thời gian (Từ 7h00 -16h30) và theo lịch trực gác","Nhân viên CSKH"]
[{"$f":"_xlfn.AGGREGATE(3,3,$C$4:C53)","v":50},"00807","Khưu Thúy Ngọc","Cử nhân Văn học","Toàn thời gian (Từ 7h00 -16h30) và theo lịch trực gác","Nhân viên CSKH"]
[{"$f":"_xlfn.AGGREGATE(3,3,$C$4:C54)","v":51},"00761","Trần Khánh Hà","THPT","Toàn thời gian (Từ 7h00 -16h30) và theo lịch trực gác","Nhân viên CSKH"]
[{"$f":"_xlfn.AGGREGATE(3,3,$C$4:C55)","v":52},"00762","Phan Hữu Lộc","Cử nhân Thông tin học","Toàn thời gian (Từ 7h00 -16h30) và theo lịch trực gác","Nhân viên CSKH"]
[{"$f":"_xlfn.AGGREGATE(3,3,$C$4:C56)","v":53},"00756","Hứa Ái Tiên","Cử nhân Kinh doanh thương mại","Toàn thời gian (Từ 7h00 -16h30) và theo lịch trực gác","Nhân viên CSKH"]
[{"$f":"_xlfn.AGGREGATE(3,3,$C$4:C57)","v":54},"00810","Trần Thị Khánh Trân","Cử nhân Văn học","Toàn thời gian (Từ 7h00 -16h30) và theo lịch trực gác","Nhân viên CSKH"]
[{"$f":"_xlfn.AGGREGATE(3,3,$C$4:C58)","v":55},"00858","Lê Thị Luyến","Cử nhân quản trị kinh doanh","Toàn thời gian (Từ 7h00 -16h30) và theo lịch trực gác","Nhân viên CSKH"]
[{"$f":"_xlfn.AGGREGATE(3,3,$C$4:C59)","v":56},"00861","Lữ Ngọc Hân","Cử nhân kế toán","Toàn thời gian (Từ 7h00 -16h30) và theo lịch trực gác","Nhân viên CSKH"]
[{"$f":"_xlfn.AGGREGATE(3,3,$C$4:C60)","v":57},"00876","Trương Vỹ Thái","Cử nhân quản trị kinh doanh","Toàn thời gian (Từ 7h00 -16h30) và theo lịch trực gác","Nhân viên CSKH"]
[{"$f":"_xlfn.AGGREGATE(3,3,$C$4:C61)","v":58},"00349","Đinh Thị Kim Thuyền","Trung cấp Y sĩ","Toàn thời gian (Từ 7h00 -16h30) và theo lịch trực gác","Trưởng nhóm tiếp nhận bệnh"]
[{"$f":"_xlfn.AGGREGATE(3,3,$C$4:C62)","v":59},"00612","Huỳnh Thị Kim Đồng","Cử nhân Phát triển nông thôn","Toàn thời gian (Từ 7h00 -16h30) và theo lịch trực gác","Nhân viên tiếp nhận bệnh"]
[{"$f":"_xlfn.AGGREGATE(3,3,$C$4:C63)","v":60},"00467","Đinh Thị Thủy Lâm","Cao đẳng Quản trị doanh nghiệp vừa và nhỏ","Toàn thời gian (Từ 7h00 -16h30) và theo lịch trực gác","Nhân viên tiếp nhận bệnh"]
[{"$f":"_xlfn.AGGREGATE(3,3,$C$4:C64)","v":61},"00429","Nguyễn Vủ Trường","Cử nhân Điều dưỡng","Toàn thời gian (Từ 7h00 -16h30) và theo lịch trực gác","Nhân viên tiếp nhận bệnh"]
[{"$f":"_xlfn.AGGREGATE(3,3,$C$4:C65)","v":62},"00191","Lê Vũ Bảo Ngọc","Cao đẳng Tài chính Ngân hàng","Toàn thời gian (Từ 7h00 -16h30) và theo lịch trực gác","Nhân viên tiếp nhận bệnh"]
[{"$f":"_xlfn.AGGREGATE(3,3,$C$4:C66)","v":63},"00167","Nguyễn Huỳnh Hà Giang","Cử nhân Luật kinh tế","Toàn thời gian (Từ 7h00 -16h30) và theo lịch trực gác","Nhân viên tiếp nhận bệnh"]
[{"$f":"_xlfn.AGGREGATE(3,3,$C$4:C67)","v":64},"00763","Trần Thanh Huy","Cao đẳng Dược","Toàn thời gian (Từ 7h00 -16h30) và theo lịch trực gác","Nhân viên tiếp nhận bệnh"]
[{"$f":"_xlfn.AGGREGATE(3,3,$C$4:C68)","v":65},"00835","Ngô Thị Mỹ Xuyên","Cử nhân Ngôn ngữ Anh","Toàn thời gian (Từ 7h00 -16h30) và theo lịch trực gác","Nhân viên tiếp nhận bệnh"]
[{"$f":"_xlfn.AGGREGATE(3,3,$C$4:C69)","v":66},"00859","Hoàng Phương Quyên","Cử nhân Tài chính Ngân hàng","Toàn thời gian (Từ 7h00 -16h30) và theo lịch trực gác","Nhân viên tiếp nhận bệnh"]
[{"$f":"_xlfn.AGGREGATE(3,3,$C$4:C70)","v":67},"00860","Lê Thị Quyền Trân","Cử nhân Marketing","Toàn thời gian (Từ 7h00 -16h30) và theo lịch trực gác","Nhân viên tiếp nhận bệnh"]
[{"$f":"_xlfn.AGGREGATE(3,3,$C$4:C71)","v":68},"00348","Phan Thị Thúy Kiều","Trung cấp Y sĩ","Toàn thời gian (Từ 7h00 -16h30) và theo lịch trực gác","Thư ký Y khoa_CĐHA"]
[{"$f":"_xlfn.AGGREGATE(3,3,$C$4:C72)","v":69},"00392","Đinh Thị Lan Anh","Cử nhân Quản trị kinh doanh","Toàn thời gian (Từ 7h00 -16h30) và theo lịch trực gác","Thư ký Y khoa-CĐHA"]
[{"$f":"_xlfn.AGGREGATE(3,3,$C$4:C73)","v":70},"00462","Trần Thị Tâm Mỹ","Cử nhân Kinh doanh Quốc tế","Toàn thời gian (Từ 7h00 -16h30) và theo lịch trực gác","Thư ký Y khoa-CĐHA"]
[{"$f":"_xlfn.AGGREGATE(3,3,$C$4:C74)","v":71},"00432","Nguyễn Thị Hồng Loan","Cử nhân Dược Sĩ","Toàn thời gian (Từ 7h00 -16h30) và theo lịch trực gác","Thư ký Y khoa-CĐHA"]
[{"$f":"_xlfn.AGGREGATE(3,3,$C$4:C75)","v":72},"00793","Lê Thị Mị","Cử nhân Phát triển nông thôn","Toàn thời gian (Từ 7h00 -16h30) và theo lịch trực gác","Thư ký Y khoa-CĐHA"]
[{"$f":"_xlfn.AGGREGATE(3,3,$C$4:C76)","v":73},"00820","Trần Thị Kim Yến","Cử nhân Sinh học","Toàn thời gian (Từ 7h00 -16h30) và theo lịch trực gác","Thư ký Y khoa-CĐHA"]
[{"$f":"_xlfn.AGGREGATE(3,3,$C$4:C77)","v":74},"00620","Lê Thị Hồng Nở","Trung cấp Y sĩ đa khoa","Toàn thời gian (Từ 7h00 -16h30) và theo lịch trực gác","Thư ký Y khoa-CĐHA"]
[{"$f":"_xlfn.AGGREGATE(3,3,$C$4:C78)","v":75},"00816","Bùi Thị Nhật Tiên","Cử nhân Việt Nam học/ Ngôn ngữ anh","Toàn thời gian (Từ 7h00 -16h30) và theo lịch trực gác","Thư ký Y khoa-CĐHA"]
[{"$f":"_xlfn.AGGREGATE(3,3,$C$4:C79)","v":76},"00836","Phạm Thái Vy","Cử nhân Tiếng anh","Toàn thời gian (Từ 7h00 -16h30) và theo lịch trực gác","Thư ký Y khoa-CĐHA"]
[{"$f":"_xlfn.AGGREGATE(3,3,$C$4:C80)","v":77},"00837","Trần Huỳnh Như","Cử nhân Văn học","Toàn thời gian (Từ 7h00 -16h30) và theo lịch trực gác","Thư ký Y khoa-CĐHA"]
[{"$f":"_xlfn.AGGREGATE(3,3,$C$4:C81)","v":78},"00908","Lê Thị Đang Ninh","Cao đẳng dược học","Toàn thời gian (Từ 7h00 -16h30) và theo lịch trực gác","Thư ký Y khoa-CĐHA"]
[{"$f":"_xlfn.AGGREGATE(3,3,$C$4:C82)","v":79},"00023","Đinh Hoàng Khoa","Kỹ sư tin học","Toàn thời gian (Từ 7h00 -16h30) và theo lịch trực gác","Trưởng phòng CNTT"]
[{"$f":"_xlfn.AGGREGATE(3,3,$C$4:C83)","v":80},"00024","Nguyễn Văn Chiến","Cử nhân công nghệ phần mềm","Toàn thời gian (Từ 7h00 -16h30) và theo lịch trực gác","Nhân viên CNTT"]
[{"$f":"_xlfn.AGGREGATE(3,3,$C$4:C84)","v":81},"00036","Phan Minh Quang","Kỹ sư công nghệ thông tin","Toàn thời gian (Từ 7h00 -16h30) và theo lịch trực gác","Nhân viên CNTT"]
[{"$f":"_xlfn.AGGREGATE(3,3,$C$4:C85)","v":82},"00217","Nguyễn Đình Quang","Kỹ sư Khoa học máy tính","Toàn thời gian (Từ 7h00 -16h30) và theo lịch trực gác","Nhân viên CNTT"]
[{"$f":"_xlfn.AGGREGATE(3,3,$C$4:C86)","v":83},"00468","Phạm Duy","Cao đẳng CNTT","Toàn thời gian (Từ 7h00 -16h30) và theo lịch trực gác","Nhân viên CNTT"]
[{"$f":"_xlfn.AGGREGATE(3,3,$C$4:C87)","v":84},"00912","Nguyễn Minh Trung","Kỹ sư công nghệ thông tin","Toàn thời gian (Từ 7h00 -16h30) và theo lịch trực gác","Nhân viên CNTT"]
[{"$f":"_xlfn.AGGREGATE(3,3,$C$4:C88)","v":85},"00918","Lý Gia Thạnh","Kỹ sư Khoa học máy tính","Toàn thời gian (Từ 7h00 -16h30) và theo lịch trực gác","Nhân viên CNTT"]
[{"$f":"_xlfn.AGGREGATE(3,3,$C$4:C89)","v":86},"00025","Phan Trịnh Minh Hòa","Cử nhân công nghệ kỹ thuật điện tử tự động","Toàn thời gian (Từ 7h00 -16h30) và theo lịch trực gác","Trưởng phòng QLVH"]
[{"$f":"_xlfn.AGGREGATE(3,3,$C$4:C90)","v":87},"00203","Huỳnh Văn Uốt","Trung cấp điện công nghiệp và dân dụng ","Toàn thời gian (Từ 7h00 -16h30) và theo lịch trực gác","Nhân viên bảo trì"]
[{"$f":"_xlfn.AGGREGATE(3,3,$C$4:C91)","v":88},"00200","Võ Tuấn Danh","Trung cấp điện công nghiệp ","Toàn thời gian (Từ 7h00 -16h30) và theo lịch trực gác","Nhân viên bảo trì"]
[{"$f":"_xlfn.AGGREGATE(3,3,$C$4:C92)","v":89},"00030","Trần Trung Dũng ","Kỹ sư điện điện tử","Toàn thời gian (Từ 7h00 -16h30) và theo lịch trực gác","Nhân viên bảo trì"]
[{"$f":"_xlfn.AGGREGATE(3,3,$C$4:C93)","v":90},"00029","Bùi Minh Chí","Kỹ sư điện điện tử","Toàn thời gian (Từ 7h00 -16h30) và theo lịch trực gác","Nhân viên bảo trì"]
[{"$f":"_xlfn.AGGREGATE(3,3,$C$4:C94)","v":91},"00158","Bùi Minh Tuấn","Kỹ sư công nghệ kỹ thuật điện tử, truyền thông","Toàn thời gian (Từ 7h00 -16h30) và theo lịch trực gác","Nhân viên trang thiết vị y tế"]
[{"$f":"_xlfn.AGGREGATE(3,3,$C$4:C95)","v":92},"00469","Nguyễn Đăng Lợi","Kỹ sư KT điện tử, truyền thông","Toàn thời gian (Từ 7h00 -16h30) và theo lịch trực gác","Nhân viên trang thiết vị y tế"]
[{"$f":"_xlfn.AGGREGATE(3,3,$C$4:C96)","v":93},"00347","Phan Trọng Nghĩa","Kỹ sư Công nghệ KThuật điện","Toàn thời gian (Từ 7h00 -16h30) và theo lịch trực gác","Nhân viên bảo trì"]
[{"$f":"_xlfn.AGGREGATE(3,3,$C$4:C97)","v":94},"00346","Nguyễn Thanh Tuấn","Kỹ sư Kỹ thuật điện, điện tử","Toàn thời gian (Từ 7h00 -16h30) và theo lịch trực gác","Nhân viên bảo trì"]
[{"$f":"_xlfn.AGGREGATE(3,3,$C$4:C98)","v":95},"00382","Trần Ngọc Hiển","Cao đẳng Kỹ thuật máy lạnh và điều hòa không khí","Toàn thời gian (Từ 7h00 -16h30) và theo lịch trực gác","Nhân viên bảo trì"]
[{"$f":"_xlfn.AGGREGATE(3,3,$C$4:C99)","v":96},"00345","Trần Tuấn Khởi","Kỹ sư Công nghệ KThuật điện","Toàn thời gian (Từ 7h00 -16h30) và theo lịch trực gác","Nhân viên bảo trì"]
[{"$f":"_xlfn.AGGREGATE(3,3,$C$4:C100)","v":97},"00003","Hoàng Kim Nga","Thạc sĩ tài chính","Toàn thời gian (Từ 7h00 -16h30) và theo lịch trực gác","PGĐ Cố vấn tài chính"]
[{"$f":"_xlfn.AGGREGATE(3,3,$C$4:C101)","v":98},"00008","Trần Thị Ngọc Bích","Cử nhân tài chính ngân hàng","Toàn thời gian (Từ 7h00 -16h30) và theo lịch trực gác","Trưởng phòng TCKT"]
[{"$f":"_xlfn.AGGREGATE(3,3,$C$4:C102)","v":99},"00312","Nguyễn Thị Thúy Hồng","Cử nhân kế toán","Toàn thời gian (Từ 7h00 -16h30) và theo lịch trực gác","Chuyên viên TCKT"]
[{"$f":"_xlfn.AGGREGATE(3,3,$C$4:C103)","v":100},"00842","Võ Hữu Tâm","Cử nhân tài chính kế toán","Toàn thời gian (Từ 7h00 -16h30) và theo lịch trực gác","Chuyên viên TCKT"]
[{"$f":"_xlfn.AGGREGATE(3,3,$C$4:C104)","v":101},"00011","Lê Thị Anh Thư","Thạc sĩ tài chính","Bán Thời gian (03 ngày / tuần, theo lịch phân công)","Chuyên viên TCKT"]
[{"$f":"_xlfn.AGGREGATE(3,3,$C$4:C105)","v":102},"00010","Trương Thị Bích Ngọc","Cử nhân kế toán","Toàn thời gian (Từ 7h00 -16h30) và theo lịch trực gác","Nhân viên Kế toán-KTTH "]
[{"$f":"_xlfn.AGGREGATE(3,3,$C$4:C106)","v":103},"00012","Phan Nguyễn Anh Thư","Cử nhân kế toán","Toàn thời gian (Từ 7h00 -16h30) và theo lịch trực gác","Nhân viên Kế toán_vật tư trang thiết bị"]
[{"$f":"_xlfn.AGGREGATE(3,3,$C$4:C107)","v":104},"00013","Nguyễn Ngọc Đan Thanh","Cử nhân kế toán","Toàn thời gian (Từ 7h00 -16h30) và theo lịch trực gác","Nhân viên Kế toán thu"]
[{"$f":"_xlfn.AGGREGATE(3,3,$C$4:C108)","v":105},"00839","Trần Mỹ Hạnh","Cử nhân kế toán","Toàn thời gian (Từ 7h00 -16h30) và theo lịch trực gác","Nhân viên Kế toán vật tư"]
[{"$f":"_xlfn.AGGREGATE(3,3,$C$4:C109)","v":106},"00014","Văn Thị Chánh","Cử nhân kế toán","Toàn thời gian (Từ 7h00 -16h30) và theo lịch trực gác","Nhân viên Kế toán_BHYT"]
[{"$f":"_xlfn.AGGREGATE(3,3,$C$4:C110)","v":107},"00016","Võ Thanh Nhanh","Cử nhân tài chính ngân hàng","Toàn thời gian (Từ 7h00 -16h30) và theo lịch trực gác","Nhân viên thu ngân"]
[{"$f":"_xlfn.AGGREGATE(3,3,$C$4:C111)","v":108},"00018","Bùi Thị Tươi","Cử nhân kế toán","Toàn thời gian (Từ 7h00 -16h30) và theo lịch trực gác","Nhân viên Kế toán_KT dược"]
[{"$f":"_xlfn.AGGREGATE(3,3,$C$4:C112)","v":109},"00725","Nguyễn Ngọc Mai","Cử nhân kế toán","Toàn thời gian (Từ 7h00 -16h30) và theo lịch trực gác","Nhân viên Kế toán công nợ"]
[{"$f":"_xlfn.AGGREGATE(3,3,$C$4:C113)","v":110},"00254","Nguyễn Thị Huyền Trinh","Cử nhân tài chính ngân hàng","Toàn thời gian (Từ 7h00 -16h30) và theo lịch trực gác","Nhân viên thu ngân_BHXH"]
[{"$f":"_xlfn.AGGREGATE(3,3,$C$4:C114)","v":111},"00387","Thang Ân Ân","Cử nhân kế toán","Toàn thời gian (Từ 7h00 -16h30) và theo lịch trực gác","Nhân viên Kế toán-KTTH "]
[{"$f":"_xlfn.AGGREGATE(3,3,$C$4:C115)","v":112},"00179","Nguyễn Thị Phước","Trung cấp kế toán","Toàn thời gian (Từ 7h00 -16h30) và theo lịch trực gác","Nhân viên Kế toán (VTYT)"]
[{"$f":"_xlfn.AGGREGATE(3,3,$C$4:C116)","v":113},"00173","Lâm Hoài Phương","Cử nhân kế toán","Toàn thời gian (Từ 7h00 -16h30) và theo lịch trực gác","Nhân viên thu ngân"]
[{"$f":"_xlfn.AGGREGATE(3,3,$C$4:C117)","v":114},"00017","Đỗ Thị Việt Chinh","Cử nhân kế toán","Toàn thời gian (Từ 7h00 -16h30) và theo lịch trực gác","Nhân viên thu ngân"]
[{"$f":"_xlfn.AGGREGATE(3,3,$C$4:C118)","v":115},"00258","Nguyễn Thị Thanh Tâm","Cử nhân kế toán","Toàn thời gian (Từ 7h00 -16h30) và theo lịch trực gác","Nhân viên thu ngân"]
[{"$f":"_xlfn.AGGREGATE(3,3,$C$4:C119)","v":116},"00428","Đỗ Thị Lê Trâm","Cử nhân kế toán","Toàn thời gian (Từ 7h00 -16h30) và theo lịch trực gác","Nhân viên thu ngân"]
[{"$f":"_xlfn.AGGREGATE(3,3,$C$4:C120)","v":117},"00516","Ngô Kim Trinh","Cử nhân kế toán","Toàn thời gian (Từ 7h00 -16h30) và theo lịch trực gác","Nhân viên thu ngân"]
[{"$f":"_xlfn.AGGREGATE(3,3,$C$4:C121)","v":118},"00610","Nguyễn Thị Bạch Phượng","Trung cấp kế toán","Toàn thời gian (Từ 7h00 -16h30) và theo lịch trực gác","Nhân viên thu ngân"]
[{"$f":"_xlfn.AGGREGATE(3,3,$C$4:C122)","v":119},"00622","Lê Trần Kim Ngân","Cử nhân kinh doanh thương mại","Toàn thời gian (Từ 7h00 -16h30) và theo lịch trực gác","Nhân viên thu ngân"]
[{"$f":"_xlfn.AGGREGATE(3,3,$C$4:C123)","v":120},"00238","Nguyễn Thị Ngọc Ảnh","Cử nhân y tế công cộng","Toàn thời gian (Từ 7h00 -16h30) và theo lịch trực gác","Điều dưỡng trưởng KSNK"]
[{"$f":"_xlfn.AGGREGATE(3,3,$C$4:C124)","v":121},"00717","Đặng Hồng Nhung","Cử nhân Khoa học môi trường","Toàn thời gian (Từ 7h00 -16h30) và theo lịch trực gác","Nhân viên Môi trường"]
[{"$f":"_xlfn.AGGREGATE(3,3,$C$4:C125)","v":122},null,"Lê Bích Quyên","Cử nhân y tế công cộng","Toàn thời gian (Từ 7h00 -16h30) và theo lịch trực gác","Giám sát"]
[{"$f":"_xlfn.AGGREGATE(3,3,$C$4:C126)","v":123},null,"Tăng Huyền Cơ","Ths Công nghệ sinh học","Toàn thời gian (Từ 7h00 -16h30) và theo lịch trực gác","Giám sát"]
[{"$f":"_xlfn.AGGREGATE(3,3,$C$4:C127)","v":124},"00204","Nguyễn Thị Kim Thảo","Trình độ học vấn 10/12","Toàn thời gian (Từ 7h00 -16h30) và theo lịch trực gác","Nhân viên nhà giặt"]
[{"$f":"_xlfn.AGGREGATE(3,3,$C$4:C128)","v":125},"00328","Nguyễn Thị Bích Nga","Trình độ học vấn 10/12","Toàn thời gian (Từ 7h00 -16h30) và theo lịch trực gác","Nhân viên nhà giặt"]
[{"$f":"_xlfn.AGGREGATE(3,3,$C$4:C129)","v":126},"00327","Nguyễn Thị Tuyết Cần","Trình độ học vấn 10/12","Toàn thời gian (Từ 7h00 -16h30) và theo lịch trực gác","Nhân viên nhà giặt"]
[{"$f":"_xlfn.AGGREGATE(3,3,$C$4:C130)","v":127},"00397","Nguyễn Thị Mãi","Trình độ học vấn 10/12","Toàn thời gian (Từ 7h00 -16h30) và theo lịch trực gác","Nhân viên nhà giặt"]
[{"$f":"_xlfn.AGGREGATE(3,3,$C$4:C131)","v":128},"00877","Huỳnh Hoàng Sự","Trung cấp Y sĩ","Toàn thời gian (Từ 7h00 -16h30) và theo lịch trực gác","Nhân viên nhà giặt"]
[{"$f":"_xlfn.AGGREGATE(3,3,$C$4:C132)","v":129},"00712","Nguyễn Thị Hằng Giang","Cử nhân Kế toán","Toàn thời gian (Từ 7h00 -16h30) và theo lịch trực gác","Thư ký Y khoa - Khoa khám"]
[{"$f":"_xlfn.AGGREGATE(3,3,$C$4:C133)","v":130},"00805","Đinh Thị Bích Huyền","Cao đẳng Việt Nam học - VHDL","Toàn thời gian (Từ 7h00 -16h30) và theo lịch trực gác","Thư ký Y khoa - Khoa khám"]
[{"$f":"_xlfn.AGGREGATE(3,3,$C$4:C134)","v":131},"00828","Bùi Trần Minh Nguyệt","Cử nhân Y tế công cộng","Toàn thời gian (Từ 7h00 -16h30) và theo lịch trực gác","Nhân viên dinh dưỡng - Khoa Dinh dưỡng tiết chế"]
[]
[null,null,"Tổng: 131"]
[{"$nulls":4},"PHÓ GIÁM ĐỐC"]

{"sheet":"THUC HANH","index":2,"n_rows":125,"n_cols":13,"rows_kept":125,"cut":false,"hidden":false,"merged":[[1,11,2,11],[1,12,2,12],[1,7,1,8],[1,9,1,10],[1,6,2,6],[1,5,2,5],[1,1,2,1],[1,0,2,0],[1,2,2,2],[1,3,2,3],[1,4,2,4]]}
["8. Danh sách người thực hành khám bệnh, chữa bệnh:"]
["TT","Mã NV","Họ và Tên","Văn bằng chuyên môn","Số hợp đồng","Dự kiến Phạm vi cấp CCHN","Người hướng dẫn thực hành","Thời gian thực hành",null,"Ghi chú",null,"Khoa phòng","Ghi chú"]
[{"$nulls":7},"Từ ngày","Đến ngày","Hợp đồng thực hành","Nhân viên Thử việc, chính thức"]
[{"$f":"_xlfn.AGGREGATE(3,3,$C$4:C4)","v":1},"00624","Hàng Thị Mai Huỳnh","Cử nhân điều dưỡng","HV HTMH/HĐHV_S.I.S","Thực hiện các kỹ thuật điều dưỡng cơ bản","ĐD. Tô Ngọc Hương","2021-11-15","2022-08-15",null,"x","Cấp cứu"]
[{"$f":"_xlfn.AGGREGATE(3,3,$C$4:C5)","v":2},"00634","Trần Thu Hiền","Cử nhân điều dưỡng","HV TTH/HĐHV_S.I.S","Thực hiện các kỹ thuật điều dưỡng cơ bản","ĐD. Tô Ngọc Hương","2021-11-22","2022-08-22",null,"x","Cấp cứu"]
[{"$f":"_xlfn.AGGREGATE(3,3,$C$4:C6)","v":3},"00639","Trần Ngọc Như Quỳnh","Cử nhân điều dưỡng","HV TNNQ/HĐHV_S.I.S","Thực hiện các kỹ thuật điều dưỡng cơ bản","ĐD. Tô Ngọc Hương","2021-11-22","2022-08-22",null,"x","Cấp cứu"]
[{"$f":"_xlfn.AGGREGATE(3,3,$C$4:C7)","v":4},"00729","Trần Thị Thanh Thảng","Cao đẳng Điều dưỡng ","00729_L1/HĐLĐ_S.I.S","Thực hiện các kỹ thuật điều dưỡng cơ bản","ĐD. Nguyễn Thị Ngọc Hà","2022-06-03","2023-03-03",null,"x","Cấp cứu"]
[{"$f":"_xlfn.AGGREGATE(3,3,$C$4:C8)","v":5},"00732","Trần Thị Cẩm Giang","Cao đẳng Điều dưỡng ","00732_L1/HĐLĐ_S.I.S","Thực hiện các kỹ thuật điều dưỡng cơ bản","ĐD. Nguyễn Thị Ngọc Hà","2022-06-03","2023-03-03",null,"x","Cấp cứu"]
[{"$f":"_xlfn.AGGREGATE(3,3,$C$4:C9)","v":6},"00739","Nguyễn Thị Anh Thư","Cao đẳng Điều dưỡng ","00739_L1/HĐLĐ_S.I.S","Thực hiện các kỹ thuật điều dưỡng cơ bản","ĐD. Nguyễn Thị Ngọc Hà","2022-06-13","2023-03-13",null,"x","Cấp cứu"]
[{"$f":"_xlfn.AGGREGATE(3,3,$C$4:C10)","v":7},"00727","Nguyễn Minh Thư","Cao đẳng Điều dưỡng ","00727_L1/HĐLĐ_S.I.S","Thực hiện các kỹ thuật điều dưỡng cơ bản","ĐD. Nguyễn Thị Ngọc Hà","2022-06-03","2023-03-03",null,"x","Cấp cứu"]
[{"$f":"_xlfn.AGGREGATE(3,3,$C$4:C11)","v":8},"00631","Kha Phát Tiến","Bác sĩ y khoa","00631_L1/HĐTH_S.I.S","Khám bệnh, chữa bệnh Nội khoa","BSCKI Tô Văn Tân","2022-02-08","2023-08-08","x",null,"PTGMHS"]
[{"$f":"_xlfn.AGGREGATE(3,3,$C$4:C12)","v":9},"00625","Hứa Thị Ngọc Nhi","Bác sĩ y khoa","00625_L1/HĐTH_S.I.S","Khám bệnh, chữa bệnh Nội khoa","ThS BS Lưu Trúc Phương","2022-02-08","2023-08-08","x",null,"PTGMHS"]
[{"$f":"_xlfn.AGGREGATE(3,3,$C$4:C13)","v":10},"00150","Nguyễn Thị Trúc Linh","Cử nhân điều dưỡng","00602_L1/HĐLĐ_S.I.S","Thực hiện các kỹ thuật điều dưỡng cơ bản","ĐDT. Lê Quang Khải","2022-04-07","2023-01-07",null,"x","PTGMHS"]
[{"$f":"_xlfn.AGGREGATE(3,3,$C$4:C14)","v":11},"00603","Nguyễn Thị Tôn Ngân","Cao đẳng điều dưỡng","00603_L1/HĐLĐ_S.I.S","Thực hiện các kỹ thuật điều dưỡng cơ bản","ĐD. Lâm Huyền Trang","2022-03-08","2022-12-08",null,"x","PTGMHS"]
[{"$f":"_xlfn.AGGREGATE(3,3,$C$4:C15)","v":12},"00637","Nguyễn Thị Bích Lộc","Cử nhân điều dưỡng","00637_L1/HĐLĐ_S.I.S","Thực hiện các kỹ thuật điều dưỡng cơ bản","ĐD. Lâm Huyền Trang","2022-04-21","2023-01-21",null,"x","PTGMHS"]
[{"$f":"_xlfn.AGGREGATE(3,3,$C$4:C16)","v":13},"00754","Nguyễn Thị Yến Nhi","Cao đẳng điều dưỡng","00754_L1/HDLD_S.I.S","Thực hiện các kỹ thuật điều dưỡng cơ bản","ĐD. Lâm Huyền Trang","2022-07-07","2023-04-07",null,"x","PTGMHS"]
[{"$f":"_xlfn.AGGREGATE(3,3,$C$4:C17)","v":14},"00715","Bùi Minh Tiến","Trung cấp Y sĩ","00715_L1/HĐLĐ_S.I.S","Thực hiện các kỹ thuật y sĩ cơ bản","BSCKI Tô Văn Tân","2022-03-27","2022-12-27",null,"x","PTGMHS"]
[{"$f":"_xlfn.AGGREGATE(3,3,$C$4:C18)","v":15},"00744","Lê Thị Ngọc Nhi","Cao đẳng điều dưỡng","00744_L1/HĐTV_S.I.S","Thực hiện các kỹ thuật điều dưỡng cơ bản","ĐDT. Lê Quang Khải","2022-06-13","2022-12-13",null,"x","PTGMHS"]
[{"$f":"_xlfn.AGGREGATE(3,3,$C$4:C19)","v":16},"00706","Lâm Tường Vy","Cử nhân điều dưỡng","00706_L1/HĐLĐ_S.I.S","Thực hiện các kỹ thuật điều dưỡng cơ bản","ĐDT. Lê Quang Khải","2022-05-14","2023-02-14",null,"x","PTGMHS"]
[{"$f":"_xlfn.AGGREGATE(3,3,$C$4:C20)","v":17},"00770","Nguyễn Bảo Anh","Cao đẳng điều dưỡng","00770_L1/HDLD_S.I.S","Thực hiện các kỹ thuật điều dưỡng cơ bản","ĐDT. Lê Quang Khải","2022-07-22","2023-04-22",null,"x","PTGMHS"]
[{"$f":"_xlfn.AGGREGATE(3,3,$C$4:C21)","v":18},"00781","Nguyễn Lê Yến Linh","Cao đẳng điều dưỡng","00781_L1/HDLD_S.I.S","Thực hiện các kỹ thuật điều dưỡng cơ bản","ĐDT. Lê Quang Khải","2022-08-10","2023-05-10",null,"x","PTGMHS"]
[{"$f":"_xlfn.AGGREGATE(3,3,$C$4:C22)","v":19},"00790","Lữ Thị Tài Linh","Cao đẳng điều dưỡng","00790_L1/HDLD_S.I.S","Thực hiện các kỹ thuật điều dưỡng cơ bản","ĐD. Lâm Huyền Trang","2022-08-10","2023-05-10",null,"x","PTGMHS"]
[{"$f":"_xlfn.AGGREGATE(3,3,$C$4:C23)","v":20},"00818","Lâm Gia Thiện","Cao đẳng điều dưỡng","00818_L1/HDLD _S.I.S","Thực hiện các kỹ thuật điều dưỡng cơ bản","ĐD. Lâm Huyền Trang","2022-10-26","2023-07-26",null,"x","PTGMHS"]
[{"$f":"_xlfn.AGGREGATE(3,3,$C$4:C24)","v":21},"00542","Nguyễn Thị Thúy Đào","Cử nhân điều dưỡng","00542_L1/HĐLĐ_S.I.S","Thực hiện các kỹ thuật điều dưỡng cơ bản","ĐD. Huỳnh Thị Kiều Oanh","2021-06-08","2022-03-08",null,"x","PTGMHS"]
[{"$f":"_xlfn.AGGREGATE(3,3,$C$4:C25)","v":22},"00740","Huỳnh Nhật Trường","Cao đẳng điều dưỡng","00740_L1T/HĐLĐ_S.I.S","Thực hiện các kỹ thuật điều dưỡng cơ bản","ĐDT. Nguyễn Thị Mỹ Tiên","2022-06-13","2023-03-13",null,"x","PTGMHS"]
[{"$f":"_xlfn.AGGREGATE(3,3,$C$4:C26)","v":23},"00629","Nguyễn Huỳnh Đào","Bác sĩ y khoa","00629_L1/HĐTH_S.I.S","Khám bệnh, chữa bệnh Nội khoa","Ths BS Nguyễn Mạnh Cường\nBSCKII Vương Thị Nguyên Chi","2022-02-08","2023-08-08","x",null,"Nội TH"]
[{"$f":"_xlfn.AGGREGATE(3,3,$C$4:C27)","v":24},"00626","Trần Thị Quỳnh Hương","Bác sĩ y khoa","00626_L1/HĐTH_S.I.S","Khám bệnh, chữa bệnh Nội khoa","Ths BS Nguyễn Mạnh Cường\nBSCKII Vương Thị Nguyên Chi","2022-02-08","2023-08-08","x",null,"Nội TH"]
[{"$f":"_xlfn.AGGREGATE(3,3,$C$4:C28)","v":25},"00632","Mai Hoàng Dil","Bác sĩ y khoa","00632_L1/HĐTH_S.I.S","Khám bệnh, chữa bệnh Nội khoa","Ths BS Nguyễn Mạnh Cường\nBSCKII Vương Thị Nguyên Chi","2022-02-08","2023-08-08","x",null,"Nội TH"]
[{"$f":"_xlfn.AGGREGATE(3,3,$C$4:C29)","v":26},"00628","Lê Diễm Xuân Trinh","Bác sĩ y khoa","HV LDXT/HĐĐT_S.I.S","Khám bệnh, chữa bệnh Nội khoa","ThS BS Nguyễn Hải Nguyên","2021-11-09","2023-05-09","x",null,"Nội TH"]
[{"$f":"_xlfn.AGGREGATE(3,3,$C$4:C30)","v":27},"00595","Đinh Hữu Vinh","Bác sĩ y khoa","ĐHV/HĐTH_S.I.S","Khám bệnh, chữa bệnh Nội khoa","ThS BS Nguyễn Hải Nguyên","2022-01-17","2023-07-17","x",null,"Nội TH"]
[{"$f":"_xlfn.AGGREGATE(3,3,$C$4:C31)","v":28},"00605","Nguyễn Thị Kỳ Kỳ","Cử nhân điều dưỡng","HV NTKK/HĐHV_S.I.S","Thực hiện các kỹ thuật điều dưỡng cơ bản","ĐD. Nguyễn Thị Ngọc Thạnh","2021-11-08","2022-08-08",null,"x","Nội TH"]
[{"$f":"_xlfn.AGGREGATE(3,3,$C$4:C32)","v":29},"00722","Phan Thị Thắm","Cao đẳng Điều dưỡng","00722_L1/HDLD-S.I.S","Thực hiện các kỹ thuật điều dưỡng cơ bản","ĐD. Nguyễn Thị Ngọc Thạnh","2022-06-03","2023-03-03",null,"x","Nội TH"]
[{"$f":"_xlfn.AGGREGATE(3,3,$C$4:C33)","v":30},"00743","Nguyễn Thị Tường Duy","Cao đẳng Điều dưỡng","00743_L1/HDLD_S.I.S","Thực hiện các kỹ thuật điều dưỡng cơ bản","ĐD. Lương Thị Thơm","2022-06-13","2023-03-13",null,"x","Nội TH"]
[{"$f":"_xlfn.AGGREGATE(3,3,$C$4:C34)","v":31},"00648","Lê Nguyễn Diễm My","Cử nhân điều dưỡng","00648_L1/HĐLĐ_S.I.S","Thực hiện các kỹ thuật điều dưỡng cơ bản","ĐD. Nguyễn Thị Ngọc Thạnh","2022-05-01","30/02/2023",null,"x","Nội TH"]
[{"$f":"_xlfn.AGGREGATE(3,3,$C$4:C35)","v":32},"00713","Bùi Anh Thư","Cử nhân điều dưỡng","00648_L1/HĐLĐ_S.I.S","Thực hiện các kỹ thuật điều dưỡng cơ bản","ĐD. Nguyễn Thị Bích Tuyền","2022-05-20","2023-02-20",null,"x","Nội TH"]
[{"$f":"_xlfn.AGGREGATE(3,3,$C$4:C36)","v":33},"00716","Hà Yến Nhi","Cử nhân điều dưỡng","00716_L1/HĐLĐ_S.I.S","Thực hiện các kỹ thuật điều dưỡng cơ bản","ĐD. Nguyễn Thị Bích Tuyền","2022-05-27","2023-02-26",null,"x","Nội TH"]
[{"$f":"_xlfn.AGGREGATE(3,3,$C$4:C37)","v":34},"00813","Phạm Ngọc Thạch","Cao đẳng điều dưỡng","00813_L1/HDLD_S.I.S","Thực hiện các kỹ thuật điều dưỡng cơ bản","ĐD. Lương Thị Thơm","2022-09-18","2023-06-18",null,"x","Nội TH"]
[{"$f":"_xlfn.AGGREGATE(3,3,$C$4:C38)","v":35},"00815","Nguyễn Ngọc Thùy Duyên","Cao đẳng điều dưỡng","00815_L1/HDLD_S.I.S","Thực hiện các kỹ thuật điều dưỡng cơ bản","ĐD. Lương Thị Thơm","2022-09-18","2023-06-18",null,"x","Nội TH"]
[{"$f":"_xlfn.AGGREGATE(3,3,$C$4:C39)","v":36},"00897","Trần Thị Hồng Tuyết","Cử nhân điều dưỡng","00897_L1/HDLĐ_S.I.S","Thực hiện các kỹ thuật điều dưỡng cơ bản","ĐD. Lương Thị Thơm","2023-01-22","2023-10-22",null,"x","Nội TH"]
[{"$f":"_xlfn.AGGREGATE(3,3,$C$4:C40)","v":37},"00638","Lê Vân Nhi","Bác sĩ y khoa","00628_L1/HĐTH_S.I.S","Khám bệnh, chữa bệnh Nội khoa","Ths BS Trương Phạm Vĩnh Lễ","2022-02-08","2023-08-08","x",null,"TKĐQ"]
[{"$f":"_xlfn.AGGREGATE(3,3,$C$4:C41)","v":38},"00621","Phan Thanh Thế","Bác sĩ y khoa","00621_L1/HĐTH_S.I.S","Khám bệnh, chữa bệnh Nội khoa","BSCKII Châu Thị Thúy Liễu\nBSCKI Trương Hoàng Bảo Yến","2022-02-08","2023-08-08","x",null,"TKĐQ"]
[{"$f":"_xlfn.AGGREGATE(3,3,$C$4:C42)","v":39},"00707","Lê Nguyễn Hoàng Oanh","Bác sĩ y khoa","00707_L1/HDTH_S.I.S","Khám bệnh, chữa bệnh Nội khoa","Ths BS Trương Phạm Vĩnh Lễ","2022-03-16","2023-09-16","x",null,"TKĐQ"]
[{"$f":"_xlfn.AGGREGATE(3,3,$C$4:C43)","v":40},"00640","Võ Thị Kim Chính","Cử nhân điều dưỡng","00640_L1/HĐLĐ_S.I.S","Thực hiện các kỹ thuật điều dưỡng cơ bản","ĐD. Trương Thị Ngọc Linh","2022-03-18","2022-12-18",null,"x","TKĐQ"]
[{"$f":"_xlfn.AGGREGATE(3,3,$C$4:C44)","v":41},"00649","Lê Ngọc Kiều Trinh","Cao đẳng điều dưỡng","00649_L1/HĐLĐ_S.I.S","Thực hiện các kỹ thuật điều dưỡng cơ bản","ĐD. Trương Thị Ngọc Linh","2022-05-01","2023-03-01",null,"x","TKĐQ"]
[{"$f":"_xlfn.AGGREGATE(3,3,$C$4:C45)","v":42},"00653","Nguyễn Thị Thảo Nguyên","Cao đẳng điều dưỡng","00653_L1/HĐLĐ_S.I.S","Thực hiện các kỹ thuật điều dưỡng cơ bản","ĐD. Trương Thị Ngọc Linh","2022-05-06","2023-02-05",null,"x","TKĐQ"]
[{"$f":"_xlfn.AGGREGATE(3,3,$C$4:C46)","v":43},"00773","Nguyễn Minh Thuận","Cao đẳng điều dưỡng","00773_L1/HDLD_S.I.S","Thực hiện các kỹ thuật điều dưỡng cơ bản","ĐDT. Nguyễn Thị Thiên Trang","2022-07-22","2023-04-22",null,"x","TKĐQ"]
[{"$f":"_xlfn.AGGREGATE(3,3,$C$4:C47)","v":44},"00772","Nguyễn Thị Mỹ Xuyên","Cao đẳng điều dưỡng","00772_L1/HDLD_S.I.S","Thực hiện các kỹ thuật điều dưỡng cơ bản","ĐDT. Nguyễn Thị Thiên Trang","2022-07-22","2023-04-22",null,"x","TKĐQ"]
[{"$f":"_xlfn.AGGREGATE(3,3,$C$4:C48)","v":45},"00886","Nguyễn Tú Uyên","Cử nhân điều dưỡng","00886_L1/HDLD_S.I.S","Thực hiện các kỹ thuật điều dưỡng cơ bản","ĐDT. Nguyễn Thị Thiên Trang","2023-01-01","2023-10-01",null,"x","TKĐQ"]
[{"$f":"_xlfn.AGGREGATE(3,3,$C$4:C49)","v":46},"00475","Trầm Thị Kim Cương","Cử nhân KTV VLTL, PHCN","K042TTKC/HĐLĐ_S.I.S","Kỹ thuật viên vật lý trị liệu, phục hồi chức năng","BS.Lê Xuân Phượng","2021-02-28","2022-11-28",null,"x","VLTL-PHCN"]
[{"$f":"_xlfn.AGGREGATE(3,3,$C$4:C50)","v":47},"00120","Võ Hoàng Duy Linh","Cao đẳng Kỹ thuật phục hồi chức năng","K003VHDL/HĐLĐ_S.I.S","Kỹ thuật viên vật lý trị liệu, phục hồi chức năng","BS.Lê Xuân Phượng","2022-04-15","2023-01-15",null,"x","VLTL-PHCN"]
[{"$f":"_xlfn.AGGREGATE(3,3,$C$4:C51)","v":48},"00302","Nguyễn Hữu Thơ","Bác sĩ Y học cổ truyền","00302_L2/HDLD_S.I.S","Khám bệnh, chữa bệnh chuyên khoa Vật lý trị liệu, Phục hồi chức năng","BS.Lê Xuân Phượng","2020-04-01","2021-11-01",null,"x","VLTL-PHCN"]
[{"$f":"_xlfn.AGGREGATE(3,3,$C$4:C52)","v":49},"00798","Hoàng Ngọc Thủy Tiên","Trung cấp Kỹ thuật VLTL, PHCN","00798_L1/HDLD_S.I.S","Kỹ thuật viên vật lý trị liệu, phục hồi chức năng","KTVT. Hồ Ngọc Diễm","2022-06-22","2023-03-22",null,"x","VLTL-PHCN"]
[{"$f":"_xlfn.AGGREGATE(3,3,$C$4:C53)","v":50},"00804","Đậu Văn Hợp","Cao đẳng Kỹ thuật VLTL, PHCN","00804_L1/HĐLĐ_S.I.S","Kỹ thuật viên vật lý trị liệu, phục hồi chức năng","BS.Lê Xuân Phượng","2022-05-27","2023-02-27",null,"x","VLTL-PHCN"]
[{"$f":"_xlfn.AGGREGATE(3,3,$C$4:C54)","v":51},"00741","Lâm Kim Bình","Cao đẳng điều dưỡng","00741_L1/HDLD_S.I.S","Thực hiện các kỹ thuật điều dưỡng cơ bản","ĐD. Nguyễn Thanh Hồng","2022-06-13","2023-03-13",null,"x","VLTL-PHCN"]
[{"$f":"_xlfn.AGGREGATE(3,3,$C$4:C55)","v":52},"00784","Ung Thái Hoàng Minh","Cao đẳng điều dưỡng","00784_L1/HDLD_S.I.S","Thực hiện các kỹ thuật điều dưỡng cơ bản","ĐD. Nguyễn Thanh Hồng","2022-08-10","2023-05-10",null,"x","VLTL-PHCN"]
[{"$f":"_xlfn.AGGREGATE(3,3,$C$4:C56)","v":53},"00857","Ngô Thị Thu Hà","Cao đẳng Kỹ thuật Phục hồi chức năng","00857_L1/HDLD_S.I.S","Kỹ thuật viên vật lý trị liệu, phục hồi chức năng","KTVT. Hồ Ngọc Diễm","2022-09-27","2023-06-27",null,"x","VLTL-PHCN"]
[{"$f":"_xlfn.AGGREGATE(3,3,$C$4:C57)","v":54},"00867","Nguyễn Tấn Lộc","Cao đẳng Kỹ thuật Phục hồi chức năng","00867_L1/HDLD_S.I.S","Kỹ thuật viên vật lý trị liệu, phục hồi chức năng","KTVT. Hồ Ngọc Diễm","04/10/2022","2023-07-04",null,"x","VLTL-PHCN"]
[{"$f":"_xlfn.AGGREGATE(3,3,$C$4:C58)","v":55},"00868","Lê Nhật Tân","Cao đẳng Kỹ thuật Phục hồi chức năng","00868_L1/HDLD_S.I.S","Kỹ thuật viên vật lý trị liệu, phục hồi chức năng","KTVT. Hồ Ngọc Diễm","04/10/2022","2023-07-04",null,"x","VLTL-PHCN"]
[{"$f":"_xlfn.AGGREGATE(3,3,$C$4:C59)","v":56},"00711","Nguyễn Thị Tố Trân","Bác sĩ y khoa","00711_L1/HĐLĐ_S.I.S","Khám bệnh, chữa bệnh Nội khoa","BS CKI Phương Hồng Thọ","2022-03-15","2023-09-15","x",null,"Ngoại TH"]
[{"$f":"_xlfn.AGGREGATE(3,3,$C$4:C60)","v":57},"00275","Nguyễn Quang Hưng","BS CKI Ngoại thần kinh","00275_L1/HĐLĐ_S.I.S","Khám bệnh, chữa bệnh Ngoại thần kinh - sọ não","TS.BS.Trần Chí Cường","2020-11-01","2022-04-01",null,"x","Ngoại TH"]
[{"$f":"_xlfn.AGGREGATE(3,3,$C$4:C61)","v":58},"00801","Đỗ Đức Thắng","Bác sĩ Y khoa","00801_L1/HĐHV_S.I.S","Khám bệnh, chữa bệnh chuyên khoa Nội","BS CKI Phương Hồng Thọ","2022-06-22","2023-12-22","x",null,"Ngoại TH"]
[{"$f":"_xlfn.AGGREGATE(3,3,$C$4:C62)","v":59},"00630","Lưu Vĩnh Quí","Bác sĩ đa khoa","HV LVQ/HĐĐT_S.I.S","Khám bệnh, chữa bệnh chuyên khoa Nội-DSA","BS CKI Phương Hồng Thọ","2022-02-08","2023-08-08","x",null,"Ngoại TH"]
[{"$f":"_xlfn.AGGREGATE(3,3,$C$4:C63)","v":60},"00040","Nguyễn Hải Đăng","Bác sĩ Y khoa","HV NHĐ/HĐTH_S.I.S","Khám bệnh, chữa bệnh chuyên khoa Ngoại","BSCKI Nguyễn Quang Hưng","2022-02-08","2023-08-08","x",null,"Ngoại TH"]
[{"$f":"_xlfn.AGGREGATE(3,3,$C$4:C64)","v":61},"00745","Nguyễn Thị Cẩm Tú","Cao đẳng điều dưỡng","00745_L1/HĐLĐ_S.I.S","Thực hiện các kỹ thuật điều dưỡng cơ bản","ĐD. Nguyễn Thị Thúy Quyên","2022-06-13","2022-12-13",null,"x","Ngoại TH"]
[{"$f":"_xlfn.AGGREGATE(3,3,$C$4:C65)","v":62},"00589","Võ Trần Uyên Nhi","Cử nhân điều dưỡng","00589_L1/HĐLĐ_S.I.S","Thực hiện các kỹ thuật điều dưỡng cơ bản","ĐDT. Trần Việt Khanh","2022-03-11","2022-12-11",null,"x","Ngoại TH"]
[{"$f":"_xlfn.AGGREGATE(3,3,$C$4:C66)","v":63},"00607","Nguyễn Trần Thanh Thanh","Cử nhân điều dưỡng","00607_L1/HĐLĐ_S.I.S","Thực hiện các kỹ thuật điều dưỡng cơ bản","ĐDT. Trần Việt Khanh","2022-04-08","2023-01-08",null,"x","Ngoại TH"]
[{"$f":"_xlfn.AGGREGATE(3,3,$C$4:C67)","v":64},"00768","Võ Minh Hiệp","Cao đẳng điều dưỡng","00768_L1/HDLD_S.I.S","Thực hiện các kỹ thuật điều dưỡng cơ bản","ĐD. Nguyễn Thị Thúy Quyên","2022-07-22","2023-04-22",null,"x","Ngoại TH"]
[{"$f":"_xlfn.AGGREGATE(3,3,$C$4:C68)","v":65},"00769","Nguyễn Thị Hoàng Đan","Cao đẳng điều dưỡng","00769_L1/HDLD_S.I.S","Thực hiện các kỹ thuật điều dưỡng cơ bản","ĐD. Nguyễn Thị Thúy Quyên","2022-07-22","2023-04-22",null,"x","Ngoại TH"]
[{"$f":"_xlfn.AGGREGATE(3,3,$C$4:C69)","v":66},"00789","Phạm Hoàng Tuyết Nhung","Cao đẳng điều dưỡng","00789_L1/HDLD_S.I.S","Thực hiện các kỹ thuật điều dưỡng cơ bản","ĐD. Nguyễn Thị Thúy Quyên","2022-08-10","2023-05-10",null,"x","Ngoại TH"]
[{"$f":"_xlfn.AGGREGATE(3,3,$C$4:C70)","v":67},"00783","Nguyễn Thị Kim Ngân","Cao đẳng điều dưỡng","00783_L1/HDLD_S.I.S","Thực hiện các kỹ thuật điều dưỡng cơ bản","ĐD. Nguyễn Thị Mỹ Duyên ","2022-08-10","2023-05-10",null,"x","Ngoại TH"]
[{"$f":"_xlfn.AGGREGATE(3,3,$C$4:C71)","v":68},"00780","Bùi Thị Huỳnh Trân","Cao đẳng điều dưỡng","00780_L1/HDLD_S.I.S","Thực hiện các kỹ thuật điều dưỡng cơ bản","ĐD. Nguyễn Thị Mỹ Duyên ","2022-08-10","2023-05-10",null,"x","Ngoại TH"]
[{"$f":"_xlfn.AGGREGATE(3,3,$C$4:C72)","v":69},"00852","Nguyễn Thị Kim Anh","Cao đẳng điều dưỡng","00852_L1/HĐLD_S.I.S","Thực hiện các kỹ thuật điều dưỡng cơ bản","ĐD. Nguyễn Thị Mỹ Duyên ","2022-11-13","2023-08-13",null,"x","Ngoại TH"]
[{"$f":"_xlfn.AGGREGATE(3,3,$C$4:C73)","v":70},"00872","Nguyễn Thị Mỹ Duyên ","Cao đẳng điều dưỡng","00872_L1/HĐLD_S.I.S","Thực hiện các kỹ thuật điều dưỡng cơ bản","ĐD. Nguyễn Thị Mỹ Duyên ","11/12/2022","2023-09-11",null,"x","Ngoại TH"]
[{"$f":"_xlfn.AGGREGATE(3,3,$C$4:C74)","v":71},"00779","Đặng Thị Huỳnh Mi","Cao đẳng điều dưỡng","00779_L1/HDLD_S.I.S","Thực hiện các kỹ thuật điều dưỡng cơ bản","ĐD. Nguyễn Thị Mỹ Duyên ","2022-08-10","2023-05-10",null,"x","Ngoại TH"]
[{"$f":"_xlfn.AGGREGATE(3,3,$C$4:C75)","v":72},"00883","Vương Ra Thi","Cao đẳng điều dưỡng","00884_L1/HĐLD_S.I.S","Thực hiện các kỹ thuật điều dưỡng cơ bản","ĐD. Nguyễn Thanh Hiểu","2022-11-01","2023-08-01",null,"x","Ngoại TH"]
[{"$f":"_xlfn.AGGREGATE(3,3,$C$4:C76)","v":73},"00896","Nguyễn Thị Sen","Cử nhân điều dưỡng","00896_L1/HĐLĐ_S.I.S","Thực hiện các kỹ thuật điều dưỡng cơ bản","ĐD. Nguyễn Thị Thúy Quyên","2023-01-22","2023-10-22",null,"x","Ngoại TH"]
[{"$f":"_xlfn.AGGREGATE(3,3,$C$4:C77)","v":74},"00786","Nguyễn Vũ Đăng","Cao đẳng điều dưỡng","00786_L1/HDLD_S.I.S","Thực hiện các kỹ thuật điều dưỡng cơ bản","ĐDT. Trần Việt Khanh","2022-08-10","2023-05-10",null,"x","Ngoại TH"]
[{"$f":"_xlfn.AGGREGATE(3,3,$C$4:C78)","v":75},"00785","Lê Diệu Linh","Cao đẳng điều dưỡng","00785_L1/HDLD_S.I.S","Thực hiện các kỹ thuật điều dưỡng cơ bản","ĐDT. Trần Việt Khanh","2022-08-10","2023-05-10",null,"x","Ngoại TH"]
[{"$f":"_xlfn.AGGREGATE(3,3,$C$4:C79)","v":76},"00884","Trần Ngọc Vy Vy","Cao đẳng điều dưỡng","00884_L1/HĐLD_S.I.S","Thực hiện các kỹ thuật điều dưỡng cơ bản","ĐDT. Trần Việt Khanh","2022-11-01","2023-08-01",null,"x","Ngoại TH"]
[{"$f":"_xlfn.AGGREGATE(3,3,$C$4:C80)","v":77},"00885","Hà Như Ý","Cử nhân điều dưỡng","00884_L1/HĐTV_S.I.S","Thực hiện các kỹ thuật điều dưỡng cơ bản","ĐD. Nguyễn Thanh Hiểu","2023-01-01","2023-10-01",null,"x","Ngoại TH"]
[{"$f":"_xlfn.AGGREGATE(3,3,$C$4:C81)","v":78},"00429","Nguyễn Vủ Trường","Cử nhân điều dưỡng","TN009NVT/HĐLĐ_S.I.S","Thực hiện các kỹ thuật điều dưỡng cơ bản","ĐD. Trần Thị Thúy Vân","2021-04-28","2022-01-28",null,"x","Khám bệnh"]
[{"$f":"_xlfn.AGGREGATE(3,3,$C$4:C82)","v":79},"00586","Võ Hoàng Thảo Nguyên","Cao đẳng điều dưỡng","DD179VHTN/HĐLĐ _S.I.S","Thực hiện các kỹ thuật điều dưỡng cơ bản","ĐD. Ung Thị Diễm Kiều\nĐD. Trần Thị Bảo Thoa","2021-12-11","2022-09-11",null,"x","Khám bệnh"]
[{"$f":"_xlfn.AGGREGATE(3,3,$C$4:C83)","v":80},"00552","Nguyễn Thanh Tuyết Ngân","Cao đẳng điều dưỡng","DD176NTTN/HĐLĐ_S.I.S","Thực hiện các kỹ thuật điều dưỡng cơ bản","ĐD. Ung Thị Diễm Kiều\nĐD. Trần Thị Bảo Thoa","2021-08-01","2022-05-01",null,"x","Khám bệnh"]
[{"$f":"_xlfn.AGGREGATE(3,3,$C$4:C84)","v":81},"00553","Huỳnh Ngọc Yến Ngoan","Cao đẳng điều dưỡng","DD177HNYN/HĐLĐ_S.I.S","Thực hiện các kỹ thuật điều dưỡng cơ bản","ĐD. Ung Thị Diễm Kiều \nĐD. Trần Thị Bảo Thoa","2021-08-01","2022-05-01",null,"x","Khám bệnh"]
[{"$f":"_xlfn.AGGREGATE(3,3,$C$4:C85)","v":82},"00764","Phan Thúy Ái","Cao đẳng điều dưỡng","00764_L1/HĐLĐ _S.I.S","Thực hiện các kỹ thuật điều dưỡng cơ bản","ĐDT. Nguyễn Thị Thủy Tiên","2022-05-22","2023-02-21",null,"x","Khám bệnh"]
[{"$f":"_xlfn.AGGREGATE(3,3,$C$4:C86)","v":83},"00782","Phạm Thị Hồng My","Cao đẳng điều dưỡng","00782_L1/HDLD _S.I.S","Thực hiện các kỹ thuật điều dưỡng cơ bản","ĐDT. Nguyễn Thị Thủy Tiên","2022-08-10","2023-05-10",null,"x","Khám bệnh"]
[{"$f":"_xlfn.AGGREGATE(3,3,$C$4:C87)","v":84},"00765","Nguyễn Thị Tú Hảo","Cử nhân điều dưỡng","00765_L1/HDLD _S.I.S","Thực hiện các kỹ thuật điều dưỡng cơ bản","ĐDT. Nguyễn Thị Thủy Tiên","2022-07-22","2023-04-22",null,"x","Khám bệnh"]
[{"$f":"_xlfn.AGGREGATE(3,3,$C$4:C88)","v":85},"00767","Nguyễn Thị Anh Thư","Cao đẳng điều dưỡng","00767_L1/HDLD _S.I.S","Thực hiện các kỹ thuật điều dưỡng cơ bản","ĐDT. Nguyễn Thị Thủy Tiên","2022-07-22","2023-04-22",null,"x","Khám bệnh"]
[{"$f":"_xlfn.AGGREGATE(3,3,$C$4:C89)","v":86},"00791","Lý Thị Mỹ Huyền","Cao đẳng điều dưỡng","00791_L1/HDLD _S.I.S","Thực hiện các kỹ thuật điều dưỡng cơ bản","ĐDT. Nguyễn Thị Thủy Tiên","2022-08-10","2023-05-10",null,"x","Khám bệnh"]
[{"$f":"_xlfn.AGGREGATE(3,3,$C$4:C90)","v":87},"00814","Nguyễn Thị Như Bình","Cao đẳng điều dưỡng","00814_L1/HDLD _S.I.S","Thực hiện các kỹ thuật điều dưỡng cơ bản","ĐD. Trần Thị Thùy Dương","2022-09-18","2023-06-18",null,"x","Khám bệnh"]
[{"$f":"_xlfn.AGGREGATE(3,3,$C$4:C91)","v":88},"00817","Nguyễn Kim Duy","Cử nhân điều dưỡng","00817_L1/HDLD _S.I.S","Thực hiện các kỹ thuật điều dưỡng cơ bản","ĐD. Trần Thị Thùy Dương","2022-09-18","2023-06-18",null,"x","Khám bệnh"]
[{"$f":"_xlfn.AGGREGATE(3,3,$C$4:C92)","v":89},"00829","Hồ Lê Ngọc Anh","Cao đẳng điều dưỡng","00829_L1/HDLD _S.I.S","Thực hiện các kỹ thuật điều dưỡng cơ bản","ĐD. Trần Thị Thùy Dương","2022-10-18","2023-07-18",null,"x","Khám bệnh"]
[{"$f":"_xlfn.AGGREGATE(3,3,$C$4:C93)","v":90},"00880","Trần Thị Quý","Trung cấp điều dưỡng","00880_L1/HDLD _S.I.S","Thực hiện các kỹ thuật điều dưỡng cơ bản","ĐD. Trần Thị Thùy Dương","2022-10-01","2023-06-01",null,"x","Khám bệnh"]
[{"$f":"_xlfn.AGGREGATE(3,3,$C$4:C94)","v":91},"00802","Nguyễn Thị Yến Nhi","Cao đẳng điều dưỡng","HV NTYN/HĐHV _S.I.S","Thực hiện các kỹ thuật điều dưỡng cơ bản","ĐD. Nguyễn Thị Cẩm Thu \nĐD. Trần Thị Thùy Dương","2021-12-01","2022-08-30",null,"x","Khám bệnh"]
[{"$f":"_xlfn.AGGREGATE(3,3,$C$4:C95)","v":92},"00609","Nguyễn Thị Anh Thư","Cử nhân kỹ thuật xét nghiệm","K051NTAT/HĐLĐ_S.I.S","Kỹ thuật viên, chuyên khoa xét nghiệm","KTV trưởng. Trần Thị Diễm Trang","2022-02-07","2022-11-07",null,"x","Xét nghiệm","Đang đề nghị cấp CCHN 12.2022"]
[{"$f":"_xlfn.AGGREGATE(3,3,$C$4:C96)","v":93},"00593","Huỳnh Thị Hồng Quyến","Cử nhân xét nghiệm y học","K052HTHQ/HĐLĐ_S.I.S","Kỹ thuật viên, chuyên khoa xét nghiệm","KTV trưởng. Trần Thị Diễm Trang","2022-02-17","2022-11-17",null,"x","Xét nghiệm","Đang đề nghị cấp CCHN 12.2022"]
[{"$f":"_xlfn.AGGREGATE(3,3,$C$4:C97)","v":94},"00751","Nguyễn Dịu Ái","Cử nhân Kỹ thuật Xét nghiệm y học","00751_L1/HĐLĐ_S.I.S","Kỹ thuật viên, chuyên khoa xét nghiệm","KTV. Lê Ngọc Tiếng","2022-04-18","2023-01-17",null,"x","Xét nghiệm"]
[{"$f":"_xlfn.AGGREGATE(3,3,$C$4:C98)","v":95},"00906","Trương Nguyễn Thục Hiền","Cử nhân Kỹ thuật Xét nghiệm y học","00906_L1/HDLD_S.I.S","Kỹ thuật viên, chuyên khoa xét nghiệm","KTV trưởng. Trần Thị Diễm Trang","2023-01-01","2023-10-01",null,"x","Xét nghiệm"]
[{"$f":"_xlfn.AGGREGATE(3,3,$C$4:C99)","v":96},"00907","Lê Tấn Phát","Cử nhân Kỹ thuật Xét nghiệm y học","00907_L1/HDLD_S.I.S","Kỹ thuật viên, chuyên khoa xét nghiệm","KTV trưởng. Trần Thị Diễm Trang","2023-01-01","2023-10-01",null,"x","Xét nghiệm"]
[{"$f":"_xlfn.AGGREGATE(3,3,$C$4:C100)","v":97},"00915","Trần Thị Thành Thuật","Cử nhân Kỹ thuật Xét nghiệm y học","00913_L1/HDLD_S.I.S","Kỹ thuật viên, chuyên khoa xét nghiệm","KTV trưởng. Trần Thị Diễm Trang","2023-01-01","2023-10-01",null,"x","Xét nghiệm"]
[{"$f":"_xlfn.AGGREGATE(3,3,$C$4:C101)","v":98},"00149","Lê Thị Nhi","Dược sĩ đại học","DS009LTN/HĐLĐ_S.I.S","Bán lẻ thuốc, nhà thuốc","DS. Phùng Thị Kim So","2019-11-01","2021-11-01",null,"x","Dược"]
[{"$f":"_xlfn.AGGREGATE(3,3,$C$4:C102)","v":99},"00736","Nguyễn Ngọc Minh Thi","Dược sĩ Cao đẳng ","00736_L1/HDTH_S.I.S","Bán lẻ thuốc, nhà thuốc","DS. Phùng Thị Kim So","2022-02-10","2024-02-10","x",null,"Dược"]
[{"$f":"_xlfn.AGGREGATE(3,3,$C$4:C103)","v":100},"00481","Trần Khánh Hải","Dược sĩ đại học","DS025TKH/HĐLĐ_S.I.S","Bán lẻ thuốc, nhà thuốc","DS. Phùng Thị Kim So","2020-12-19","2022-12-19",null,"x","Dược"]
[{"$f":"_xlfn.AGGREGATE(3,3,$C$4:C104)","v":101},"00775","Trần Hồng Yến","Dược sĩ dược học đại học","00775_L1/HDTH_S.I.S","Bán lẻ thuốc, nhà thuốc","DSCKI. Huỳnh Huy","2022-02-22","2024-02-22","x",null,"Dược"]
[{"$f":"_xlfn.AGGREGATE(3,3,$C$4:C105)","v":102},"00642","Nguyễn Thị Kiều Diễm","Dược sĩ đại học","TV NTKD/HĐTV_S.I.S","Bán lẻ thuốc, nhà thuốc","DSCKI. Huỳnh Huy","2021-11-22","2023-11-22",null,"x","Dược"]
[{"$f":"_xlfn.AGGREGATE(3,3,$C$4:C106)","v":103},"00774","Nguyễn Thị Thanh Thảo","Dược sĩ đại học","00774_L1/HDTH_S.I.S","Bán lẻ thuốc, nhà thuốc","DSCKI. Huỳnh Huy","2022-02-22","2024-02-22","x",null,"Dược"]
[{"$f":"_xlfn.AGGREGATE(3,3,$C$4:C107)","v":104},"00844","Nguyễn Thị Kim Ngân","Cao đẳng dược học","00844_L1/HDLD_S.I.S","Bán lẻ thuốc, nhà thuốc","DS. Ngô Ngọc Tuyền","2022-08-09","2024-08-09",null,"x","Dược"]
[{"$f":"_xlfn.AGGREGATE(3,3,$C$4:C108)","v":105},"00873","Tiêu Quế Hương","Dược sĩ đại học","00873_L1/HDHD_S.I.S","Bán lẻ thuốc, nhà thuốc","DS. Ngô Ngọc Tuyền","2022-07-11","2024-07-11","x",null,"Dược"]
[{"$f":"_xlfn.AGGREGATE(3,3,$C$4:C109)","v":106},"00269","Quách Khổng Trí","Bác sĩ","002QKT/HĐTH_S.I.S BS050QKT/HĐLĐ-TH_S.I.S","Khám bệnh, chữa bệnh chuyên khoa ngoại","TS.BS.Trần Chí Cường\nBSCKI Phương Hồng Thọ\nThsBS Nguyễn Quang Hưng\nThs Bs Nguyễn Anh Trung","2019-07-10","2021-03-10","x",null,"Ngoại TH","Đang đề nghị CCHN 12.2022"]
[{"$f":"_xlfn.AGGREGATE(3,3,$C$4:C110)","v":107},"00523","Nguyễn Dương Quốc Anh","Bác sĩ đa khoa","BS070NDQA/HĐLĐ_S.I.S","Khám bệnh, chữa bệnh chuyên khoa ngoại","TS.BS.Trần Chí Cường\nBSCKI Phương Hồng Thọ\nThsBS Nguyễn Quang Hưng\nThs Bs Nguyễn Anh Trung","2020-09-14","2022-03-14","x",null,"Ngoại TH","Đang đề nghị CCHN 12.2022"]
[{"$f":"_xlfn.AGGREGATE(3,3,$C$4:C111)","v":108},"00534","Nguyễn Thúy Duy","Cao đẳng Điều dưỡng","00534_L2/HDLD_S.I.S","Thực hiện các kỹ thuật điều dưỡng cơ bản","ĐDT. Trần Ngọc Diễm","2022-07-07","2023-04-07",null,"x","CĐHA"]
[{"$f":"_xlfn.AGGREGATE(3,3,$C$4:C112)","v":109},"00811","Trần Thị Minh Thư","Cao đẳng Điều dưỡng","00811_L1/HĐLD_S.I.S","Thực hiện các kỹ thuật điều dưỡng cơ bản","ĐDT. Trần Ngọc Diễm","2022-09-18","2023-06-18",null,"x","CĐHA"]
[{"$f":"_xlfn.AGGREGATE(3,3,$C$4:C113)","v":110},"00854","Nguyễn Thị Hồng Cẩm","Cao đẳng Điều dưỡng","00854_L1/HDLD_S.I.S","Thực hiện các kỹ thuật điều dưỡng cơ bản","ĐDT. Trần Ngọc Diễm","20/08/2022","2023-05-20",null,"x","CĐHA"]
[{"$f":"_xlfn.AGGREGATE(3,3,$C$4:C114)","v":111},"00871","Nguyễn Thị Oanh","Cao đẳng Điều dưỡng","00871_L1/HDLD_S.I.S","Thực hiện các kỹ thuật điều dưỡng cơ bản","ĐDT. Trần Ngọc Diễm","2022-10-11","2023-07-11",null,"x","CĐHA"]
[{"$f":"_xlfn.AGGREGATE(3,3,$C$4:C115)","v":112},"00826","Nguyễn Cao Tuyết Linh","Cử nhân Kỹ thuật hình ảnh y học","00826_L2/HDLD_S.I.S","Thực hiện các kỹ thuật hình ảnh y học","KTVT. Đặng Hoàng Tuyến","2022-09-18","2023-06-18",null,"x","CĐHA"]
[{"$f":"_xlfn.AGGREGATE(3,3,$C$4:C116)","v":113},"00831","Trương Trần Duy","Cử nhân Kỹ thuật hình ảnh y học","00816_L1/HDLD_S.I.S","Thực hiện các kỹ thuật hình ảnh y học","KTVT. Đặng Hoàng Tuyến","2022-10-18","2023-06-18",null,"x","CĐHA"]
[{"$f":"_xlfn.AGGREGATE(3,3,$C$4:C117)","v":114},"00738","Trần Đức Cầm","Cao đẳng Kỹ thuật hình ảnh y học","00738_L1/HĐLĐ_S.I.S","Kỹ thuật viên DSA","KTV. Phan Thanh Danh","2022-02-26","2022-11-25",null,"x","CĐHA","Đang đề nghị CCHN 12.2022"]
[]
[]
[null,null,"Tổng danh sách người thực hành khám bệnh, chữa bệnh: 114"]
[null,null,"BS: 18"]
[null,null,"ĐD: 72"]
[null,null,"KTV: 16"]
[null,null,"DS: 8"]
[{"$nulls":8},"PHÓ GIÁM ĐỐC"]

{"sheet":"NGHI VIEC 2022","index":3,"n_rows":87,"n_cols":10,"rows_kept":87,"cut":false,"hidden":false,"merged":[[86,5,86,6]]}
["9. Danh sách nhân sự (tham gia KCB) đã chấm dứt hợp đồng lao động  (Từ 01/07/2021 đến 30/12/2022):"]
["STT","Mã NV","Họ và tên","Số chứng chỉ hành nghề đã được cấp ","Phạm vi hoạt động chuyên môn","Thời gian đăng ký hành nghề tại cơ sở khám bệnh, chữa bệnh (ghi cụ thể thời gian làm việc)","Vị trí chuyên môn","Khoa phòng","Ghi chú (đã chấm dứt HĐLĐ từ ngày)"]
[{"$f":"ROW()-2","v":1},null,"NGUYỄN MINH TOÀN","0037025/HCM-CCHN","Thực hiện phạm vi hoạt động theo quy định tại Thông tư liên tịch số 26/2015/TTLT-BYT-BNV ngày 07/10/2015","Toàn thời gian (Từ 7h00 -16h30) và theo lịch trực gác","Điều dưỡng viên","DSA","2021-02-26"]
[{"$f":"ROW()-2","v":2},null,"TRẦN THANH TÂM","004976/CT-CCHN","Thực hiện theo chức năng nhiệm vụ của điều dưỡng quy định tại Thông tư liên tịch số 26/2015/TTLT-BYT-BNV ngày 07/10/2015","Toàn thời gian (Từ 7h00 -16h30) và theo lịch trực gác","Điều dưỡng viên","PT GMHS","10/05/2021"]
[3,null,"VĂN MINH THÔNG","007002/CT-CCHN","Thực hiện theo chức năng nhiệm vụ của điều dưỡng quy định tại Thông tư liên tịch số 26/2015/TTLT-BYT-BNV ngày 07/10/2015","Toàn thời gian (Từ 7h00 -16h30) và theo lịch trực gác","Điều dưỡng viên","PT GMHS","21/06/2021"]
[4,null,"HUỲNH HOA NHƯ HÀ","007012/CT-CCHN","Thực hiện theo chức năng nhiệm vụ của điều dưỡng quy định tại Thông tư liên tịch số 26/2015/TTLT-BYT-BNV ngày 07/10/2015","Toàn thời gian (Từ 7h00 -16h30) và theo lịch trực gác","Điều dưỡng viên","PT GMHS","18/04/2021"]
[5,null,"NGUYỄN THỊ ÁI NHI","001274/CT-CCHN","Thực hiện các kỹ thuật điều dưỡng cơ bản","Bán thời gian,thep lịch phân công, trực đêm/ tuần","Hợp tác - Điều dưỡng dụng cụ","PT GMHS","Ngưng hợp tác từ 01/04/2021"]
[6,null,"LÊ KỲ KIỀU HẠNH","035464/BYT-CCHN","Thực hiện theo chức năng nhiệm vụ của điều dưỡng quy định tại Thông tư liên tịch số 26/2015/TTLT-BYT-BNV ngày 07/10/2015","Toàn thời gian (Từ 7h00 -16h30) và theo lịch trực gác","Điều dưỡng viên","PT GMHS","2021-06-28"]
[7,null,"TRẦN THỊ NGỌC MINH","005511/CT-CCHN","Kỹ thuật hình ảnh y học","Toàn thời gian (Từ 7h00 -16h30) và theo lịch trực gác","Kỹ thuật viên DSA","DSA","2021-06-28"]
[8,null,"LÊ VĂN LÝ","005296/CT - CCHN","Tham gia sơ cứu ban đầu, khám bệnh, chữa bệnh thông thường theo quy định tại Thông tư liên tịch số 10/2015/TTLT-BYT-BNV","Toàn thời gian (Từ 7h00 -16h30) và theo lịch trực gác","Điều dưỡng dụng cụ phòng DSA","DSA","2021-07-08"]
[9,null,"LÊ HOÀNG VŨ","002335/CT-CCHN","Thực hiện các kỹ thuật điều dưỡng cơ bản","Toàn thời gian (Từ 7h00 -16h30) và theo lịch trực gác","Điều dưỡng _Kiêm NV P.KHTH","Thần kinh đột quỵ","Hồ sơ treo"]
[10,null,"NGUYỄN KIM PHỤNG","005665/CT-CCHN","Khám bệnh, chữa bệnh chuyên khoa nội","Toàn thời gian (Từ 7h00 -16h30) và theo lịch trực gác","Bác sĩ điều trị, BS.CKI Nội khoa, kiêm Bs Phòng khám","Ngoại tổng hợp","2021-05-23"]
[11,null,"TRẦN CHÍ DŨNG","004407/BYT-CCHN","Khám chữa bệnh chuyên khoa Nội tổng hợp","Toàn thời gian T2-T6 (Từ 7h00 -16h30) và theo lịch trực gác","Trưởng khoa_kiêm BS phòng khám","Nội Tổng hợp","2021-07-20"]
[12,null,"PHAN TRƯỜNG LONG","Bác sĩ y khoa/ Đang trong TG thực hành 11/11/2020->","BS thực hành","Toàn thời gian (Từ 7h00 -16h30) và theo lịch trực gác","BS thực hành","Nội Tổng hợp","2021-01-19"]
[13,null,"TỐNG TRỌNG TÍN","Bác sĩ y khoa/ Đang trong TG thực hành 11/11/2020->","BS thực hành","Toàn thời gian (Từ 7h00 -16h30) và theo lịch trực gác","BS thực hành","Nội Tổng hợp","2021-01-19"]
[14,null,"LÊ VĂN TÂM","1228/TNI-CCHND","Buôn bán dược liệu, thuốc đông y, thuốc từ dược liệu, Đại lý vắc xin, sinh phẩm y tế, Chủ quầy thuốc; Chủ đại lý thuốc của doanh nghiệp, Người quản lý tủ thuốc trạm y tế","Toàn thời gian từ thứ 2 đến thứ 7 (Sáng 7h00 -11h30, Chiều 13h00-16h30) và theo lịch trực gác","Ds cấp phát thuốc nội trú_","Dược","2021-05-01"]
[15,null,"VÕ THỂ NGUYÊN","Đang trong thời gian thực hành 10/06/19->","Cấp phát thuốc","Toàn thời gian (Từ 7h00 -16h30) và theo lịch trực gác","Ds cấp phát thuốc ","Dược","2020-08-10"]
[16,null,"TĂNG HÀ NAM ANH","000178/HCM-CCHN","Khám bệnh, chữa bệnh chuyên khoa Chấn thương chỉnh hình","Bán thời gian","Hợp tác cố vấn – TS.BS Chấn thương chỉnh hình","Ngoại tổng hợp","2021-01-01"]
[17,null,"ĐỖ NGUYÊN TÍN","001725/BYT-CCHN","Khám bệnh, chữa bệnh chuyên khoa Nhi","Bán thời gian","Hợp tác cố vấn  – TS.BS Nhi Tim mạch","Ngoại tổng hợp","2021-01-01"]
[18,null,"NGUYỄN THỊ NGỌC HÂN","004280/CT-CCHN","Khám bệnh, chữa bệnh nội khoa","Bán thời gian","Hợp tác – bác sĩ trực ICU","PT GMHS","2021-03-01"]
[19,null,"TRẦN THANH TÂM","004976/CT-CCHN","Thực hiện theo chức năng nhiệm vụ của điều dưỡng quy định tại Thông tư liên tịch số 26/2015/TTLT-BYT-BNV ngày 07/10/2015","Toàn thời gian (Từ 7h00 -16h30) và theo lịch trực gác","Điều dưỡng viên","PT GMHS","10/05/2021"]
[20,null,"VĂN MINH THÔNG","007002/CT-CCHN","Thực hiện theo chức năng nhiệm vụ của điều dưỡng quy định tại Thông tư liên tịch số 26/2015/TTLT-BYT-BNV ngày 07/10/2015","Toàn thời gian (Từ 7h00 -16h30) và theo lịch trực gác","Điều dưỡng viên","PT GMHS","21/06/2021"]
[21,null,"HUỲNH HOA NHƯ HÀ","007012/CT-CCHN","Thực hiện theo chức năng nhiệm vụ của điều dưỡng quy định tại Thông tư liên tịch số 26/2015/TTLT-BYT-BNV ngày 07/10/2015","Toàn thời gian (Từ 7h00 -16h30) và theo lịch trực gác","Điều dưỡng viên","PT GMHS","18/04/2021"]
[22,null,"NGUYỄN THỊ ÁI NHI","001274/CT-CCHN","Thực hiện các kỹ thuật điều dưỡng cơ bản","Bán thời gian,thep lịch phân công, trực đêm/ tuần","Hợp tác - Điều dưỡng dụng cụ","PT GMHS","Ngưng hợp tác từ 01/04/2021"]
[23,null,"LÊ KỲ KIỀU HẠNH","035464/BYT-CCHN","Thực hiện theo chức năng nhiệm vụ của điều dưỡng quy định tại Thông tư liên tịch số 26/2015/TTLT-BYT-BNV ngày 07/10/2015","Toàn thời gian (Từ 7h00 -16h30) và theo lịch trực gác","Điều dưỡng viên","PT GMHS","2021-06-28"]
[24,null,"NGUYỄN MINH TOÀN","0037025/HCM-CCHN","Thực hiện phạm vi hoạt động theo quy định tại Thông tư liên tịch số 26/2015/TTLT-BYT-BNV ngày 07/10/2015","Toàn thời gian (Từ 7h00 -16h30) và theo lịch trực gác","Điều dưỡng viên","DSA","2021-02-26"]
[25,null,"LÊ VĂN LÝ","005296/CT - CCHN","Tham gia sơ cứu ban đầu, khám bệnh, chữa bệnh thông thường theo quy định tại Thông tư liên tịch số 10/2015/TTLT-BYT-BNV","Toàn thời gian (Từ 7h00 -16h30) và theo lịch trực gác","Điều dưỡng dụng cụ phòng DSA","DSA","2021-07-08"]
[26,null,"TRẦN THỊ NGỌC MINH","005511/CT-CCHN","Kỹ thuật hình ảnh y học","Toàn thời gian (Từ 7h00 -16h30) và theo lịch trực gác","Kỹ thuật viên DSA","DSA","2021-06-28"]
[27,null,"LÊ HOÀNG VŨ","002335/CT-CCHN","Thực hiện các kỹ thuật điều dưỡng cơ bản","Toàn thời gian (Từ 7h00 -16h30) và theo lịch trực gác","Điều dưỡng _Kiêm NV P.KHTH","Thần kinh đột quỵ","Hồ sơ treo"]
[28,null,"NGUYỄN KIM PHỤNG","005665/CT-CCHN","Khám bệnh, chữa bệnh chuyên khoa nội","Toàn thời gian (Từ 7h00 -16h30) và theo lịch trực gác","Bác sĩ điều trị, BS.CKI Nội khoa, kiêm Bs Phòng khám","Ngoại tổng hợp","2021-05-23"]
[29,null,"TRẦN CHÍ DŨNG","004407/BYT-CCHN","Khám chữa bệnh chuyên khoa Nội tổng hợp","Toàn thời gian T2-T6 (Từ 7h00 -16h30) và theo lịch trực gác","Trưởng khoa_kiêm BS phòng khám","Nội Tổng hợp","2021-07-20"]
[30,null,"PHAN TRƯỜNG LONG","Bác sĩ y khoa/ Đang trong TG thực hành 11/11/2020->","BS thực hành","Toàn thời gian (Từ 7h00 -16h30) và theo lịch trực gác","BS thực hành","Nội Tổng hợp","2021-01-19"]
[31,null,"TỐNG TRỌNG TÍN","Bác sĩ y khoa/ Đang trong TG thực hành 11/11/2020->","BS thực hành","Toàn thời gian (Từ 7h00 -16h30) và theo lịch trực gác","BS thực hành","Nội Tổng hợp","2021-01-19"]
[32,null,"LÊ VĂN TÂM","1228/TNI-CCHND","Buôn bán dược liệu, thuốc đông y, thuốc từ dược liệu, Đại lý vắc xin, sinh phẩm y tế, Chủ quầy thuốc; Chủ đại lý thuốc của doanh nghiệp, Người quản lý tủ thuốc trạm y tế","Toàn thời gian từ thứ 2 đến thứ 7 (Sáng 7h00 -11h30, Chiều 13h00-16h30) và theo lịch trực gác","Ds cấp phát thuốc nội trú_","Dược","2021-05-01"]
[33,null,"VÕ THỂ NGUYÊN","Đang trong thời gian thực hành 10/06/19->","Cấp phát thuốc","Toàn thời gian (Từ 7h00 -16h30) và theo lịch trực gác","Ds cấp phát thuốc ","Dược","2020-08-10"]
[34,null,"TĂNG HÀ NAM ANH","000178/HCM-CCHN","Khám bệnh, chữa bệnh chuyên khoa Chấn thương chỉnh hình","Bán thời gian","Hợp tác cố vấn – TS.BS Chấn thương chỉnh hình","Ngoại tổng hợp","2021-01-01"]
[35,null,"ĐỖ NGUYÊN TÍN","001725/BYT-CCHN","Khám bệnh, chữa bệnh chuyên khoa Nhi","Bán thời gian","Hợp tác cố vấn  – TS.BS Nhi Tim mạch","Ngoại tổng hợp","2021-01-01"]
[36,null,"NGUYỄN THỊ NGỌC HÂN","004280/CT-CCHN","Khám bệnh, chữa bệnh nội khoa","Bán thời gian","Hợp tác – bác sĩ trực ICU","PT GMHS","2021-03-01"]
[37,null,"LƯU KÍNH KHƯƠNG","003471/HCM-CCHN","Khám bệnh, chữa bệnh chuyên khoa Gây mê hồi sức","Bán thời gian theo lịch trực gác ","Hợp tác, cố vấn – BS.CKII Gây mê hồi sức","PT GMHS"]
[38,{"$error":"#N/A"},"LÝ THI TRĂNG THANH","029657/BYT-CCHN","Khám bệnh, chữa bệnh chuyên khoa Gây mê hồi sức Nội tổng hợp","Bán thời gian theo lịch trực gác","Hợp tác – BSCKI trực Gây mê hồi sức","PT GMHS","2021-08-01","BS Hợp tác"]
[39,{"$error":"#N/A"},"VÕ THỊ GẤM","006465/CT - CCHN","Khám bệnh, chữa bệnh chuyên Nội khoa","Bán thời gian theo lịch trực gác ","Hợp tác – bác sĩ trực ICU","PT GMHS","2021-08-01","BS Hợp tác"]
[40,{"$error":"#N/A"},"PHẠM THỊ THANH TRÚC","006418/CT - CCHN","Khám bệnh, chữa bệnh chuyên Nội khoa","Bán thời gian theo lịch trực gác ","Hợp tác – bác sĩ trực ICU","PT GMHS","2021-08-01","BS Hợp tác"]
[41,{"$error":"#N/A"},"THẠCH THỊ SA THIA","006441/CT - CCHN","Khám bệnh, chữa bệnh chuyên Nội khoa","Bán thời gian theo lịch trực gác ","Hợp tác – bác sĩ trực ICU","PT GMHS","2021-08-01","BS Hợp tác"]
[42,null,"NGUYỄN THỊ DIỄM HƯƠNG","0010267/BYT-CCHN","Thực hiện theo Quyết định số 41/2005/QĐ-BNV ngày 22/04/2005","Toàn thời gian (Từ 7h00 -16h30) và theo lịch trực gác","Điều dưỡng trưởng","Kiểm soát nhiễm khuẩn","2021-08-01"]
[43,null,"HÀ CAO THIỆN","1413/CCHN-D-SYT-CT","Đủ tiêu chuẩn hành nghề dược các hình thức tổ chức kinh doanh thuốc: nhà thuốc","Toàn thời gian (Từ 7h00 -16h30) và theo lịch trực gác","Dược sĩ cấp phát thuốc nội trú","Dược","2021-09-11"]
[44,null,"NGUYỄN THỊ NGỌC ĐIỆP","7295/CCHN-D-SYT-HCM","Đủ tiêu chuẩn hành nghề dược các hình thức tổ chức kinh doanh thuốc: nhà thuốc","Toàn thời gian (Từ 7h00 -16h30) và theo lịch trực gác","Dược sĩ cấp phát thuốc ngoại trú-TKYK Phòng khám","Dược","2021-10-25"]
[45,null,"NGUYỄN KHÁNH VY","1608-D-SYT-CT","Bán lẻ thuốc","Toàn thời gian (Từ 7h00 -16h30) và theo lịch trực gác","Dược sĩ cấp phát thuốc – Kiêm NV KSNK","Dược","2021-10-12"]
[46,null,"ĐỖ NGUYỆT MINH","2034/CCHN-D-SYT-VL","Đủ tiêu chuẩn hành nghề dược các hình thức tổ chức kinh doanh thuốc: nhà thuốc","Toàn thời gian (Từ 7h00 -16h30) và theo lịch trực gác","Dược sĩ cấp phát thuốc nội trú","Dược","2021-11-01"]
[47,null,"HUỲNH THỊ THÚY AN","1042/CCHN-D-SYT-CT","Bán lẻ thuốc","Toàn thời gian (Từ 7h00 -16h30) và theo lịch trực gác","Dược sĩ cấp phát thuốc ngoại trú _NV phụ phòng Nội soi","Dược"]
[48,null,"NGUYỄN THỪA NHƯ PHÚC","006121/CT-CCHN","Thực hiện theo chức năng nhiệm vụ của điều dưỡng quy định tại Thông tư liên tịch số 26/2015/TTLT-BYT-BNV ngày 07/10/2015","Toàn thời gian (Từ 7h00 -16h30) và theo lịch trực gác","Điều dưỡng viên","Nội Tổng hợp","2021-11-01"]
[49,null,"THẠCH SA MẾT","08099/AG-CCHN","Khám bệnh, chữa bệnh nội khoa","Toàn thời gian (Từ 7h00 -16h30) và theo lịch trực gác","Bác sĩ điều trị","PT GMHS","2021-11-14"]
[50,null,"THẠCH THỊ SÔ HOANH","000770/CT-CCHN","Kỹ thuật viên xét nghiệm","Toàn thời gian (Từ 7h00 -16h30) và theo lịch trực gác","Kỹ thuật viên xét nghiệm","Xét nghiệm","2021-12-01"]
[51,null,"TRẦN THỊ NHƯ THÙY","961/CCHN-D-SYT-CT","Bán lẻ thuốc","Toàn thời gian (Từ 7h00 -16h30) và theo lịch trực gác","Ds cấp phát thuốc ngoại trú. ","Dược","2021-12-01"]
[52,null,"NGUYỄN THỊ THÚY KIỀU","006309/CT - CCHN","Thực hiện theo chức năng nhiệm vụ của điều dưỡng quy định tại Thông tư liên tịch số 26/2015/TTLT-BYT-BNV ngày 07/10/2015","Toàn thời gian (Từ 7h00 -16h30) và theo lịch trực gác","Điều dưỡng viên ","Kiểm soát nhiễm khuẩn"]
[53,null,"TRẦN THỊ TRÚC LIÊN","QY030120/CCHN-BQP","Thực hiện theo chức năng nhiệm vụ của điều dưỡng quy định tại Thông tư liên tịch số 26/2015/TTLT-BYT-BNV ngày 07/10/2015","Toàn thời gian (Từ 7h00 -16h30) và theo lịch trực gác","Điều dưỡng viên","PT GMHS","2021-12-03"]
[54,null,"DIỆP THỊ HUYỀN TRÂN","049450/HCM-CCHN","Chuyên khoa Xét nghiệm","Toàn thời gian (Từ 7h00 -16h30) và theo lịch trực gác","Kỹ thuật viên xét nghiệm","Xét nghiệm","2021-10-27"]
[55,null,"NGUYỄN HOÀNG DU","0024769/BYT-CCNH","Khám bệnh, chữa bệnh chuyên khoa Nội tổng hợp","Bán thời gian theo lịch trực gác","Hợp tác – bác sĩ trực ICU","PT GMHS"]
[56,null,"NGUYỄN NGỌC HÀ","029658/BYT-CCHN","Khám bệnh, chữa bệnh chuyên khoa Gây mê hồi sức -Nội tổng hợp","Bán thời gian theo lịch trực gác","Hợp tác – BS trực Gây mê hồi sức","PT GMHS"]
[57,null,"NGUYỄN VĂN VĨNH","004377/BYT-CCHN","Chuyên khoa Gây mê hồi sức","Bán thời gian theo lịch trực gác","BSCKI.Hợp tác trực GMHS","PT GMHS"]
[58,null,"HUỲNH TUẤN HẢI","000795/CT-CCHN","Khám,chữa bệnh Nội – Gây mê hồi sức","Bán thời gian theo lịch trực gác","ThsBS Hợp tác trực GMHS","PT GMHS"]
[59,"00549","THẠCH SA MẾT","08099/AG-CCHN","Khám bệnh chữa bệnh chuyên  khoa Nội","Toàn thời gian (Từ 7h00 -16h30) và theo lịch trực gác","Bác sĩ điều trị","ICU","Nghỉ 13/12/2021"]
[60,"00652","HỒ VĂN ĐỘ","002871/HAUG-CCHN","Thực hiện theo chức năng nhiệm vụ của Điều dưỡng quy định tại Thông tư liên tịch số 26/2015/TTLT-BYT-BNV ngày 07/10/2015","Toàn thời gian (Từ 7h00 -16h30) và theo lịch trực gác","Điều dưỡng dụng cụ","PT GMHS","Nghỉ 10/02/2022"]
[61,"00353","NGUYỄN LÊ NGỌC","007143/CT-CCHN","Thực hiện theo chức năng nhiệm vụ của điều dưỡng quy định theo Thông tư liên tịch số 26/2015/TTLT-BYT-BNV ngày 07/10/2015","Toàn thời gian (Từ 7h00 -16h30) và theo lịch trực gác","Điều dưỡng dụng cụ","Nội Tổng hợp","Nghỉ 18/12/2021"]
[62,{"$error":"#N/A"},"HỒNG TẤN PHÁT","003237/HAUG-CCHN","Kỹ thuật hình ảnh y học","Toàn thời gian (Từ 7h00 -16h30) và theo lịch trực gác","Kỹ thuật viên","DSA","Nghỉ 21/12/2021"]
[63,"00054","NGÔ THỊ NHƯ THÙY","000443/ST - CCHN","Khám bệnh, chữa bệnh chuyên khoa Nhi","Toàn thời gian (Từ 7h00 -16h30) và theo lịch trực gác","Bác sĩ tư vấn","Nội Tổng hợp","Nghỉ 31/12/2021"]
[64,"00265","LÂM TRUNG NHÂN","005515/CT - CCHN","Kỹ thuật viên vật lý trị liệu, phục hồi chức năng","Toàn thời gian (Từ 7h00 -16h30) và theo lịch trực gác","Kỹ thuật viên Vật lý trị liệu, PHCN","Vật lý trị liệu-phục hồi chức năng","Nghỉ 27/04/2022"]
[65,"00359","DƯƠNG ÁNH PHƯỢNG","005721/CT-CCHN","Kỹ thuật viên Vật lý trị liệu, PHCN","Toàn thời gian (Từ 7h00 -16h30) và theo lịch trực gác","Kỹ thuật viên Vật lý trị liệu, PHCN","Vật lý trị liệu-phục hồi chức năng","Nghỉ 26/04/2022"]
[{"$f":"ROW()-2","v":66},"00482","LÂM VĂN CÂN","0035813/HCM-CCHN","Khám bệnh, chữa bệnh chuyên khoa ngoại thần kinh","Toàn thời gian (Từ 7h00 -16h30) và theo lịch trực gác","Bác sĩ điều trị - phòng khám- can thiệp","Ngoại tổng hợp","Nghỉ từ 26/02/2022"]
[67,{"$error":"#N/A"},"TRỊNH NGỌC CẦM","004358/BYT-CCHN","Khám bệnh, chữa bệnh chuyên khoa Tai Mũi Họng","Bán thời gian Thứ 7 (07h00-11h30)","Hợp tác_Bác sĩ phòng khám","Khám bệnh","Ngưng hợp tác từ 06/03/2022"]
[68,"00240","HỨA KIM TIÊN","030624/HCM-CCHN","Chuyên khoa xét nghiệm","Bán thời gian theo lịch phân công","Hợp tác - Cố vấn khoa xét nghiệm","Xét nghiệm","Ngưng hợp tác 01/05/2022"]
[69,"00638","TRƯƠNG THỊ THÙY TRANG","006660/LA-CCHN","Thực hiện theo Thông tư số 26/2015/TTLT-BYT-BNV ngày 07/10/2015 của Bộ Y tế, Bộ Nội vụ quy định mã số, tiêu chuẩn chức danh nghề nghiệp điều dưỡng","Toàn thời gian (Từ 7h00 -16h30) và theo lịch trực gác","Điều dưỡng viên ","Chẩn đoán hình ảnh","Nghỉ 25/01/2022"]
[70,"00360","ĐINH THỊ KIM NGÂN","000429/HAUG-CCHN","Kỹ thuật viên hình ảnh y học","Toàn thời gian (Từ 7h00 -16h30) và theo lịch trực gác","Kỹ thuật viên chẩn đoán hình ảnh","Chẩn đoán hình ảnh","Nghỉ 26/03/2022"]
[71,"00315","LÊ VĂN PHÚ","006952/CT-CCHN","Kỹ thuật viên hình ảnh y học","Toàn thời gian (Từ 7h00 -16h30) và theo lịch trực gác","Kỹ thuật viên chẩn đoán hình ảnh","Chẩn đoán hình ảnh","Nghỉ 27/12/2021"]
[72,"00501","NGUYỄN THỊ NGỌC ANH","007326/CT-CCHN","Thực hiện theo chức năng nhiệm vụ của điều dưỡng quy định theo Thông tư liên tịch số 26/2015/TTLT-BYT-BNV ngày 07/10/2015","Toàn thời gian (Từ 7h00 -16h30) và theo lịch trực gác","Điều dưỡng","Khám bệnh","Nghỉ 28/05/2022"]
[73,"00393","UNG THỊ DIỄM KIỀU","0030254/HCM-CCHN","Thực hiện theo Quyết định số 41/2005/QĐ-BNV ngày 22/04/2005","Toàn thời gian (Từ 7h00 -16h30) và theo lịch trực gác","Điều dưỡng viên","Khám bệnh","Nghỉ 26/03/2022"]
[74,"00263","HUỲNH VĂN AN","006973/CT-CCHN","Kỹ thuật viên Vật lý trị liệu - Phục hồi chức năng","Toàn thời gian (Từ 7h00 -16h30) và theo lịch trực gác","KTV","VLTL-PHCN","Nghỉ 02/06/2022"]
[75,"00354","MAI THỊ LAN","002912/HAUG-CCHN","Thực hiện theo nhiệm vụ điều dưỡng quy định theo Thông tư liên tịch số 26/2015/TTLT-BYT-BNV ngày 07/10/2015","Toàn thời gian (Từ 7h00 -16h30) và theo lịch trực gác","Điều dưỡng viên","Nội Tổng hợp","Nghỉ 27/06/2022"]
[76,"00422","LƯƠNG THỊ KIM PHƯỢNG","0002189/VL-CCHN","Thực hiện các kỹ thuật điều dưỡng cơ bản và kỹ thuật điều dưỡng chuyên khoa","Toàn thời gian (Từ 7h00 -16h30) và theo lịch trực gác","Điều dưỡng viên – NV nhà giặt","Kiểm soát nhiễm khuẩn","Nghỉ 01/07/2022"]
[77,"00597","PHAN THANH RI","001068/BD-CCHN","Khám bệnh chữa bệnh nội khoa, không làm thủ thuật chuyên khoa","Toàn thời gian (Từ 7h00 -16h30) và theo lịch trực gác","Bác sĩ điều trị","ICU","Nghỉ 01/07/2022"]
[78,"00143","NGUYỄN THỊ PHI YẾN","1751/CCHN-D-SYT-CT","Bán lẻ thuốc, dược lâm sàng","Toàn thời gian (Từ 7h00 -16h30) và theo lịch trực gác","Dược sĩ -QL ngoại trú","Dược","Nghỉ 01/07/2022"]
[79,"00049","NGUYỄN HOÀNG ANH","006313/CT-CCHN","Thực hiện theo chức năng nhiệm vụ của điều dưỡng quy định theo Thông tư liên tịch số 26/2015/TTLT-BYT NGÀY 7/10/2015","Toàn thời gian (Từ 7h00 -16h30) và theo lịch trực gác","Điều dưỡng viên","Kiểm soát nhiễm khuẩn","Nghỉ 01/07/2022"]
[1,"00371","Nguyễn Thị Cẩm Thu ","0005344/AG-CCHN","Thực hiện theo chức năng nhiệm vụ quy định tại Thông tư liên tịch số 26/2015/TTLT-BYT-BNV ngày 07/10/2015","Toàn thời gian (Từ 7h00 -17h00) và theo lịch trực gác","Điều dưỡng viên ","Khám bệnh","2022-07-26"]
[2,"00375","Trần Thị Ngọc Hân","005862/CT-CCHN","Thực hiện theo chức năng nhiệm vụ của điều dưỡng quy định theo Thông tư liên tịch số 26/2015/TTLT-BYT ngày 07/10/2015","Toàn thời gian (Từ 7h00 -17h00) và theo lịch trực gác","Điều dưỡng viên ","Khám bệnh","2022-08-25"]
[3,"00097","Lê Thị Mỹ Quyên ","006376/CT-CCHN","Thực hiện theo chức năng nhiệm vụ của điều dưỡng quy định theo Thông tư liên tịch số 26/2015/TTLT-BYT ngày 07/10/2015","Toàn thời gian (Từ 7h00 -17h00) và theo lịch trực gác","Điều dưỡng viên","PTGMHS [ICU]","2022-10-26"]
[]
[null,null,"Tổng số: 03 người"]
[{"$nulls":5},"PHÓ GIÁM ĐỐC"]